{"text_format":"1","workbook":"xlsx","n_sheets":5,"sheets":["１年まとめ","ﾃﾝﾌﾟﾚｰﾄ","1月","2月","3月"],"not_rendered":{"charts":0,"images":0,"macros":1,"external_links":0,"defined_names":2,"comments":5,"pivot_tables":0},"unopened":[],"bounds":{"document_bytes":16777216,"sheet_cells":100000,"rows_first":2000,"rows_last":500,"rows_between":2000,"halvings":0,"cell_chars":16384,"cell_head_chars":4096},"cells_cut":0,"cells_raw":0,"read":"whole","date_system":"1900"}

{"sheet":"１年まとめ","index":0,"n_rows":62,"n_cols":35,"rows_kept":62,"cut":false,"hidden":false,"merged":[[7,15,8,15],[7,16,7,17],[7,18,8,18],[7,14,8,14],[7,0,8,0],[7,1,7,4],[7,5,8,5],[7,6,8,6],[7,7,8,7],[7,8,8,8],[7,9,8,9],[7,10,8,10],[7,11,8,11],[7,12,8,12],[7,13,8,13],[7,27,8,27],[7,32,8,32],[7,19,8,19],[7,20,8,20],[7,21,8,21],[7,22,8,22],[7,23,8,23],[7,24,8,24],[7,25,8,25],[7,26,8,26],[14,34,14,38],[7,28,8,28],[7,29,8,29],[7,30,8,30],[7,31,8,31],[7,33,8,33],[7,34,8,38],[9,34,9,38],[10,34,10,38],[11,34,11,38],[12,34,12,38],[13,34,13,38],[26,34,26,38],[15,34,15,38],[16,34,16,38],[17,34,17,38],[18,34,18,38],[19,34,19,38],[20,34,20,38],[21,34,21,38],[22,34,22,38],[23,34,23,38],[24,34,24,38],[25,34,25,38],[44,12,44,14],[45,12,45,14],[35,12,35,14],[36,12,36,14],[40,12,40,14],[42,12,42,14],[43,12,43,14],[41,12,41,14],[37,12,37,14],[45,0,45,1],[30,0,31,0],[30,1,31,1],[30,2,30,3],[30,4,31,4],[34,12,34,14],[33,12,33,14],[38,12,38,14],[39,12,39,14]]}
[]
[]
[]
[]
[]
[]
[]
["月","収入",null,null,null,"支出","＋ or －","割合","生活費","固定費","純貯金から\n－","振分貯金\nから\n－","実質\n支出","（一人分給料）\n＋ or －","貯金マイナス","家計費\n補充","太陽光",null,"食費","日雑・化粧","娯楽・衣服","ｶﾞｿﾘﾝ・車","その他","おこづかい\n（２人分)","携帯","ネット","電気","水道\n（下水）","NHK","住宅ローン","生命・医療\n保険","保険\n(学資・貯蓄)","小学校","保育園","メモ"]
[null,"夫","妻","その他","合計",null,null,null,null,null,null,null,null,null,null,null,"金額","kwh"]
[1,300000,300000,10000,{"$f":"SUM(B10:D10)","v":610000},362300,{"$f":"E10-F10","v":247700},{"$f":"IF(E10=0,0,G10/E10)","v":0.40606557377049179},134700,139600,8000,80000,{"$f":"F10-(K10+L10)","v":274300},{"$f":"IF(B10=0,0,B10-M10)","v":25700},null,0,10000,111,42000,17500,3500,8000,3700,60000,4500,5500,8000,"-",2600,80000,22000,15000,2000]
[2,300000,300000,10000,{"$f":"SUM(B11:D11)","v":610000},326700,283300,0.46442622950819673,133700,147000,26000,20000,{"$f":"F11-(K11+L11)","v":280700},{"$f":"IF(B11=0,0,B11-M11)","v":19300},null,0,10000,111,42000,16500,3500,8000,3700,60000,4500,5500,8000,10000,"-",80000,22000,15000,2000]
[3,null,null,null,0,null,0,0,null,null,null,null,0,0]
[4,null,null,null,0,null,0,0,null,null,null,null,0,{"$f":"IF(B13=0,0,B13-M13)","v":0}]
["春ボーナス",0,0,0,0,0,0,0,0,0,0,0,0,0,null,null,"-","-","-","-","-","-","-","-","-","-","-","-","-","-","-","-","-","-"]
[5,null,null,null,{"$f":"SUM(B15:D15)","v":0},null,{"$f":"E15-F15","v":0},{"$f":"IF(E15=0,0,G15/E15)","v":0},null,null,null,null,{"$f":"F15-(K15+L15)","v":0},{"$f":"IF(B15=0,0,B15-M15)","v":0}]
[6,null,null,null,0,null,0,0,null,null,null,null,0,0]
[7,null,null,null,{"$f":"SUM(B17:D17)","v":0},null,{"$f":"E17-F17","v":0},{"$f":"IF(E17=0,0,G17/E17)","v":0},null,null,null,null,{"$f":"F17-(K17+L17)","v":0},{"$f":"IF(B17=0,0,B17-M17)","v":0}]
["夏ボーナス",0,0,0,0,0,0,0,0,0,0,0,0,0,null,null,"-","-","-","-","-","-","-","-","-","-","-","-","-","-","-","-","-","-"]
[8,null,null,null,0,null,0,{"$f":"IF(E19=0,0,G19/E19)","v":0},null,null,null,null,{"$f":"F19-(K19+L19)","v":0},0]
[9,null,null,null,0,null,0,{"$f":"IF(E20=0,0,G20/E20)","v":0},null,null,null,null,0,0]
[10,null,null,null,0,null,0,{"$f":"IF(E21=0,0,G21/E21)","v":0},null,null,null,null,{"$f":"F21-(K21+L21)","v":0},0]
[11,null,null,null,0,null,0,{"$f":"IF(E22=0,0,G22/E22)","v":0},null,null,null,null,0,0]
[12,null,null,null,0,null,0,{"$f":"IF(E23=0,0,G23/E23)","v":0},null,null,null,null,0,{"$f":"IF(B23=0,0,B23-M23)","v":0}]
["冬ボーナス",0,0,0,0,0,0,0,0,0,0,0,0,{"$f":"IF(B24=0,0,B24-M24)","v":0},null,null,"-","-","-","-","-","-","-","-","-","-","-","-","-","-","-","-","-","-"]
["合計",{"$f":"SUM(B10:B24)","v":600000},600000,20000,1220000,689000,531000,{"$f":"IF(E25=0,0,G25/E25)","v":0.43524590163934423},{"$f":"SUM(I10:I24)","v":268400},{"$f":"SUM(J10:J24)","v":286600},{"$f":"SUM(K10:K24)","v":34000},100000,555000,45000,0,0,20000,null,84000,34000,7000,16000,7400,120000,9000,11000,16000,10000,2600,160000,{"$f":"SUM(AE10:AE24)","v":44000},{"$f":"SUM(AF10:AF24)","v":30000},{"$f":"SUM(AG10:AG24)","v":4000},0]
["平均",{"$f":"(B10+B11+B12+B13+B15+B16+B17+B19+B20+B21+B22+B23)/12","v":50000},{"$f":"(C10+C11+C12+C13+C15+C16+C17+C19+C20+C21+C22+C23)/12","v":50000},"-","-",{"$f":"F25/12","v":57416.666666666664},{"$f":"G25/12","v":44250},"-",{"$f":"I25/12","v":22366.666666666668},23883.333333333332,2833.3333333333335,8333.3333333333339,46250,3750,0,0,{"$f":"Q25/12","v":1666.6666666666667},null,{"$f":"S25/12","v":7000},2833.3333333333335,583.33333333333337,1333.3333333333333,616.66666666666663,10000,750,916.66666666666663,1333.3333333333333,833.33333333333337,216.66666666666666,"-","-","-",null,"-"]
["ボーナス抜き平均","-","-","-","-","-",{"$f":"(G10+G11+G12+G13+G15+G16+G17+G19+G20+G21+G22+G23)/12","v":44250},"-","-","-","-","-","-",{"$f":"(N10+N11+N12+N13+N15+N16+N17+N19+N20+N21+N22+N23)/12","v":3750},{"$f":"(O10+O11+O12+O13+O15+O16+O17+O19+O20+O21+O22+O23)/12","v":0},{"$f":"(P10+P11+P12+P13+P15+P16+P17+P19+P20+P21+P22+P23)/12","v":0},"-",null,"-","-","-","-","-","-","-","-","-","-","-","-","-","-",null,"-"]
[]
[]
[null,null,"↓振り分け後自由な貯金",null,"↓計算式後、値を貼付けしてかわらないようにする。"]
["月","実質貯金月","純貯金の移り変わり",null,"年間収支"]
[null,null,"貯金","差",null,null,null,null,null,"記念日、年単位出費"]
[1,"-",0,"-",null,null,null,null,null,"月","予算","実績"]
[2,"1月分",313400,{"$f":"IF(C34=\"\",\"0\",C34-C33)","v":313400},247700,null,null,null,null,1,100000,null,"子①習い事"]
[3,"2月分",null,{"$f":"IF(C35=\"\",\"0\",C35-C34)","v":"0"},null,null,null,null,null,2,10000,8000,"子①誕生日"]
[4,"3月分",null,"0",null,null,null,null,null,2,20000,18000,"子①誕生日お出かけ"]
[5,"4月分",null,"0",null,null,null,null,null,3,20000,null,"夫誕生日"]
[6,"5月分",null,"0",null,null,null,null,null,3,20000,null,"妻誕生日"]
[7,"6月分",null,{"$f":"IF(C39=\"\",\"0\",C39-C38)","v":"0"},null,null,null,null,null,4,10000,null,"子②誕生日"]
[8,"7月分",null,"0",null,null,null,null,null,4,20000,null,"子②誕生日お出かけ"]
[9,"8月分",null,"0",null,null,null,null,null,5,30000,null,"結婚記念日ご飯"]
[10,"9月分",null,"0",null,null,null,null,null,8,100000,null,"家族旅行"]
[11,"10月分",null,"0",null,null,null,null,null,12,20000,null,"クリスマス"]
[12,"11月分",null,"0",null,null,null,null,null,12,10000,null,"クリスマスプレゼント"]
["-","12月分",null,"0",null,null,null,null,null,12,10000,null,"お年玉"]
["合計",null,null,{"$f":"SUM(D33:D45)","v":313400},null,null,null,null,null,12,30000,null,"お正月"]
[null,null,null,null,null,null,null,null,null,"合計",{"$f":"SUM(K34:K46)","v":400000},{"$f":"SUM(L34:L46)","v":26000}]
[]
[]
[]
[]
["ドロップダウンリスト"]
["外食"]
["衣服費（夫）"]
["衣服費（妻）"]
["衣服費（子①）"]
["衣服費（子②）"]
["娯楽費"]
["記念日、年単位出費"]
["体メンテ"]
["家計費補充"]
["内訳から引く"]

{"sheet":"ﾃﾝﾌﾟﾚｰﾄ","index":1,"n_rows":70,"n_cols":142,"rows_kept":70,"cut":false,"hidden":false,"merged":[[1,131,1,143],[2,131,2,140],[2,141,2,143],[3,131,3,140],[3,141,3,143],[4,131,4,140],[4,141,4,143],[5,141,5,143],[11,117,11,119],[11,120,11,126],[12,117,12,119],[12,120,12,126],[12,127,12,129],[13,117,13,119],[13,120,13,126],[14,117,14,119],[14,120,14,126],[3,120,3,126],[3,127,3,129],[13,127,13,129],[7,120,7,126],[5,131,5,140],[6,141,6,143],[2,117,2,119],[2,120,2,126],[2,127,2,129],[1,117,1,129],[4,117,4,119],[4,120,4,126],[4,127,4,129],[3,117,3,119],[7,127,7,129],[69,75,69,76],[69,77,69,79],[69,80,69,86],[69,87,69,90],[67,75,67,76],[67,77,67,79],[67,80,67,86],[65,46,65,48],[65,60,65,62],[59,67,59,69],[60,75,60,76],[60,77,60,79],[60,80,60,86],[67,87,67,90],[68,75,68,76],[68,77,68,79],[68,80,68,86],[68,87,68,90],[65,87,65,90],[64,46,64,48],[64,64,64,67],[64,68,64,70],[66,75,66,76],[66,77,66,79],[66,80,66,86],[66,87,66,90],[61,68,61,70],[63,75,63,76],[63,77,63,79],[63,80,63,86],[62,75,62,76],[62,77,62,79],[59,8,59,11],[59,15,59,18],[59,23,59,26],[59,32,59,34],[59,39,59,41],[59,46,59,48],[58,15,58,18],[58,29,58,31],[58,36,58,38],[58,43,58,45],[58,50,58,52],[58,57,58,59],[63,87,63,90],[62,87,62,90],[64,77,64,79],[61,60,61,62],[61,64,61,67],[62,80,62,86],[61,15,61,18],[61,80,61,86],[61,87,61,90],[59,75,59,76],[59,77,59,79],[59,80,59,86],[59,87,59,90],[58,75,58,76],[58,77,58,79],[58,80,58,86],[64,80,64,86],[64,87,64,90],[63,32,63,34],[63,39,63,41],[63,46,63,48],[63,53,63,55],[63,60,63,62],[65,75,65,76],[65,77,65,79],[65,80,65,86],[64,60,64,62],[64,75,64,76],[58,87,58,90],[62,32,62,34],[62,39,62,41],[62,46,62,48],[62,53,62,55],[62,60,62,62],[62,64,62,67],[62,68,62,70],[55,98,55,101],[55,49,55,54],[55,56,55,58],[55,59,55,64],[55,65,55,67],[55,68,55,69],[55,71,55,73],[55,29,55,34],[55,36,55,38],[55,39,55,44],[55,46,55,48],[61,32,61,34],[61,39,61,41],[61,46,61,48],[61,53,61,55],[59,53,59,55],[59,60,59,62],[55,74,55,79],[55,81,55,83],[55,84,55,89],[55,90,55,93],[55,94,55,97],[60,87,60,90],[61,75,61,76],[61,77,61,79],[54,98,54,101],[53,94,53,97],[53,98,53,101],[53,49,53,54],[53,56,53,58],[53,59,53,64],[53,65,53,67],[53,68,53,69],[53,71,53,73],[53,29,53,34],[53,36,53,38],[53,39,53,44],[53,46,53,48],[53,81,53,83],[53,84,53,89],[53,90,53,93],[54,19,54,24],[54,81,54,83],[54,84,54,89],[54,90,54,93],[54,94,54,97],[55,1,55,2],[55,3,55,5],[55,6,55,11],[55,12,55,14],[55,16,55,18],[54,56,54,58],[54,59,54,64],[54,65,54,67],[54,68,54,69],[54,71,54,73],[54,74,54,79],[54,26,54,28],[54,29,54,34],[54,36,54,38],[54,39,54,44],[54,46,54,48],[54,49,54,54],[54,1,54,2],[54,3,54,5],[54,6,54,11],[54,12,54,14],[54,16,54,18],[55,19,55,24],[55,26,55,28],[53,1,53,2],[53,3,53,5],[53,6,53,11],[53,12,53,14],[53,16,53,18],[52,56,52,58],[52,59,52,64],[52,65,52,67],[52,68,52,69],[52,71,52,73],[52,74,52,79],[52,26,52,28],[52,29,52,34],[52,36,52,38],[52,39,52,44],[52,46,52,48],[52,49,52,54],[52,1,52,2],[52,3,52,5],[52,6,52,11],[52,12,52,14],[52,16,52,18],[52,19,52,24],[53,74,53,79],[53,19,53,24],[53,26,53,28],[51,94,51,97],[51,98,51,101],[51,49,51,54],[51,56,51,58],[51,59,51,64],[51,65,51,67],[51,68,51,69],[51,71,51,73],[51,19,51,24],[51,26,51,28],[51,29,51,34],[51,36,51,38],[51,39,51,44],[51,46,51,48],[52,81,52,83],[52,84,52,89],[52,90,52,93],[52,94,52,97],[52,98,52,101],[50,81,50,83],[50,84,50,89],[50,90,50,93],[50,94,50,97],[50,98,50,101],[51,1,51,2],[51,3,51,5],[51,6,51,11],[51,12,51,14],[51,16,51,18],[50,56,50,58],[50,59,50,64],[50,65,50,67],[50,68,50,69],[50,71,50,73],[50,74,50,79],[50,26,50,28],[50,29,50,34],[50,36,50,38],[50,39,50,44],[50,46,50,48],[50,49,50,54],[50,1,50,2],[50,3,50,5],[50,6,50,11],[50,12,50,14],[50,16,50,18],[50,19,50,24],[51,74,51,79],[51,81,51,83],[51,84,51,89],[51,90,51,93],[49,81,49,83],[49,84,49,89],[49,90,49,93],[49,94,49,97],[49,98,49,101],[49,49,49,54],[49,56,49,58],[49,59,49,64],[49,65,49,67],[49,68,49,69],[49,71,49,73],[49,19,49,24],[49,26,49,28],[49,29,49,34],[49,36,49,38],[49,39,49,44],[49,46,49,48],[49,1,49,2],[49,3,49,5],[49,6,49,11],[49,12,49,14],[49,16,49,18],[48,56,48,58],[48,59,48,64],[48,65,48,67],[48,68,48,69],[48,71,48,73],[48,74,48,79],[48,26,48,28],[48,29,48,34],[48,36,48,38],[48,39,48,44],[48,46,48,48],[48,49,48,54],[48,1,48,2],[48,3,48,5],[48,6,48,11],[48,12,48,14],[48,16,48,18],[48,19,48,24],[49,74,49,79],[47,94,47,97],[47,98,47,101],[47,49,47,54],[47,56,47,58],[47,59,47,64],[47,65,47,67],[47,68,47,69],[47,71,47,73],[47,19,47,24],[47,26,47,28],[47,29,47,34],[47,36,47,38],[47,39,47,44],[47,46,47,48],[48,81,48,83],[48,84,48,89],[48,90,48,93],[48,94,48,97],[48,98,48,101],[46,81,46,83],[46,84,46,89],[46,90,46,93],[46,94,46,97],[46,98,46,101],[47,1,47,2],[47,3,47,5],[47,6,47,11],[47,12,47,14],[47,16,47,18],[46,56,46,58],[46,59,46,64],[46,65,46,67],[46,68,46,69],[46,71,46,73],[46,74,46,79],[46,26,46,28],[46,29,46,34],[46,36,46,38],[46,39,46,44],[46,46,46,48],[46,49,46,54],[46,1,46,2],[46,3,46,5],[46,6,46,11],[46,12,46,14],[46,16,46,18],[46,19,46,24],[47,74,47,79],[47,81,47,83],[47,84,47,89],[47,90,47,93],[45,81,45,83],[45,84,45,89],[45,90,45,93],[45,94,45,97],[45,98,45,101],[45,49,45,54],[45,56,45,58],[45,59,45,64],[45,65,45,67],[45,68,45,69],[45,71,45,73],[45,19,45,24],[45,26,45,28],[45,29,45,34],[45,36,45,38],[45,39,45,44],[45,46,45,48],[45,1,45,2],[45,3,45,5],[45,6,45,11],[45,12,45,14],[45,16,45,18],[44,56,44,58],[44,59,44,64],[44,65,44,67],[44,68,44,69],[44,71,44,73],[44,74,44,79],[44,26,44,28],[44,29,44,34],[44,36,44,38],[44,39,44,44],[44,46,44,48],[44,49,44,54],[44,1,44,2],[44,3,44,5],[44,6,44,11],[44,12,44,14],[44,16,44,18],[44,19,44,24],[45,74,45,79],[43,94,43,97],[43,98,43,101],[43,49,43,54],[43,56,43,58],[43,59,43,64],[43,65,43,67],[43,68,43,69],[43,71,43,73],[43,19,43,24],[43,26,43,28],[43,29,43,34],[43,36,43,38],[43,39,43,44],[43,46,43,48],[44,81,44,83],[44,84,44,89],[44,90,44,93],[44,94,44,97],[44,98,44,101],[42,81,42,83],[42,84,42,89],[42,90,42,93],[42,94,42,97],[42,98,42,101],[43,1,43,2],[43,3,43,5],[43,6,43,11],[43,12,43,14],[43,16,43,18],[42,56,42,58],[42,59,42,64],[42,65,42,67],[42,68,42,69],[42,71,42,73],[42,74,42,79],[42,26,42,28],[42,29,42,34],[42,36,42,38],[42,39,42,44],[42,46,42,48],[42,49,42,54],[42,1,42,2],[42,3,42,5],[42,6,42,11],[42,12,42,14],[42,16,42,18],[42,19,42,24],[43,74,43,79],[43,81,43,83],[43,84,43,89],[43,90,43,93],[41,81,41,83],[41,84,41,89],[41,90,41,93],[41,94,41,97],[41,98,41,101],[41,49,41,54],[41,56,41,58],[41,59,41,64],[41,65,41,67],[41,68,41,69],[41,71,41,73],[41,19,41,24],[41,26,41,28],[41,29,41,34],[41,36,41,38],[41,39,41,44],[41,46,41,48],[41,1,41,2],[41,3,41,5],[41,6,41,11],[41,12,41,14],[41,16,41,18],[40,56,40,58],[40,59,40,64],[40,65,40,67],[40,68,40,69],[40,71,40,73],[40,74,40,79],[40,26,40,28],[40,29,40,34],[40,36,40,38],[40,39,40,44],[40,46,40,48],[40,49,40,54],[40,1,40,2],[40,3,40,5],[40,6,40,11],[40,12,40,14],[40,16,40,18],[40,19,40,24],[41,74,41,79],[39,94,39,97],[39,98,39,101],[39,49,39,54],[39,56,39,58],[39,59,39,64],[39,65,39,67],[39,68,39,69],[39,71,39,73],[39,19,39,24],[39,26,39,28],[39,29,39,34],[39,36,39,38],[39,39,39,44],[39,46,39,48],[40,81,40,83],[40,84,40,89],[40,90,40,93],[40,94,40,97],[40,98,40,101],[38,81,38,83],[38,84,38,89],[38,90,38,93],[38,94,38,97],[38,98,38,101],[39,1,39,2],[39,3,39,5],[39,6,39,11],[39,12,39,14],[39,16,39,18],[38,56,38,58],[38,59,38,64],[38,65,38,67],[38,68,38,69],[38,71,38,73],[38,74,38,79],[38,26,38,28],[38,29,38,34],[38,36,38,38],[38,39,38,44],[38,46,38,48],[38,49,38,54],[38,1,38,2],[38,3,38,5],[38,6,38,11],[38,12,38,14],[38,16,38,18],[38,19,38,24],[39,74,39,79],[39,81,39,83],[39,84,39,89],[39,90,39,93],[37,81,37,83],[37,84,37,89],[37,90,37,93],[37,94,37,97],[37,98,37,101],[37,49,37,54],[37,56,37,58],[37,59,37,64],[37,65,37,67],[37,68,37,69],[37,71,37,73],[37,19,37,24],[37,26,37,28],[37,29,37,34],[37,36,37,38],[37,39,37,44],[37,46,37,48],[37,1,37,2],[37,3,37,5],[37,6,37,11],[37,12,37,14],[37,16,37,18],[36,56,36,58],[36,59,36,64],[36,65,36,67],[36,68,36,69],[36,71,36,73],[36,74,36,79],[36,26,36,28],[36,29,36,34],[36,36,36,38],[36,39,36,44],[36,46,36,48],[36,49,36,54],[36,1,36,2],[36,3,36,5],[36,6,36,11],[36,12,36,14],[36,16,36,18],[36,19,36,24],[37,74,37,79],[35,94,35,97],[35,98,35,101],[35,49,35,54],[35,56,35,58],[35,59,35,64],[35,65,35,67],[35,68,35,69],[35,71,35,73],[35,19,35,24],[35,26,35,28],[35,29,35,34],[35,36,35,38],[35,39,35,44],[35,46,35,48],[36,81,36,83],[36,84,36,89],[36,90,36,93],[36,94,36,97],[36,98,36,101],[34,81,34,83],[34,84,34,89],[34,90,34,93],[34,94,34,97],[34,98,34,101],[35,1,35,2],[35,3,35,5],[35,6,35,11],[35,12,35,14],[35,16,35,18],[34,56,34,58],[34,59,34,64],[34,65,34,67],[34,68,34,69],[34,71,34,73],[34,74,34,79],[34,26,34,28],[34,29,34,34],[34,36,34,38],[34,39,34,44],[34,46,34,48],[34,49,34,54],[34,1,34,2],[34,3,34,5],[34,6,34,11],[34,12,34,14],[34,16,34,18],[34,19,34,24],[35,74,35,79],[35,81,35,83],[35,84,35,89],[35,90,35,93],[33,81,33,83],[33,84,33,89],[33,90,33,93],[33,94,33,97],[33,98,33,101],[33,49,33,54],[33,56,33,58],[33,59,33,64],[33,65,33,67],[33,68,33,69],[33,71,33,73],[33,19,33,24],[33,26,33,28],[33,29,33,34],[33,36,33,38],[33,39,33,44],[33,46,33,48],[33,1,33,2],[33,3,33,5],[33,6,33,11],[33,12,33,14],[33,16,33,18],[32,56,32,58],[32,59,32,64],[32,65,32,67],[32,68,32,69],[32,71,32,73],[32,74,32,79],[32,26,32,28],[32,29,32,34],[32,36,32,38],[32,39,32,44],[32,46,32,48],[32,49,32,54],[32,1,32,2],[32,3,32,5],[32,6,32,11],[32,12,32,14],[32,16,32,18],[32,19,32,24],[33,74,33,79],[31,94,31,97],[31,98,31,101],[31,49,31,54],[31,56,31,58],[31,59,31,64],[31,65,31,67],[31,68,31,69],[31,71,31,73],[31,19,31,24],[31,26,31,28],[31,29,31,34],[31,36,31,38],[31,39,31,44],[31,46,31,48],[32,81,32,83],[32,84,32,89],[32,90,32,93],[32,94,32,97],[32,98,32,101],[30,81,30,83],[30,84,30,89],[30,90,30,93],[30,94,30,97],[30,98,30,101],[31,1,31,2],[31,3,31,5],[31,6,31,11],[31,12,31,14],[31,16,31,18],[30,56,30,58],[30,59,30,64],[30,65,30,67],[30,68,30,69],[30,71,30,73],[30,74,30,79],[30,26,30,28],[30,29,30,34],[30,36,30,38],[30,39,30,44],[30,46,30,48],[30,49,30,54],[30,1,30,2],[30,3,30,5],[30,6,30,11],[30,12,30,14],[30,16,30,18],[30,19,30,24],[31,74,31,79],[31,81,31,83],[31,84,31,89],[31,90,31,93],[29,81,29,83],[29,84,29,89],[29,90,29,93],[29,94,29,97],[29,98,29,101],[29,49,29,54],[29,56,29,58],[29,59,29,64],[29,65,29,67],[29,68,29,69],[29,71,29,73],[29,19,29,24],[29,26,29,28],[29,29,29,34],[29,36,29,38],[29,39,29,44],[29,46,29,48],[29,1,29,2],[29,3,29,5],[29,6,29,11],[29,12,29,14],[29,16,29,18],[28,56,28,58],[28,59,28,64],[28,65,28,67],[28,68,28,69],[28,71,28,73],[28,74,28,79],[28,26,28,28],[28,29,28,34],[28,36,28,38],[28,39,28,44],[28,46,28,48],[28,49,28,54],[28,1,28,2],[28,3,28,5],[28,6,28,11],[28,12,28,14],[28,16,28,18],[28,19,28,24],[29,74,29,79],[27,94,27,97],[27,98,27,101],[27,49,27,54],[27,56,27,58],[27,59,27,64],[27,65,27,67],[27,68,27,69],[27,71,27,73],[27,19,27,24],[27,26,27,28],[27,29,27,34],[27,36,27,38],[27,39,27,44],[27,46,27,48],[28,81,28,83],[28,84,28,89],[28,90,28,93],[28,94,28,97],[28,98,28,101],[26,81,26,83],[26,84,26,89],[26,90,26,93],[26,94,26,97],[26,98,26,101],[27,1,27,2],[27,3,27,5],[27,6,27,11],[27,12,27,14],[27,16,27,18],[26,56,26,58],[26,59,26,64],[26,65,26,67],[26,68,26,69],[26,71,26,73],[26,74,26,79],[26,26,26,28],[26,29,26,34],[26,36,26,38],[26,39,26,44],[26,46,26,48],[26,49,26,54],[26,1,26,2],[26,3,26,5],[26,6,26,11],[26,12,26,14],[26,16,26,18],[26,19,26,24],[27,74,27,79],[27,81,27,83],[27,84,27,89],[27,90,27,93],[25,81,25,83],[25,84,25,89],[25,90,25,93],[25,94,25,97],[25,98,25,101],[25,49,25,54],[25,56,25,58],[25,59,25,64],[25,65,25,67],[25,68,25,69],[25,71,25,73],[25,19,25,24],[25,26,25,28],[25,29,25,34],[25,36,25,38],[25,39,25,44],[25,46,25,48],[25,1,25,2],[25,3,25,5],[25,6,25,11],[25,12,25,14],[25,16,25,18],[24,56,24,58],[24,59,24,64],[24,65,24,67],[24,68,24,69],[24,71,24,73],[24,74,24,79],[24,26,24,28],[24,29,24,34],[24,36,24,38],[24,39,24,44],[24,46,24,48],[24,49,24,54],[24,1,24,2],[24,3,24,5],[24,6,24,11],[24,12,24,14],[24,16,24,18],[24,19,24,24],[25,74,25,79],[23,94,23,97],[23,98,23,101],[23,49,23,54],[23,56,23,58],[23,59,23,64],[23,65,23,67],[23,68,23,69],[23,71,23,73],[23,19,23,24],[23,26,23,28],[23,29,23,34],[23,36,23,38],[23,39,23,44],[23,46,23,48],[24,81,24,83],[24,84,24,89],[24,90,24,93],[24,94,24,97],[24,98,24,101],[22,81,22,83],[22,84,22,89],[22,90,22,93],[22,94,22,97],[22,98,22,101],[23,1,23,2],[23,3,23,5],[23,6,23,11],[23,12,23,14],[23,16,23,18],[22,56,22,58],[22,59,22,64],[22,65,22,67],[22,68,22,69],[22,71,22,73],[22,74,22,79],[22,26,22,28],[22,29,22,34],[22,36,22,38],[22,39,22,44],[22,46,22,48],[22,49,22,54],[22,1,22,2],[22,3,22,5],[22,6,22,11],[22,12,22,14],[22,16,22,18],[22,19,22,24],[23,74,23,79],[23,81,23,83],[23,84,23,89],[23,90,23,93],[21,81,21,83],[21,84,21,89],[21,90,21,93],[21,94,21,97],[21,98,21,101],[21,49,21,54],[21,56,21,58],[21,59,21,64],[21,65,21,67],[21,68,21,69],[21,71,21,73],[21,19,21,24],[21,26,21,28],[21,29,21,34],[21,36,21,38],[21,39,21,44],[21,46,21,48],[21,1,21,2],[21,3,21,5],[21,6,21,11],[21,12,21,14],[21,16,21,18],[20,56,20,58],[20,59,20,64],[20,65,20,67],[20,68,20,69],[20,71,20,73],[20,74,20,79],[20,26,20,28],[20,29,20,34],[20,36,20,38],[20,39,20,44],[20,46,20,48],[20,49,20,54],[20,1,20,2],[20,3,20,5],[20,6,20,11],[20,12,20,14],[20,16,20,18],[20,19,20,24],[21,74,21,79],[19,98,19,101],[19,49,19,54],[19,56,19,58],[19,59,19,64],[19,65,19,67],[19,68,19,69],[19,71,19,73],[19,19,19,24],[19,26,19,28],[19,29,19,34],[19,36,19,38],[19,39,19,44],[19,46,19,48],[20,81,20,83],[20,84,20,89],[20,90,20,93],[20,94,20,97],[20,98,20,101],[18,94,18,97],[19,1,19,2],[19,3,19,5],[19,6,19,11],[19,12,19,14],[19,16,19,18],[18,49,18,54],[18,56,18,58],[18,59,18,64],[18,65,18,67],[18,68,18,69],[18,71,18,73],[18,19,18,24],[18,26,18,28],[18,29,18,34],[18,36,18,38],[18,39,18,44],[18,46,18,48],[18,1,18,2],[18,3,18,5],[18,6,18,11],[18,12,18,14],[18,16,18,18],[19,74,19,79],[19,81,19,83],[19,84,19,89],[19,90,19,93],[19,94,19,97],[17,45,17,54],[17,55,17,64],[17,65,17,67],[17,68,17,69],[17,70,17,79],[17,80,17,89],[16,103,16,105],[16,106,16,112],[16,113,16,115],[17,1,17,2]],"merged_total":1124,"flags":["merged_cut"]}
[null,null,null,null,null,null,null,null,null,null,null,null,null,null,null,null,null,null,null,null,null,null,null,null,null,null,null,null,null,null,null,null,null,null,null,null,null,null,null,null,null,null,null,null,null,null,null,null,null,null,null,null,null,null,null,null,null,null,null,null,null,null,null,null,null,null,null,null,null,"銀行メモ"]
[null,null,null,null,null,null,null,null,null,null,null,null,null,null,null,null,null,null,null,null,null,null,null,null,null,null,null,null,null,null,null,null,null,null,null,null,null,null,null,null,null,null,null,null,null,null,null,null,null,null,null,null,null,null,null,null,null,null,null,null,null,null,null,null,null,null,null,null,null,null,null,"夫□□銀行",null,null,null,null,null,2500000,null,null,null,null,null,"内訳メモからマイナス",null,null,null,null,null,null,"内訳メモ",null,null,null,null,null,null,null,"いくら",null,null,null,null,"車関係（積立の内訳）",null,null,null,null,null,null,null,null,null,null,null,null,null,"その他（積立の内訳）",null,null,null,null,null,null,null,null,null,null,null,null,null,"衣服費（内訳）"]
[null,null,null,null,null,null,null,null,null,null,null,null,null,null,null,null,null,null,null,null,null,null,null,null,null,null,null,null,null,null,null,null,null,null,null,null,null,null,null,null,null,null,null,null,null,null,null,null,null,null,null,null,null,null,null,null,null,null,null,null,null,null,null,null,null,null,null,null,null,null,null,"妻〇〇銀行",null,null,null,null,null,1500000,null,null,null,null,null,"純貯金からマイナス",null,null,null,null,null,null,"自由費",null,null,null,null,null,null,null,100000,null,null,null,null,"2022/01",null,null,"共通",null,null,"車検の積立て",null,null,null,200000,null,null,null,"勉強",null,null,"資格取得、自己啓発費用",null,null,null,null,null,null,200000,null,null,null,"妻",null,null,null,null,null,null,null,null,null,10000]
[null,null,null,null,null,null,null,null,null,null,null,null,null,null,null,null,null,null,null,null,null,null,null,null,null,null,null,null,null,null,null,null,null,null,null,null,null,null,null,null,null,null,null,null,null,null,null,null,null,null,null,null,null,null,null,null,null,null,null,null,null,null,null,null,null,null,null,null,null,null,null,null,null,null,null,null,null,null,null,null,null,null,null,"ボーナスから振分",null,null,null,null,null,null,null,null,null,null,null,null,null,null,null,null,null,null,null,"2021/05",null,null,"共通",null,null,"車税積立て（2人分）",null,null,null,50000,null,null,null,"子ども",null,null,"子①のお金（児童手当）",null,null,null,null,null,null,800000,null,null,null,"夫",null,null,null,null,null,null,null,null,null,10000]
[null,null,null,null,null,null,null,null,null,null,null,null,null,null,null,null,null,null,null,null,null,null,null,null,null,null,null,null,null,null,null,null,null,null,null,null,null,null,null,null,null,null,null,null,null,null,null,null,null,null,null,null,null,null,null,null,null,null,null,null,null,null,null,null,null,null,null,null,null,null,null,"ネット銀行定期",null,null,null,null,null,1000000,null,null,null,null,null,"（マイナスは純貯金からする",null,null,null,null,null,null,null,null,null,null,null,null,null,null,null,null,null,null,null,"2021/09",null,null,"妻",null,null,"車保険",null,null,null,60000,null,null,null,"子ども",null,null,"子①のお金（児童手当以外）",null,null,null,null,null,null,20000,null,null,null,"子①",null,null,null,null,null,null,null,null,null,20000]
[null,null,null,null,null,null,null,null,null,null,null,null,null,null,null,null,null,null,null,null,null,null,null,null,null,null,null,null,null,null,null,null,null,null,null,null,null,null,null,null,null,null,null,null,null,null,null,null,null,null,null,null,null,null,null,null,null,null,null,null,null,null,null,null,null,null,null,null,null,null,null,"ネット銀行運用",null,null,null,null,null,1000000,null,null,null,null,null,"こと！）",null,null,null,null,null,null,null,null,null,null,null,null,null,null,null,null,null,null,null,"2021/01",null,null,"夫",null,null,"車保険",null,null,null,0,null,null,null,"子ども",null,null,"子①のお金（将来の学費貯金）",null,null,null,null,null,null,500000,null,null,null,"子②",null,null,null,null,null,null,null,null,null,20000]
[null,null,null,null,null,null,null,null,null,null,null,null,null,null,null,null,null,null,null,null,null,null,null,null,null,null,null,null,null,null,null,null,null,null,null,null,null,null,null,null,null,null,null,null,null,null,null,null,null,null,null,null,null,null,null,null,null,null,null,null,null,null,null,null,null,null,null,null,null,null,null,"カード払い予定",null,null,null,null,null,100000,null,null,null,null,null,null,null,null,null,null,null,null,"旅行用（日帰り含む）",null,null,null,null,null,null,null,160000,null,null,null,null,2025,null,null,"妻",null,null,"車の買替え用",null,null,null,500000,null,null,null,"子ども",null,null,"子②のお金（児童手当）",null,null,null,null,null,null,100000,null,null,null,null,null,null,null,null,null,null,null,null,null,{"$f":"SUM(EL3:EN6)","v":60000}]
[null,null,null,null,null,null,null,null,null,null,null,null,null,null,null,null,null,null,null,null,null,null,null,null,null,null,null,null,null,null,null,null,null,null,null,null,null,null,null,null,null,null,null,null,null,null,null,null,null,null,null,null,null,null,null,null,null,null,null,null,null,null,null,null,null,null,null,null,null,null,null,"ゆうちょ",null,null,null,null,null,20000,null,null,null,null,null,null,null,null,null,null,null,null,"娯楽費",null,null,null,null,null,null,null,30000,null,null,null,null,null,null,null,null,null,null,null,null,null,null,null,null,null,null,"子ども",null,null,"子②のお金（児童手当以外）",null,null,null,null,null,null,30000]
[null,null,null,null,null,null,null,null,null,null,null,null,null,null,null,null,null,null,null,null,null,null,null,null,null,null,null,null,null,null,null,null,null,null,null,null,null,null,null,null,null,null,null,null,null,null,null,null,null,null,null,null,null,null,null,null,null,null,null,null,null,null,null,null,null,null,null,null,null,null,null,null,null,null,null,null,null,null,null,null,null,null,null,null,null,null,null,null,null,null,"衣服費　※",null,null,null,null,null,null,null,{"$f":"EL7","v":60000},null,null,null,null,null,null,null,null,null,null,null,null,null,null,{"$f":"SUM(DJ3:DL8)","v":810000},null,null,null,"子ども",null,null,"子②のお金（将来の学費貯金）",null,null,null,null,null,null,200000]
[null,null,null,null,null,null,null,null,null,null,null,null,null,null,null,null,null,null,null,null,null,null,null,null,null,null,null,null,null,null,null,null,null,null,null,null,null,null,null,null,null,null,null,null,null,null,null,null,null,null,null,null,null,null,null,null,null,null,null,null,null,null,null,null,null,null,null,null,null,"学資・保険運用",null,null,null,null,null,null,null,null,null,null,null,null,null,null,null,null,null,null,null,null,"住宅関係　※",null,null,null,null,null,null,null,{"$f":"DJ18","v":900000}]
[null,null,null,null,null,null,null,null,null,null,null,null,null,null,null,null,null,null,null,null,null,null,null,null,null,null,null,null,null,null,null,null,null,null,null,null,null,null,null,null,null,null,null,null,null,null,null,null,null,null,null,null,null,null,null,null,null,null,null,null,null,null,null,null,null,null,null,null,null,null,null,"子①学資保険",null,null,null,null,"2035年","200万（予定）",null,null,null,null,null,null,null,null,null,null,null,null,"車関係　※",null,null,null,null,null,null,null,{"$f":"DJ9","v":810000},null,null,null,null,"住宅関係（積立の内訳）"]
[null,null,null,null,null,null,null,null,null,null,null,null,null,null,null,null,null,null,null,null,null,null,null,null,null,null,null,null,null,null,null,null,null,null,null,null,null,null,null,null,null,null,null,null,null,null,null,null,null,null,null,null,null,null,null,null,null,null,null,null,null,null,null,null,null,null,null,null,null,null,null,null,null,null,null,null,null,null,null,null,null,null,null,null,null,null,null,null,null,null,"その他の積立　※",null,null,null,null,null,null,null,{"$f":"DX18","v":3960000},null,null,null,null,"住宅補修用",null,null,"太陽光プラス分",null,null,null,null,null,null,400000,null,null,null,"別管理",null,null,"生活防衛資金",null,null,null,null,null,null,1500000]
[null,null,null,null,null,null,null,null,null,null,null,null,null,null,null,null,null,null,null,null,null,null,null,null,null,null,null,null,null,null,null,null,null,null,null,null,null,null,null,null,null,null,null,null,null,null,null,null,null,null,null,null,null,null,null,null,null,null,null,null,null,null,null,null,null,null,null,null,null,null,null,null,null,null,null,null,null,null,null,null,null,null,null,null,null,null,null,null,null,null,null,null,null,null,null,null,null,null,null,null,null,null,null,"住宅補修用",null,null,"家メンテナンス",null,null,null,null,null,null,0]
[]
[null,null,null,null,null,null,null,null,null,null,null,null,null,null,null,null,null,null,null,null,null,null,null,null,null,null,null,null,null,null,null,null,null,null,null,null,null,null,null,null,null,null,null,null,null,null,null,null,null,null,null,null,null,null,null,null,null,null,null,null,null,null,null,null,null,null,null,null,null,null,null,null,null,null,null,null,null,null,null,null,null,null,null,null,null,null,null,null,null,null,"貯金用",null,null,null,null,null,null,null,{"$f":"(SUM(BZ2:CC6)+BZ8)-SUM(CU3:CX14)","v":0},null,null,null,null,"税金",null,null,"固定資産税積立て",null,null,null,null,null,null,200000,null,null,null,"別管理",null,null,"家電まとめて",null,null,null,null,null,null,200000]
[null,null,null,null,null,null,null,null,null,null,null,null,null,null,null,null,null,null,null,null,null,null,null,null,null,null,null,null,null,null,null,null,null,null,null,null,null,null,null,null,null,null,null,null,null,null,null,null,null,null,null,null,null,null,null,null,null,null,null,null,null,null,null,null,null,null,null,null,null,null,null,null,null,null,null,null,null,null,null,null,null,null,null,null,null,null,null,null,null,null,"合計",null,null,null,null,null,null,null,{"$f":"SUM(CU3:CX15)","v":6020000},null,null,null,null,null,null,null,null,null,null,null,null,null,null,null,null,null,null,"別管理",null,null,"定額給付金",null,null,null,null,null,null,330000]
[null,null,null,null,null,null,null,null,null,null,null,null,null,null,null,null,null,null,null,null,null,null,null,null,null,null,null,null,null,null,null,null,null,null,null,null,null,null,null,null,null,null,null,null,null,null,null,null,null,null,null,null,null,null,null,null,null,null,null,null,null,null,null,null,null,null,null,null,null,null,null,null,null,null,null,null,null,null,null,null,null,null,null,null,null,null,null,null,null,null,null,null,null,null,null,null,null,null,null,null,null,null,null,"住宅ローン",null,null,"繰上げ返済用",null,null,null,null,null,null,300000,null,null,null,"予算確保",null,null,"自転車用",null,null,null,null,null,null,80000]
[null,"日付",null,"入ったお金",null,null,"入った理由",null,null,null,null,null,"使ったお金",null,null,"食費",null,null,null,null,null,null,null,null,null,"日用雑貨・化粧品",null,null,null,null,null,null,null,null,null,"娯楽・衣服",null,null,null,null,null,null,null,null,null,"ガソリン・車関係",null,null,null,null,null,null,null,null,null,"その他（医療費含）",null,null,null,null,null,null,null,null,null,"残金",null,null,"日付",null,"入ったお金・理由",null,null,null,null,null,null,null,null,null,"使ったお金・理由",null,null,null,null,null,null,null,null,null,"残金",null,null,null,null,null,null,null,null,null,null,null,null,null,null,null,null,null,null,null,null,null,null,{"$f":"SUM(DJ12:DL17)","v":900000},null,null,null,null,null,null,null,null,null,null,null,null,null,{"$f":"SUM(DX3:DZ17)","v":3960000}]
[null,null,null,null,null,null,null,null,null,null,null,null,{"$f":"Q19+AA19+AK19+AU19+BE19","v":0},null,null,null,null,null,null,null,null,null,null,null,null,null,null,null,null,"前月からの繰越",null,null,null,null,null,null,null,null,null,null,null,null,null,null,null,null,null,null,null,null,null,null,null,null,null,null,null,null,null,null,null,null,null,null,null,11097]
[null,1,null,150000,null,null,"○月分の生活費",null,null,null,null,null,60000,null,null,null,null,null,null,null,null,null,null,null,null,null,null,null,null,null,null,null,null,null,null,null,null,null,null,null,null,null,null,null,null,null,null,null,null,null,null,null,null,null,null,null,60000,null,null,"２人分おこづかい",null,null,null,null,null,{"$f":"IF(B20=\"\",0,BN19+D20-M20)","v":101097},null,null,null,null,null,null,null,null,null,null,null,null,null,null,"7M",150000,null,null,"○月分生活費",null,null,null,null,null,"夫□□銀行",null,null,null,{"$f":"BZ2-CD20","v":2350000}]
[null,1,null,null,null,null,null,null,null,null,null,null,0,null,null,null,null,null,null,null,null,null,null,null,null,null,null,null,null,null,null,null,null,null,null,null,null,null,null,null,null,null,null,null,null,null,null,null,null,null,null,null,null,null,null,null,null,null,null,null,null,null,null,null,null,101097]
[null,null,null,null,null,null,null,null,null,null,null,null,0,null,null,null,null,null,null,null,null,null,null,null,null,null,null,null,null,null,null,null,null,null,null,null,null,null,null,null,null,null,null,null,null,null,null,null,null,null,null,null,null,null,null,null,null,null,null,null,null,null,null,null,null,0]
[null,null,null,null,null,null,null,null,null,null,null,null,0,null,null,null,null,null,null,null,null,null,null,null,null,null,null,null,null,null,null,null,null,null,null,null,null,null,null,null,null,null,null,null,null,null,null,null,null,null,null,null,null,null,null,null,null,null,null,null,null,null,null,null,null,0]
[null,null,null,null,null,null,null,null,null,null,null,null,0,null,null,null,null,null,null,null,null,null,null,null,null,null,null,null,null,null,null,null,null,null,null,null,null,null,null,null,null,null,null,null,null,null,null,null,null,null,null,null,null,null,null,null,null,null,null,null,null,null,null,null,null,0]
[null,null,null,null,null,null,null,null,null,null,null,null,0,null,null,null,null,null,null,null,null,null,null,null,null,null,null,null,null,null,null,null,null,null,null,null,null,null,null,null,null,null,null,null,null,null,null,null,null,null,null,null,null,null,null,null,null,null,null,null,null,null,null,null,null,0]
[null,null,null,null,null,null,null,null,null,null,null,null,0,null,null,null,null,null,null,null,null,null,null,null,null,null,null,null,null,null,null,null,null,null,null,null,null,null,null,null,null,null,null,null,null,null,null,null,null,null,null,null,null,null,null,null,null,null,null,null,null,null,null,null,null,0]
[null,null,null,null,null,null,null,null,null,null,null,null,0,null,null,null,null,null,null,null,null,null,null,null,null,null,null,null,null,null,null,null,null,null,null,null,null,null,null,null,null,null,null,null,null,null,null,null,null,null,null,null,null,null,null,null,null,null,null,null,null,null,null,null,null,0]
[null,null,null,null,null,null,null,null,null,null,null,null,0,null,null,null,null,null,null,null,null,null,null,null,null,null,null,null,null,null,null,null,null,null,null,null,null,null,null,null,null,null,null,null,null,null,null,null,null,null,null,null,null,null,null,null,null,null,null,null,null,null,null,null,null,0]
[null,null,null,null,null,null,null,null,null,null,null,null,0,null,null,null,null,null,null,null,null,null,null,null,null,null,null,null,null,null,null,null,null,null,null,null,null,null,null,null,null,null,null,null,null,null,null,null,null,null,null,null,null,null,null,null,null,null,null,null,null,null,null,null,null,0]
[null,null,null,null,null,null,null,null,null,null,null,null,0,null,null,null,null,null,null,null,null,null,null,null,null,null,null,null,null,null,null,null,null,null,null,null,null,null,null,null,null,null,null,null,null,null,null,null,null,null,null,null,null,null,null,null,null,null,null,null,null,null,null,null,null,0]
[null,null,null,null,null,null,null,null,null,null,null,null,0,null,null,null,null,null,null,null,null,null,null,null,null,null,null,null,null,null,null,null,null,null,null,null,null,null,null,null,null,null,null,null,null,null,null,null,null,null,null,null,null,null,null,null,null,null,null,null,null,null,null,null,null,0]
[null,null,null,null,null,null,null,null,null,null,null,null,0,null,null,null,null,null,null,null,null,null,null,null,null,null,null,null,null,null,null,null,null,null,null,null,null,null,null,null,null,null,null,null,null,null,null,null,null,null,null,null,null,null,null,null,null,null,null,null,null,null,null,null,null,0]
[null,null,null,null,null,null,null,null,null,null,null,null,0,null,null,null,null,null,null,null,null,null,null,null,null,null,null,null,null,null,null,null,null,null,null,null,null,null,null,null,null,null,null,null,null,null,null,null,null,null,null,null,null,null,null,null,null,null,null,null,null,null,null,null,null,0]
[null,null,null,null,null,null,null,null,null,null,null,null,0,null,null,null,null,null,null,null,null,null,null,null,null,null,null,null,null,null,null,null,null,null,null,null,null,null,null,null,null,null,null,null,null,null,null,null,null,null,null,null,null,null,null,null,null,null,null,null,null,null,null,null,null,0]
[null,null,null,null,null,null,null,null,null,null,null,null,0,null,null,null,null,null,null,null,null,null,null,null,null,null,null,null,null,null,null,null,null,null,null,null,null,null,null,null,null,null,null,null,null,null,null,null,null,null,null,null,null,null,null,null,null,null,null,null,null,null,null,null,null,0]
[null,null,null,null,null,null,null,null,null,null,null,null,0,null,null,null,null,null,null,null,null,null,null,null,null,null,null,null,null,null,null,null,null,null,null,null,null,null,null,null,null,null,null,null,null,null,null,null,null,null,null,null,null,null,null,null,null,null,null,null,null,null,null,null,null,0]
[null,null,null,null,null,null,null,null,null,null,null,null,0,null,null,null,null,null,null,null,null,null,null,null,null,null,null,null,null,null,null,null,null,null,null,null,null,null,null,null,null,null,null,null,null,null,null,null,null,null,null,null,null,null,null,null,null,null,null,null,null,null,null,null,null,0]
[null,null,null,null,null,null,null,null,null,null,null,null,0,null,null,null,null,null,null,null,null,null,null,null,null,null,null,null,null,null,null,null,null,null,null,null,null,null,null,null,null,null,null,null,null,null,null,null,null,null,null,null,null,null,null,null,null,null,null,null,null,null,null,null,null,0]
[null,null,null,null,null,null,null,null,null,null,null,null,0,null,null,null,null,null,null,null,null,null,null,null,null,null,null,null,null,null,null,null,null,null,null,null,null,null,null,null,null,null,null,null,null,null,null,null,null,null,null,null,null,null,null,null,null,null,null,null,null,null,null,null,null,0]
[null,null,null,null,null,null,null,null,null,null,null,null,0,null,null,null,null,null,null,null,null,null,null,null,null,null,null,null,null,null,null,null,null,null,null,null,null,null,null,null,null,null,null,null,null,null,null,null,null,null,null,null,null,null,null,null,null,null,null,null,null,null,null,null,null,0,null,null,28,null,"6M",null,null,null,"お金の移動",null,null,null,null,null,null,null,null,null,null,null,null,null,null,null,"夫□□銀行"]
[null,null,null,null,null,null,null,null,null,null,null,null,0,null,null,null,null,null,null,null,null,null,null,null,null,null,null,null,null,null,null,null,null,null,null,null,null,null,null,null,null,null,null,null,null,null,null,null,null,null,null,null,null,null,null,null,null,null,null,null,null,null,null,null,null,0,null,null,28,null,null,null,null,null,null,null,null,null,null,null,"7M",null,null,null,"お金の移動",null,null,null,null,null,"妻〇〇銀行"]
[null,null,null,null,null,null,null,null,null,null,null,null,0,null,null,null,null,null,null,null,null,null,null,null,null,null,null,null,null,null,null,null,null,null,null,null,null,null,null,null,null,null,null,null,null,null,null,null,null,null,null,null,null,null,null,null,null,null,null,null,null,null,null,null,null,0,null,null,null,null,null,null,null,null,"お給料○月分(夫)",null,null,null,null,null,null,null,null,null,null,null,null,null,null,null,"夫□□銀行"]
[null,null,null,null,null,null,null,null,null,null,null,null,0,null,null,null,null,null,null,null,null,null,null,null,null,null,null,null,null,null,null,null,null,null,null,null,null,null,null,null,null,null,null,null,null,null,null,null,null,null,null,null,null,null,null,null,null,null,null,null,null,null,null,null,null,0,null,null,null,null,null,null,null,null,"お給料○月分（妻）",null,null,null,null,null,null,null,null,null,null,null,null,null,null,null,"妻〇〇銀行"]
[null,null,null,null,null,null,null,null,null,null,null,null,0,null,null,null,null,null,null,null,null,null,null,null,null,null,null,null,null,null,null,null,null,null,null,null,null,null,null,null,null,null,null,null,null,null,null,null,null,null,null,null,null,null,null,null,null,null,null,null,null,null,null,null,null,0,null,null,null,null,null,null,null,null,"太陽光発電プラス分",null,null,null,null,null,null,null,null,null,null,null,null,null,null,null,"夫□□銀行",null,null,null,null,null,null,null,"太陽光ﾌﾟﾗｽ分"]
[null,null,null,null,null,null,null,null,null,null,null,null,0,null,null,null,null,null,null,null,null,null,null,null,null,null,null,null,null,null,null,null,null,null,null,null,null,null,null,null,null,null,null,null,null,null,null,null,null,null,null,null,null,null,null,null,null,null,null,null,null,null,null,null,null,0]
[null,null,null,null,null,null,null,null,null,null,null,null,0,null,null,null,null,null,null,null,null,null,null,null,null,null,null,null,null,null,null,null,null,null,null,null,null,null,null,null,null,null,null,null,null,null,null,null,null,null,null,null,null,null,null,null,null,null,null,null,null,null,null,null,null,0]
[null,null,null,null,null,null,null,null,null,null,null,null,0,null,null,null,null,null,null,null,null,null,null,null,null,null,null,null,null,null,null,null,null,null,null,null,null,null,null,null,null,null,null,null,null,null,null,null,null,null,null,null,null,null,null,null,null,null,null,null,null,null,null,null,null,0]
[null,null,null,null,null,null,null,null,null,null,null,null,0,null,null,null,null,null,null,null,null,null,null,null,null,null,null,null,null,null,null,null,null,null,null,null,null,null,null,null,null,null,null,null,null,null,null,null,null,null,null,null,null,null,null,null,null,null,null,null,null,null,null,null,null,0]
[null,null,null,null,null,null,null,null,null,null,null,null,0,null,null,null,null,null,null,null,null,null,null,null,null,null,null,null,null,null,null,null,null,null,null,null,null,null,null,null,null,null,null,null,null,null,null,null,null,null,null,null,null,null,null,null,null,null,null,null,null,null,null,null,null,0]
[null,null,null,null,null,null,null,null,null,null,null,null,0,null,null,null,null,null,null,null,null,null,null,null,null,null,null,null,null,null,null,null,null,null,null,null,null,null,null,null,null,null,null,null,null,null,null,null,null,null,null,null,null,null,null,null,null,null,null,null,null,null,null,null,null,0]
[null,null,null,null,null,null,null,null,null,null,null,null,0,null,null,null,null,null,null,null,null,null,null,null,null,null,null,null,null,null,null,null,null,null,null,null,null,null,null,null,null,null,null,null,null,null,null,null,null,null,null,null,null,null,null,null,null,null,null,null,null,null,null,null,null,0,null,null,null,null,null,null,null,null,null,null,null,null,null,null,"7M",null,null,null,"カード引き落し",null,null,null,null,null,"カード払い予定"]
[null,null,null,null,null,null,null,null,null,null,null,null,0,null,null,null,null,null,null,null,null,null,null,null,null,null,null,null,null,null,null,null,null,null,null,null,null,null,null,null,null,null,null,null,null,null,null,null,null,null,null,null,null,null,null,null,null,null,null,null,null,null,null,null,null,0,null,null,null,null,"6M",{"$f":"SUMIF(CJ60:CJ71,\"カード\",BZ60:BZ71)","v":0},null,null,"カード払い予定",null,null,null,null,null,null,null,null,null,null,null,null,null,null,null,"カード払い予定"]
[null,null,null,null,null,null,null,null,null,null,null,null,0,null,null,null,null,null,null,null,null,null,null,null,null,null,null,null,null,null,null,null,null,null,null,null,null,null,null,null,null,null,null,null,null,null,null,null,null,null,null,null,null,null,null,null,null,null,null,null,null,null,null,null,null,0,null,null,null,null,null,null,null,null,null,null,null,null,null,null,71,{"$f":"SUM(BZ60:CB70)","v":0},null,null,"固定支出",null,null,null,null,null,"夫□□銀行"]
[null,null,null,null,null,null,null,null,null,null,null,null,0,null,null,null,null,null,null,null,null,null,null,null,null,null,null,null,null,null,null,null,null,null,null,null,null,null,null,null,null,null,null,null,null,null,null,null,null,null,null,null,null,null,null,null,null,null,null,null,null,null,null,null,null,0,null,null,null,null,null,null,null,null,null,null,null,null,null,null,71,null,null,null,"小学校引落とし",null,null,null,null,null,"ゆうちょ"]
[null,null,null,null,null,null,null,null,null,null,null,null,0,null,null,null,null,null,null,null,null,null,null,null,null,null,null,null,null,null,null,null,null,null,null,null,null,null,null,null,null,null,null,null,null,null,null,null,null,null,null,null,null,null,null,null,null,null,null,null,null,null,null,null,null,0]
[null,null,null,null,null,null,null,null,null,null,null,null,0,null,null,null,null,null,null,null,null,null,null,null,null,null,null,null,null,null,null,null,null,null,null,null,null,null,null,null,null,null,null,null,null,null,null,null,null,null,null,null,null,null,null,null,null,null,null,null,null,null,null,null,null,0]
[]
[]
[null,null,null,null,null,null,null,null,null,null,null,null,null,"生活費支出",null,{"$f":"SUM(M20:O56)","v":60000},null,null,null,null,null,null,null,null,null,null,null,null,null,45000,null,null,null,null,null,null,26000,null,null,null,null,null,null,null,null,null,null,null,null,null,8000,null,null,null,null,null,null,15000,null,null,null,null,null,null,null,null,null,null,null,null,null,null,null,null,null,"日付",null,"お金",null,null,"理由",null,null,null,null,null,null,"どこから"]
[null,null,null,null,null,null,"収入",null,{"$f":"SUM(BT42:BV44)","v":0},null,null,null,null,"支出",null,{"$f":"SUM(M20:O56)+BP60+BQ62+BQ63","v":60000},null,null,null,null,"＋　or －",null,null,{"$f":"I60-P60","v":-60000},null,null,null,null,null,"食費",null,null,{"$f":"SUM(Q20:S56)","v":0},null,null,null,"日雑・化粧",null,null,{"$f":"SUM(AA20:AC56)","v":0},null,null,null,"娯楽・衣服",null,null,{"$f":"SUM(AK20:AM56)","v":0},null,null,null,"ｶﾞｿﾘﾝ・車",null,null,{"$f":"SUM(AU20:AW56)","v":0},null,null,null,"その他",null,null,{"$f":"SUM(BE20:BG56)","v":60000},null,null,null,"固定費",null,null,{"$f":"SUMIF(CC19:CC56,71,CD19:CF56)","v":0},null,null,null,null,null,null,null,null,null,null,null,null,"夫携帯",null,null,null,null,null,null,"カード"]
[null,null,null,null,null,null,null,null,null,null,null,null,null,null,null,null,null,null,null,null,null,null,null,null,null,null,null,null,null,null,null,null,null,null,null,null,null,null,null,null,null,null,null,null,null,null,null,null,null,null,null,null,null,null,null,null,null,null,null,null,null,null,null,null,null,null,null,null,null,null,null,null,null,null,null,null,null,null,null,null,"妻携帯",null,null,null,null,null,null,"カード"]
[null,null,null,null,null,null,null,null,null,null,null,null,null,"(実質)",null,{"$f":"P60-(BQ62+BQ63)","v":60000},null,null,null,null,null,null,null,null,null,null,null,null,null,"(材料)",null,null,{"$f":"SUMIF(P20:P56,11,Q20:S56)","v":0},null,null,null,"(日用雑貨)",null,null,{"$f":"SUMIF(Z20:Z56,21,AA20:AC56)","v":0},null,null,null,"(服：夫)",null,null,{"$f":"SUMIF(AJ20:AJ56,31,AK20:AM56)+SUMIF(CU20:CU56,\"衣服費（夫）\",CD20:CF56)","v":0},null,null,null,"(ｶﾞｿﾘﾝ：夫)",null,null,{"$f":"SUMIF(AT20:AT56,41,AU20:AW56)","v":0},null,null,null,"(医療：夫)",null,null,{"$f":"SUMIF(BD20:BD56,51,BE20:BG56)","v":0},null,null,null,"純貯金から-",null,null,null,{"$f":"SUMIF(CC19:CC56,72,CD19:CF56)","v":0},null,null,null,null,null,null,null,null,null,null,null,"通話料",null,null,null,null,null,null,"カード"]
[null,null,null,null,null,null,null,null,null,null,null,null,null,null,null,null,null,null,null,null,null,null,null,null,null,null,null,null,null,"(米代)",null,null,{"$f":"SUMIF(P20:P56,12,Q20:S56)","v":0},null,null,null,"(化粧品)",null,null,{"$f":"SUMIF(Z20:Z56,22,AA20:AC56)","v":0},null,null,null,"(服：妻)",null,null,{"$f":"SUMIF(AJ20:AJ56,32,AK20:AM56)+SUMIF(CU20:CU56,\"衣服費（妻）\",CD20:CF56)","v":0},null,null,null,"(ｶﾞｿﾘﾝ：妻)",null,null,{"$f":"SUMIF(AT20:AT56,42,AU20:AW56)","v":0},null,null,null,"(医療：妻)",null,null,{"$f":"SUMIF(BD20:BD56,52,BE20:BG56)","v":0},null,null,null,"振分貯金から-",null,null,null,{"$f":"SUMIF(CC19:CC56,73,CD19:CF56)","v":0},null,null,null,null,null,null,null,null,null,null,null,"ネット",null,null,null,null,null,null,"カード"]
[null,null,null,null,null,null,null,null,null,null,null,null,null,null,null,null,null,null,null,null,null,null,null,null,null,null,null,null,null,"(外食)",null,null,{"$f":"SUMIF(P20:P56,13,Q20:S56)+SUMIF(CU20:CU56,\"外食\",CD20:CF56)","v":0},null,null,null,"(子②用品)",null,null,{"$f":"SUMIF(Z20:Z56,23,AA20:AC56)","v":0},null,null,null,"(服：子①)",null,null,{"$f":"SUMIF(AJ20:AJ56,33,AK20:AM56)+SUMIF(CU20:CU56,\"衣服費（子①）\",CD20:CF56)","v":0},null,null,null,"(車メンテ)",null,null,{"$f":"SUMIF(AT20:AT56,43,AU20:AW56)","v":0},null,null,null,"(医療：子①)",null,null,{"$f":"SUMIF(BD20:BD56,53,BE20:BG56)","v":0},null,null,null,null,null,null,null,null,null,null,null,null,null,null,null,null,null,null,null,"電気○月分(999kwh)",null,null,null,null,null,null,"カード"]
[null,null,null,null,null,null,null,null,null,null,null,null,null,null,null,null,null,null,null,null,null,null,null,null,null,null,null,null,null,null,null,null,null,null,null,null,null,null,null,null,null,null,null,"(服：子②)　",null,null,{"$f":"SUMIF(AJ20:AJ56,33,AK20:AM56)+SUMIF(CU20:CU56,\"衣服費（子②）\",CD20:CF56)","v":0},null,null,null,null,null,null,null,null,null,null,"(医療：子②)",null,null,{"$f":"SUMIF(BD20:BD56,54,BE20:BG56)","v":0},null,null,null,"家計費ﾏｲﾅｽ",null,null,null,{"$f":"SUMIF(CU20:CU56,\"家計費補充\",CD20:CF56)","v":0},null,null,null,null,null,null,null,null,null,null,null,"水道（上下水）(99㎥)",null,null,null,null,null,null,"夫□□銀行"]
[null,null,null,null,null,null,null,null,null,null,null,null,null,null,null,null,null,null,null,null,null,null,null,null,null,null,null,null,null,null,null,null,null,null,null,null,null,null,null,null,null,null,null,"(娯楽)",null,null,{"$f":"SUMIF(AJ20:AJ56,33,AK20:AM56)+SUMIF(CU20:CU56,\"娯楽費\",CD20:CF56)","v":0},null,null,null,null,null,null,null,null,null,null,"(学校)",null,null,{"$f":"SUMIF(BD20:BD56,61,BE20:BG56)","v":0},null,null,null,null,null,null,null,null,null,null,null,null,null,null,null,null,null,null,null,"ＮＨＫ○、○月分",null,null,null,null,null,null,"夫□□銀行"]
[null,null,null,null,null,null,null,null,null,null,null,null,null,null,null,null,null,null,null,null,null,null,null,null,null,null,null,null,null,null,null,null,null,null,null,null,null,null,null,null,null,null,null,null,null,null,null,null,null,null,null,null,null,null,null,null,null,null,null,null,null,null,null,null,null,null,null,null,null,null,null,null,null,null,null,null,null,null,null,null,"住宅ローン",null,null,null,null,null,null,"夫□□銀行"]
[null,null,null,null,null,null,null,null,null,null,null,null,null,null,null,null,null,null,null,null,null,null,null,null,null,null,null,null,null,null,null,null,null,null,null,null,null,null,null,null,null,null,null,null,null,null,null,null,null,null,null,null,null,null,null,null,null,null,null,null,null,null,null,null,null,null,null,null,null,null,null,null,null,null,null,null,null,null,null,null,"生命・医療保険(夫)",null,null,null,null,null,null,"カード"]
[null,null,null,null,null,null,null,null,null,null,null,null,null,null,null,null,null,null,null,null,null,null,null,null,null,null,null,null,null,null,null,null,null,null,null,null,null,null,null,null,null,null,null,null,null,null,null,null,null,null,null,null,null,null,null,null,null,null,null,null,null,null,null,null,null,null,null,null,null,null,null,null,null,null,null,null,null,null,null,null,"生命・医療保険(妻)",null,null,null,null,null,null,"カード"]
[null,null,null,null,null,null,null,null,null,null,null,null,null,null,null,null,null,null,null,null,null,null,null,null,null,null,null,null,null,null,null,null,null,null,null,null,null,null,null,null,null,null,null,null,null,null,null,null,null,null,null,null,null,null,null,null,null,null,null,null,null,null,null,null,null,null,null,null,null,null,null,null,null,null,null,null,null,null,null,null,"学資保険",null,null,null,null,null,null,"カード"]

{"sheet":"1月","index":2,"n_rows":70,"n_cols":142,"rows_kept":70,"cut":false,"hidden":false,"merged":[[4,113,4,115],[4,117,4,119],[4,120,4,126],[4,127,4,129],[4,131,4,140],[4,141,4,143],[4,77,4,80],[4,90,4,97],[4,98,4,101],[4,103,4,105],[4,106,4,108],[4,109,4,112],[1,77,1,80],[1,90,1,97],[1,98,1,101],[1,103,1,115],[1,117,1,129],[1,131,1,143],[3,113,3,115],[3,117,3,119],[3,120,3,126],[3,127,3,129],[3,131,3,140],[3,141,3,143],[3,77,3,80],[3,90,3,97],[3,98,3,101],[3,103,3,105],[3,106,3,108],[3,109,3,112],[2,113,2,115],[2,117,2,119],[2,120,2,126],[2,127,2,129],[2,131,2,140],[2,141,2,143],[2,77,2,80],[2,90,2,97],[2,98,2,101],[2,103,2,105],[2,106,2,108],[2,109,2,112],[6,141,6,143],[7,77,7,80],[7,90,7,97],[7,98,7,101],[7,103,7,105],[7,106,7,108],[6,77,6,80],[6,90,6,97],[6,98,6,101],[6,103,6,105],[6,106,6,108],[6,109,6,112],[5,113,5,115],[5,117,5,119],[5,120,5,126],[5,127,5,129],[5,131,5,140],[5,141,5,143],[5,77,5,80],[5,90,5,97],[5,98,5,101],[5,103,5,105],[5,106,5,108],[5,109,5,112],[8,127,8,129],[9,90,9,97],[9,98,9,101],[9,117,9,119],[9,120,9,126],[9,127,9,129],[7,109,7,112],[7,113,7,115],[7,117,7,119],[7,120,7,126],[7,127,7,129],[8,90,8,97],[8,98,8,101],[8,113,8,115],[8,117,8,119],[8,120,8,126],[6,113,6,115],[6,117,6,119],[6,120,6,126],[6,127,6,129],[12,117,12,119],[12,120,12,126],[12,127,12,129],[13,77,13,80],[13,90,13,97],[13,98,13,101],[13,103,13,105],[13,106,13,112],[13,113,13,115],[13,117,13,119],[12,77,12,80],[12,90,12,97],[12,98,12,101],[12,103,12,105],[12,106,12,112],[12,113,12,115],[10,127,10,129],[11,77,11,80],[11,90,11,97],[11,98,11,101],[11,103,11,105],[11,106,11,112],[11,113,11,115],[11,117,11,119],[11,120,11,126],[11,127,11,129],[10,77,10,80],[10,90,10,97],[10,98,10,101],[10,103,10,115],[10,117,10,119],[10,120,10,126],[16,127,16,129],[14,127,14,129],[15,90,15,97],[15,98,15,101],[15,103,15,105],[15,106,15,112],[15,113,15,115],[15,117,15,119],[15,120,15,126],[15,127,15,129],[13,120,13,126],[13,127,13,129],[14,77,14,80],[14,90,14,97],[14,98,14,101],[14,103,14,105],[14,106,14,112],[14,113,14,115],[14,117,14,119],[14,120,14,126],[17,45,17,54],[17,55,17,64],[17,65,17,67],[17,68,17,69],[17,70,17,79],[17,1,17,2],[17,3,17,5],[17,6,17,11],[17,12,17,14],[17,15,17,24],[17,25,17,34],[18,94,18,97],[16,103,16,105],[16,106,16,112],[16,113,16,115],[16,117,16,119],[16,120,16,126],[19,26,19,28],[19,29,19,34],[19,36,19,38],[18,68,18,69],[18,71,18,73],[18,74,18,79],[18,81,18,83],[18,84,18,89],[18,90,18,93],[18,39,18,44],[18,46,18,48],[18,49,18,54],[18,56,18,58],[18,59,18,64],[18,65,18,67],[17,127,17,129],[18,1,18,2],[18,3,18,5],[18,6,18,11],[18,12,18,14],[18,16,18,18],[18,19,18,24],[18,26,18,28],[18,29,18,34],[18,36,18,38],[17,80,17,89],[17,90,17,97],[17,103,17,105],[17,106,17,108],[17,109,17,112],[17,113,17,115],[17,35,17,44],[19,94,19,97],[19,98,19,101],[19,103,19,110],[19,111,19,114],[19,115,19,118],[20,1,20,2],[20,3,20,5],[20,6,20,11],[20,12,20,14],[20,16,20,18],[19,68,19,69],[19,71,19,73],[19,74,19,79],[19,81,19,83],[19,84,19,89],[19,90,19,93],[19,39,19,44],[19,46,19,48],[19,49,19,54],[19,56,19,58],[19,59,19,64],[19,65,19,67],[20,103,20,104],[20,105,20,110],[20,111,20,114],[20,115,20,118],[19,1,19,2],[19,3,19,5],[19,6,19,11],[19,12,19,14],[19,16,19,18],[19,19,19,24],[21,1,21,2],[21,3,21,5],[21,6,21,11],[21,12,21,14],[21,16,21,18],[21,19,21,24],[20,74,20,79],[20,81,20,83],[20,84,20,89],[20,90,20,93],[20,94,20,97],[20,98,20,101],[20,49,20,54],[20,56,20,58],[20,59,20,64],[20,65,20,67],[20,68,20,69],[20,71,20,73],[20,19,20,24],[20,26,20,28],[20,29,20,34],[20,36,20,38],[20,39,20,44],[20,46,20,48],[21,105,21,110],[21,111,21,114],[21,115,21,118],[22,1,22,2],[22,3,22,5],[22,6,22,11],[22,12,22,14],[22,16,22,18],[22,19,22,24],[22,26,22,28],[21,81,21,83],[21,84,21,89],[21,90,21,93],[21,94,21,97],[21,98,21,101],[21,103,21,104],[21,56,21,58],[21,59,21,64],[21,65,21,67],[21,68,21,69],[21,71,21,73],[21,74,21,79],[21,26,21,28],[21,29,21,34],[21,36,21,38],[21,39,21,44],[21,46,21,48],[21,49,21,54],[22,84,22,89],[22,90,22,93],[22,94,22,97],[22,98,22,101],[23,1,23,2],[23,3,23,5],[23,6,23,11],[23,12,23,14],[23,16,23,18],[23,19,23,24],[22,59,22,64],[22,65,22,67],[22,68,22,69],[22,71,22,73],[22,74,22,79],[22,81,22,83],[22,29,22,34],[22,36,22,38],[22,39,22,44],[22,46,22,48],[22,49,22,54],[22,56,22,58],[23,81,23,83],[23,84,23,89],[23,90,23,93],[23,94,23,97],[23,98,23,101],[24,1,24,2],[24,3,24,5],[24,6,24,11],[24,12,24,14],[24,16,24,18],[23,56,23,58],[23,59,23,64],[23,65,23,67],[23,68,23,69],[23,71,23,73],[23,74,23,79],[23,26,23,28],[23,29,23,34],[23,36,23,38],[23,39,23,44],[23,46,23,48],[23,49,23,54],[24,74,24,79],[24,81,24,83],[24,84,24,89],[24,90,24,93],[24,94,24,97],[24,98,24,101],[24,49,24,54],[24,56,24,58],[24,59,24,64],[24,65,24,67],[24,68,24,69],[24,71,24,73],[24,19,24,24],[24,26,24,28],[24,29,24,34],[24,36,24,38],[24,39,24,44],[24,46,24,48],[25,81,25,83],[25,84,25,89],[25,90,25,93],[25,94,25,97],[25,98,25,101],[26,1,26,2],[26,3,26,5],[26,6,26,11],[26,12,26,14],[26,16,26,18],[25,56,25,58],[25,59,25,64],[25,65,25,67],[25,68,25,69],[25,71,25,73],[25,74,25,79],[25,26,25,28],[25,29,25,34],[25,36,25,38],[25,39,25,44],[25,46,25,48],[25,49,25,54],[25,1,25,2],[25,3,25,5],[25,6,25,11],[25,12,25,14],[25,16,25,18],[25,19,25,24],[26,74,26,79],[26,81,26,83],[26,84,26,89],[26,90,26,93],[26,94,26,97],[26,98,26,101],[26,49,26,54],[26,56,26,58],[26,59,26,64],[26,65,26,67],[26,68,26,69],[26,71,26,73],[26,19,26,24],[26,26,26,28],[26,29,26,34],[26,36,26,38],[26,39,26,44],[26,46,26,48],[27,81,27,83],[27,84,27,89],[27,90,27,93],[27,94,27,97],[27,98,27,101],[28,1,28,2],[28,3,28,5],[28,6,28,11],[28,12,28,14],[28,16,28,18],[27,56,27,58],[27,59,27,64],[27,65,27,67],[27,68,27,69],[27,71,27,73],[27,74,27,79],[27,26,27,28],[27,29,27,34],[27,36,27,38],[27,39,27,44],[27,46,27,48],[27,49,27,54],[27,1,27,2],[27,3,27,5],[27,6,27,11],[27,12,27,14],[27,16,27,18],[27,19,27,24],[28,74,28,79],[28,81,28,83],[28,84,28,89],[28,90,28,93],[28,94,28,97],[28,98,28,101],[28,49,28,54],[28,56,28,58],[28,59,28,64],[28,65,28,67],[28,68,28,69],[28,71,28,73],[28,19,28,24],[28,26,28,28],[28,29,28,34],[28,36,28,38],[28,39,28,44],[28,46,28,48],[29,81,29,83],[29,84,29,89],[29,90,29,93],[29,94,29,97],[29,98,29,101],[30,1,30,2],[30,3,30,5],[30,6,30,11],[30,12,30,14],[30,16,30,18],[29,56,29,58],[29,59,29,64],[29,65,29,67],[29,68,29,69],[29,71,29,73],[29,74,29,79],[29,26,29,28],[29,29,29,34],[29,36,29,38],[29,39,29,44],[29,46,29,48],[29,49,29,54],[29,1,29,2],[29,3,29,5],[29,6,29,11],[29,12,29,14],[29,16,29,18],[29,19,29,24],[30,74,30,79],[30,81,30,83],[30,84,30,89],[30,90,30,93],[30,94,30,97],[30,98,30,101],[30,49,30,54],[30,56,30,58],[30,59,30,64],[30,65,30,67],[30,68,30,69],[30,71,30,73],[30,19,30,24],[30,26,30,28],[30,29,30,34],[30,36,30,38],[30,39,30,44],[30,46,30,48],[31,81,31,83],[31,84,31,89],[31,90,31,93],[31,94,31,97],[31,98,31,101],[32,1,32,2],[32,3,32,5],[32,6,32,11],[32,12,32,14],[32,16,32,18],[31,56,31,58],[31,59,31,64],[31,65,31,67],[31,68,31,69],[31,71,31,73],[31,74,31,79],[31,26,31,28],[31,29,31,34],[31,36,31,38],[31,39,31,44],[31,46,31,48],[31,49,31,54],[31,1,31,2],[31,3,31,5],[31,6,31,11],[31,12,31,14],[31,16,31,18],[31,19,31,24],[32,74,32,79],[32,81,32,83],[32,84,32,89],[32,90,32,93],[32,94,32,97],[32,98,32,101],[32,49,32,54],[32,56,32,58],[32,59,32,64],[32,65,32,67],[32,68,32,69],[32,71,32,73],[32,19,32,24],[32,26,32,28],[32,29,32,34],[32,36,32,38],[32,39,32,44],[32,46,32,48],[33,81,33,83],[33,84,33,89],[33,90,33,93],[33,94,33,97],[33,98,33,101],[34,1,34,2],[34,3,34,5],[34,6,34,11],[34,12,34,14],[34,16,34,18],[33,56,33,58],[33,59,33,64],[33,65,33,67],[33,68,33,69],[33,71,33,73],[33,74,33,79],[33,26,33,28],[33,29,33,34],[33,36,33,38],[33,39,33,44],[33,46,33,48],[33,49,33,54],[33,1,33,2],[33,3,33,5],[33,6,33,11],[33,12,33,14],[33,16,33,18],[33,19,33,24],[34,74,34,79],[34,81,34,83],[34,84,34,89],[34,90,34,93],[34,94,34,97],[34,98,34,101],[34,49,34,54],[34,56,34,58],[34,59,34,64],[34,65,34,67],[34,68,34,69],[34,71,34,73],[34,19,34,24],[34,26,34,28],[34,29,34,34],[34,36,34,38],[34,39,34,44],[34,46,34,48],[35,81,35,83],[35,84,35,89],[35,90,35,93],[35,94,35,97],[35,98,35,101],[36,1,36,2],[36,3,36,5],[36,6,36,11],[36,12,36,14],[36,16,36,18],[35,56,35,58],[35,59,35,64],[35,65,35,67],[35,68,35,69],[35,71,35,73],[35,74,35,79],[35,26,35,28],[35,29,35,34],[35,36,35,38],[35,39,35,44],[35,46,35,48],[35,49,35,54],[35,1,35,2],[35,3,35,5],[35,6,35,11],[35,12,35,14],[35,16,35,18],[35,19,35,24],[36,74,36,79],[36,81,36,83],[36,84,36,89],[36,90,36,93],[36,94,36,97],[36,98,36,101],[36,49,36,54],[36,56,36,58],[36,59,36,64],[36,65,36,67],[36,68,36,69],[36,71,36,73],[36,19,36,24],[36,26,36,28],[36,29,36,34],[36,36,36,38],[36,39,36,44],[36,46,36,48],[37,81,37,83],[37,84,37,89],[37,90,37,93],[37,94,37,97],[37,98,37,101],[38,1,38,2],[38,3,38,5],[38,6,38,11],[38,12,38,14],[38,16,38,18],[37,56,37,58],[37,59,37,64],[37,65,37,67],[37,68,37,69],[37,71,37,73],[37,74,37,79],[37,26,37,28],[37,29,37,34],[37,36,37,38],[37,39,37,44],[37,46,37,48],[37,49,37,54],[37,1,37,2],[37,3,37,5],[37,6,37,11],[37,12,37,14],[37,16,37,18],[37,19,37,24],[38,74,38,79],[38,81,38,83],[38,84,38,89],[38,90,38,93],[38,94,38,97],[38,98,38,101],[38,49,38,54],[38,56,38,58],[38,59,38,64],[38,65,38,67],[38,68,38,69],[38,71,38,73],[38,19,38,24],[38,26,38,28],[38,29,38,34],[38,36,38,38],[38,39,38,44],[38,46,38,48],[39,81,39,83],[39,84,39,89],[39,90,39,93],[39,94,39,97],[39,98,39,101],[40,1,40,2],[40,3,40,5],[40,6,40,11],[40,12,40,14],[40,16,40,18],[39,56,39,58],[39,59,39,64],[39,65,39,67],[39,68,39,69],[39,71,39,73],[39,74,39,79],[39,26,39,28],[39,29,39,34],[39,36,39,38],[39,39,39,44],[39,46,39,48],[39,49,39,54],[39,1,39,2],[39,3,39,5],[39,6,39,11],[39,12,39,14],[39,16,39,18],[39,19,39,24],[40,74,40,79],[40,81,40,83],[40,84,40,89],[40,90,40,93],[40,94,40,97],[40,98,40,101],[40,49,40,54],[40,56,40,58],[40,59,40,64],[40,65,40,67],[40,68,40,69],[40,71,40,73],[40,19,40,24],[40,26,40,28],[40,29,40,34],[40,36,40,38],[40,39,40,44],[40,46,40,48],[41,81,41,83],[41,84,41,89],[41,90,41,93],[41,94,41,97],[41,98,41,101],[42,1,42,2],[42,3,42,5],[42,6,42,11],[42,12,42,14],[42,16,42,18],[41,56,41,58],[41,59,41,64],[41,65,41,67],[41,68,41,69],[41,71,41,73],[41,74,41,79],[41,26,41,28],[41,29,41,34],[41,36,41,38],[41,39,41,44],[41,46,41,48],[41,49,41,54],[41,1,41,2],[41,3,41,5],[41,6,41,11],[41,12,41,14],[41,16,41,18],[41,19,41,24],[42,74,42,79],[42,81,42,83],[42,84,42,89],[42,90,42,93],[42,94,42,97],[42,98,42,101],[42,49,42,54],[42,56,42,58],[42,59,42,64],[42,65,42,67],[42,68,42,69],[42,71,42,73],[42,19,42,24],[42,26,42,28],[42,29,42,34],[42,36,42,38],[42,39,42,44],[42,46,42,48],[43,81,43,83],[43,84,43,89],[43,90,43,93],[43,94,43,97],[43,98,43,101],[44,1,44,2],[44,3,44,5],[44,6,44,11],[44,12,44,14],[44,16,44,18],[43,56,43,58],[43,59,43,64],[43,65,43,67],[43,68,43,69],[43,71,43,73],[43,74,43,79],[43,26,43,28],[43,29,43,34],[43,36,43,38],[43,39,43,44],[43,46,43,48],[43,49,43,54],[43,1,43,2],[43,3,43,5],[43,6,43,11],[43,12,43,14],[43,16,43,18],[43,19,43,24],[44,74,44,79],[44,81,44,83],[44,84,44,89],[44,90,44,93],[44,94,44,97],[44,98,44,101],[44,49,44,54],[44,56,44,58],[44,59,44,64],[44,65,44,67],[44,68,44,69],[44,71,44,73],[44,19,44,24],[44,26,44,28],[44,29,44,34],[44,36,44,38],[44,39,44,44],[44,46,44,48],[45,81,45,83],[45,84,45,89],[45,90,45,93],[45,94,45,97],[45,98,45,101],[46,1,46,2],[46,3,46,5],[46,6,46,11],[46,12,46,14],[46,16,46,18],[45,56,45,58],[45,59,45,64],[45,65,45,67],[45,68,45,69],[45,71,45,73],[45,74,45,79],[45,26,45,28],[45,29,45,34],[45,36,45,38],[45,39,45,44],[45,46,45,48],[45,49,45,54],[45,1,45,2],[45,3,45,5],[45,6,45,11],[45,12,45,14],[45,16,45,18],[45,19,45,24],[46,74,46,79],[46,81,46,83],[46,84,46,89],[46,90,46,93],[46,94,46,97],[46,98,46,101],[46,49,46,54],[46,56,46,58],[46,59,46,64],[46,65,46,67],[46,68,46,69],[46,71,46,73],[46,19,46,24],[46,26,46,28],[46,29,46,34],[46,36,46,38],[46,39,46,44],[46,46,46,48],[47,81,47,83],[47,84,47,89],[47,90,47,93],[47,94,47,97],[47,98,47,101],[48,1,48,2],[48,3,48,5],[48,6,48,11],[48,12,48,14],[48,16,48,18],[47,56,47,58],[47,59,47,64],[47,65,47,67],[47,68,47,69],[47,71,47,73],[47,74,47,79],[47,26,47,28],[47,29,47,34],[47,36,47,38],[47,39,47,44],[47,46,47,48],[47,49,47,54],[47,1,47,2],[47,3,47,5],[47,6,47,11],[47,12,47,14],[47,16,47,18],[47,19,47,24],[48,74,48,79],[48,81,48,83],[48,84,48,89],[48,90,48,93],[48,94,48,97],[48,98,48,101],[48,49,48,54],[48,56,48,58],[48,59,48,64],[48,65,48,67],[48,68,48,69],[48,71,48,73],[48,19,48,24],[48,26,48,28],[48,29,48,34],[48,36,48,38],[48,39,48,44],[48,46,48,48],[49,81,49,83],[49,84,49,89],[49,90,49,93],[49,94,49,97],[49,98,49,101],[50,1,50,2],[50,3,50,5],[50,6,50,11],[50,12,50,14],[50,16,50,18],[49,56,49,58],[49,59,49,64],[49,65,49,67],[49,68,49,69],[49,71,49,73],[49,74,49,79],[49,26,49,28],[49,29,49,34],[49,36,49,38],[49,39,49,44],[49,46,49,48],[49,49,49,54],[49,1,49,2],[49,3,49,5],[49,6,49,11],[49,12,49,14],[49,16,49,18],[49,19,49,24],[50,74,50,79],[50,81,50,83],[50,84,50,89],[50,90,50,93],[50,94,50,97],[50,98,50,101],[50,49,50,54],[50,56,50,58],[50,59,50,64],[50,65,50,67],[50,68,50,69],[50,71,50,73],[50,19,50,24],[50,26,50,28],[50,29,50,34],[50,36,50,38],[50,39,50,44],[50,46,50,48],[51,81,51,83],[51,84,51,89],[51,90,51,93],[51,94,51,97],[51,98,51,101],[52,1,52,2],[52,3,52,5],[52,6,52,11],[52,12,52,14],[52,16,52,18],[51,56,51,58],[51,59,51,64],[51,65,51,67],[51,68,51,69],[51,71,51,73],[51,74,51,79],[51,26,51,28],[51,29,51,34],[51,36,51,38],[51,39,51,44],[51,46,51,48],[51,49,51,54],[51,1,51,2],[51,3,51,5],[51,6,51,11],[51,12,51,14],[51,16,51,18],[51,19,51,24],[52,74,52,79],[52,81,52,83],[52,84,52,89],[52,90,52,93],[52,94,52,97],[52,98,52,101],[52,49,52,54],[52,56,52,58],[52,59,52,64],[52,65,52,67],[52,68,52,69],[52,71,52,73],[52,19,52,24],[52,26,52,28],[52,29,52,34],[52,36,52,38],[52,39,52,44],[52,46,52,48],[53,81,53,83],[53,84,53,89],[53,90,53,93],[53,94,53,97],[53,98,53,101],[53,56,53,58],[53,59,53,64],[53,65,53,67],[53,68,53,69],[53,71,53,73],[53,74,53,79],[53,26,53,28],[53,29,53,34],[53,36,53,38],[53,39,53,44],[53,46,53,48],[53,49,53,54],[53,1,53,2],[53,3,53,5],[53,6,53,11],[53,12,53,14],[53,16,53,18],[53,19,53,24]],"merged_total":1159,"flags":["merged_cut"]}
[null,null,null,null,null,null,null,null,null,null,null,null,null,null,null,null,null,null,null,null,null,null,null,null,null,null,null,null,null,null,null,null,null,null,null,null,null,null,null,null,null,null,null,null,null,null,null,null,null,null,null,null,null,null,null,null,null,null,null,null,null,null,null,null,null,null,null,null,null,"銀行メモ"]
[null,null,null,null,null,null,null,null,null,null,null,null,null,null,null,null,null,null,null,null,null,null,null,null,null,null,null,null,null,null,null,null,null,null,null,null,null,null,null,null,null,null,null,null,null,null,null,null,null,null,null,null,null,null,null,null,null,null,null,null,null,null,null,null,null,null,null,null,null,null,null,"夫□□銀行",null,null,null,null,null,2500000,null,null,null,null,null,"内訳メモからマイナス",null,null,null,null,null,null,"内訳メモ",null,null,null,null,null,null,null,"いくら",null,null,null,null,"車関係（積立の内訳）",null,null,null,null,null,null,null,null,null,null,null,null,null,"その他（積立の内訳）",null,null,null,null,null,null,null,null,null,null,null,null,null,"衣服費（内訳）"]
[null,null,null,null,null,null,null,null,null,null,null,null,null,null,null,null,null,null,null,null,null,null,null,null,null,null,null,null,null,null,null,null,null,null,null,null,null,null,null,null,null,null,null,null,null,null,null,null,null,null,null,null,null,null,null,null,null,null,null,null,null,null,null,null,null,null,null,null,null,null,null,"妻〇〇銀行",null,null,null,null,null,1500000,null,null,null,null,null,"純貯金からマイナス",null,null,null,null,null,null,"自由費",null,null,null,null,null,null,null,100000,null,null,null,null,"2022/01",null,null,"共通",null,null,"車検の積立て",null,null,null,200000,null,null,null,"勉強",null,null,"資格取得、自己啓発費用",null,null,null,null,null,null,200000,null,null,null,"妻",null,null,null,null,null,null,null,null,null,10000]
[null,null,null,null,null,null,null,null,null,null,null,null,null,null,null,null,null,null,null,null,null,null,null,null,null,null,null,null,null,null,null,null,null,null,null,null,null,null,null,null,null,null,null,null,null,null,null,null,null,null,null,null,null,null,null,null,null,null,null,null,null,null,null,null,null,null,null,null,null,null,null,null,null,null,null,null,null,null,null,null,null,null,null,"ボーナスから振分",null,null,null,null,null,null,null,null,null,null,null,null,null,null,null,null,null,null,null,"2021/05",null,null,"共通",null,null,"車税積立て（2人分）",null,null,null,50000,null,null,null,"子ども",null,null,"子①のお金（児童手当）",null,null,null,null,null,null,800000,null,null,null,"夫",null,null,null,null,null,null,null,null,null,10000]
[null,null,null,null,null,null,null,null,null,null,null,null,null,null,null,null,null,null,null,null,null,null,null,null,null,null,null,null,null,null,null,null,null,null,null,null,null,null,null,null,null,null,null,null,null,null,null,null,null,null,null,null,null,null,null,null,null,null,null,null,null,null,null,null,null,null,null,null,null,null,null,"ネット銀行定期",null,null,null,null,null,1000000,null,null,null,null,null,"（マイナスは純貯金からする",null,null,null,null,null,null,null,null,null,null,null,null,null,null,null,null,null,null,null,"2021/09",null,null,"妻",null,null,"車保険",null,null,null,60000,null,null,null,"子ども",null,null,"子①のお金（児童手当以外）",null,null,null,null,null,null,20000,null,null,null,"子①",null,null,null,null,null,null,null,null,null,20000]
[null,null,null,null,null,null,null,null,null,null,null,null,null,null,null,null,null,null,null,null,null,null,null,null,null,null,null,null,null,null,null,null,null,null,null,null,null,null,null,null,null,null,null,null,null,null,null,null,null,null,null,null,null,null,null,null,null,null,null,null,null,null,null,null,null,null,null,null,null,null,null,"ネット銀行運用",null,null,null,null,null,1000000,null,null,null,null,null,"こと！）",null,null,null,null,null,null,null,null,null,null,null,null,null,null,null,null,null,null,null,"2021/01",null,null,"夫",null,null,"車保険",null,null,null,0,null,null,null,"子ども",null,null,"子①のお金（将来の学費貯金）",null,null,null,null,null,null,500000,null,null,null,"子②",null,null,null,null,null,null,null,null,null,20000]
[null,null,null,null,null,null,null,null,null,null,null,null,null,null,null,null,null,null,null,null,null,null,null,null,null,null,null,null,null,null,null,null,null,null,null,null,null,null,null,null,null,null,null,null,null,null,null,null,null,null,null,null,null,null,null,null,null,null,null,null,null,null,null,null,null,null,null,null,null,null,null,"カード払い予定",null,null,null,null,null,100000,null,null,null,null,null,null,null,null,null,null,null,null,"旅行用（日帰り含む）",null,null,null,null,null,null,null,160000,null,null,null,null,2025,null,null,"妻",null,null,"車の買替え用",null,null,null,500000,null,null,null,"子ども",null,null,"子②のお金（児童手当）",null,null,null,null,null,null,100000,null,null,null,null,null,null,null,null,null,null,null,null,null,{"$f":"SUM(EL3:EN6)","v":60000}]
[null,null,null,null,null,null,null,null,null,null,null,null,null,null,null,null,null,null,null,null,null,null,null,null,null,null,null,null,null,null,null,null,null,null,null,null,null,null,null,null,null,null,null,null,null,null,null,null,null,null,null,null,null,null,null,null,null,null,null,null,null,null,null,null,null,null,null,null,null,null,null,"ゆうちょ",null,null,null,null,null,20000,null,null,null,null,null,null,null,null,null,null,null,null,"娯楽費",null,null,null,null,null,null,null,30000,null,null,null,null,null,null,null,null,null,null,null,null,null,null,null,null,null,null,"子ども",null,null,"子②のお金（児童手当以外）",null,null,null,null,null,null,30000]
[null,null,null,null,null,null,null,null,null,null,null,null,null,null,null,null,null,null,null,null,null,null,null,null,null,null,null,null,null,null,null,null,null,null,null,null,null,null,null,null,null,null,null,null,null,null,null,null,null,null,null,null,null,null,null,null,null,null,null,null,null,null,null,null,null,null,null,null,null,null,null,null,null,null,null,null,null,null,null,null,null,null,null,null,null,null,null,null,null,null,"衣服費　※",null,null,null,null,null,null,null,{"$f":"EL7","v":60000},null,null,null,null,null,null,null,null,null,null,null,null,null,null,{"$f":"SUM(DJ3:DL8)","v":810000},null,null,null,"子ども",null,null,"子②のお金（将来の学費貯金）",null,null,null,null,null,null,200000]
[null,null,null,null,null,null,null,null,null,null,null,null,null,null,null,null,null,null,null,null,null,null,null,null,null,null,null,null,null,null,null,null,null,null,null,null,null,null,null,null,null,null,null,null,null,null,null,null,null,null,null,null,null,null,null,null,null,null,null,null,null,null,null,null,null,null,null,null,null,"学資・保険運用",null,null,null,null,null,null,null,null,null,null,null,null,null,null,null,null,null,null,null,null,"住宅関係　※",null,null,null,null,null,null,null,{"$f":"DJ18","v":900000}]
[null,null,null,null,null,null,null,null,null,null,null,null,null,null,null,null,null,null,null,null,null,null,null,null,null,null,null,null,null,null,null,null,null,null,null,null,null,null,null,null,null,null,null,null,null,null,null,null,null,null,null,null,null,null,null,null,null,null,null,null,null,null,null,null,null,null,null,null,null,null,null,"子①学資保険",null,null,null,null,"2035","200万（予定）",null,null,null,null,null,null,null,null,null,null,null,null,"車関係　※",null,null,null,null,null,null,null,{"$f":"DJ9","v":810000},null,null,null,null,"住宅関係（積立の内訳）"]
[null,null,null,null,null,null,null,null,null,null,null,null,null,null,null,null,null,null,null,null,null,null,null,null,null,null,null,null,null,null,null,null,null,null,null,null,null,null,null,null,null,null,null,null,null,null,null,null,null,null,null,null,null,null,null,null,null,null,null,null,null,null,null,null,null,null,null,null,null,null,null,null,null,null,null,null,null,null,null,null,null,null,null,null,null,null,null,null,null,null,"その他の積立　※",null,null,null,null,null,null,null,{"$f":"DX18","v":3960000},null,null,null,null,"住宅補修用",null,null,"太陽光プラス分",null,null,null,null,null,null,400000,null,null,null,"別管理",null,null,"生活防衛資金",null,null,null,null,null,null,1500000]
[null,null,null,null,null,null,null,null,null,null,null,null,null,null,null,null,null,null,null,null,null,null,null,null,null,null,null,null,null,null,null,null,null,null,null,null,null,null,null,null,null,null,null,null,null,null,null,null,null,null,null,null,null,null,null,null,null,null,null,null,null,null,null,null,null,null,null,null,null,null,null,null,null,null,null,null,null,null,null,null,null,null,null,null,null,null,null,null,null,null,null,null,null,null,null,null,null,null,null,null,null,null,null,"住宅補修用",null,null,"家メンテナンス",null,null,null,null,null,null,0]
[]
[null,null,null,null,null,null,null,null,null,null,null,null,null,null,null,null,null,null,null,null,null,null,null,null,null,null,null,null,null,null,null,null,null,null,null,null,null,null,null,null,null,null,null,null,null,null,null,null,null,null,null,null,null,null,null,null,null,null,null,null,null,null,null,null,null,null,null,null,null,null,null,null,null,null,null,null,null,null,null,null,null,null,null,null,null,null,null,null,null,null,"貯金用",null,null,null,null,null,null,null,{"$f":"(SUM(BZ2:CC6)+BZ8)-SUM(CU3:CX14)","v":0},null,null,null,null,"税金",null,null,"固定資産税積立て",null,null,null,null,null,null,200000,null,null,null,"別管理",null,null,"家電まとめて",null,null,null,null,null,null,200000]
[null,null,null,null,null,null,null,null,null,null,null,null,null,null,null,null,null,null,null,null,null,null,null,null,null,null,null,null,null,null,null,null,null,null,null,null,null,null,null,null,null,null,null,null,null,null,null,null,null,null,null,null,null,null,null,null,null,null,null,null,null,null,null,null,null,null,null,null,null,null,null,null,null,null,null,null,null,null,null,null,null,null,null,null,null,null,null,null,null,null,"合計",null,null,null,null,null,null,null,{"$f":"SUM(CU3:CX15)","v":6020000},null,null,null,null,null,null,null,null,null,null,null,null,null,null,null,null,null,null,"別管理",null,null,"定額給付金",null,null,null,null,null,null,330000]
[null,null,null,null,null,null,null,null,null,null,null,null,null,null,null,null,null,null,null,null,null,null,null,null,null,null,null,null,null,null,null,null,null,null,null,null,null,null,null,null,null,null,null,null,null,null,null,null,null,null,null,null,null,null,null,null,null,null,null,null,null,null,null,null,null,null,null,null,null,null,null,null,null,null,null,null,null,null,null,null,null,null,null,null,null,null,null,null,null,null,null,null,null,null,null,null,null,null,null,null,null,null,null,"住宅ローン",null,null,"繰上げ返済用",null,null,null,null,null,null,300000,null,null,null,"予算確保",null,null,"自転車用",null,null,null,null,null,null,80000]
[null,"日付",null,"入ったお金",null,null,"入った理由",null,null,null,null,null,"使ったお金",null,null,"食費",null,null,null,null,null,null,null,null,null,"日用雑貨・化粧品",null,null,null,null,null,null,null,null,null,"娯楽・衣服",null,null,null,null,null,null,null,null,null,"ガソリン・車関係",null,null,null,null,null,null,null,null,null,"その他（医療費含）",null,null,null,null,null,null,null,null,null,"残金",null,null,"日付",null,"入ったお金・理由",null,null,null,null,null,null,null,null,null,"使ったお金・理由",null,null,null,null,null,null,null,null,null,"残金",null,null,null,null,null,null,null,null,null,null,null,null,null,null,null,null,null,null,null,null,null,null,{"$f":"SUM(DJ12:DL17)","v":900000},null,null,null,null,null,null,null,null,null,null,null,null,null,{"$f":"SUM(DX3:DZ17)","v":3960000}]
[null,null,null,null,null,null,null,null,null,null,null,null,{"$f":"Q19+AA19+AK19+AU19+BE19","v":0},null,null,null,null,null,null,null,null,null,null,null,null,null,null,null,null,"前月からの繰越",null,null,null,null,null,null,null,null,null,null,null,null,null,null,null,null,null,null,null,null,null,null,null,null,null,null,null,null,null,null,null,null,null,null,null,11097]
[null,1,null,150000,null,null,"1月分の生活費",null,null,null,null,null,60000,null,null,null,null,null,null,null,null,null,null,null,null,null,null,null,null,null,null,null,null,null,null,null,null,null,null,null,null,null,null,null,null,null,null,null,null,null,null,null,null,null,null,null,60000,null,null,"２人分おこづかい",null,null,null,null,null,{"$f":"IF(B20=\"\",0,BN19+D20-M20)","v":101097},null,null,null,null,null,null,null,null,null,null,null,null,null,null,"7M",150000,null,null,"1月分生活費",null,null,null,null,null,"夫□□銀行",null,null,null,{"$f":"BZ2-CD20","v":2350000},null,null,null,null,null,null,null,null,"カード払い予定",null,null,null,null,null,null,null,"銀行",null,null,null,"いくら"]
[null,1,null,null,null,null,null,null,null,null,null,null,5000,null,null,11,5000,null,null,"材料",null,null,null,null,null,null,null,null,null,null,null,null,null,null,null,null,null,null,null,null,null,null,null,null,null,null,null,null,null,null,null,null,null,null,null,null,null,null,null,null,null,null,null,null,null,96097,null,null,null,null,null,null,null,null,null,null,null,null,null,null,null,null,null,null,null,null,null,null,null,null,null,null,null,null,null,null,null,null,null,null,null,null,null,"12月",null,"写真ネットプリント",null,null,null,null,null,"夫□□銀行",null,null,null,2000]
[null,3,null,null,null,null,null,null,null,null,null,null,4000,null,null,12,4000,null,null,"お米",null,null,null,null,null,null,null,null,null,null,null,null,null,null,null,null,null,null,null,null,null,null,null,null,null,null,null,null,null,null,null,null,null,null,null,null,null,null,null,null,null,null,null,null,null,92097,null,null,15,null,"6M",6000,null,null,"化粧水",null,null,null,null,null,null,null,null,null,null,null,null,null,null,null,"カード払い予定",null,null,null,{"$f":"BZ7+BT22","v":106000},null,null,null,null,null,null,null,null,"12月",null,"タオル",null,null,null,null,null,"夫□□銀行",null,null,null,3000]
[null,5,null,null,null,null,null,null,null,null,null,null,12500,null,null,11,6000,null,null,"材料",null,null,null,null,null,null,null,null,null,null,null,null,null,null,null,33,3500,null,null,"くつ、靴下",null,null,null,null,null,41,3000,null,null,"ガソリン",null,null,null,null,null,null,null,null,null,null,null,null,null,null,null,79597,null,null,18,null,null,null,null,null,null,null,null,null,null,null,73,7000,null,null,"動物園",null,null,null,null,null,"夫□□銀行",null,null,null,{"$f":"CQ20-CD23","v":2343000},null,null,null,"娯楽費",null,null,null,null,"1月",null,"化粧水",null,null,null,null,null,"夫□□銀行",null,null,null,6000]
[null,10,null,null,null,null,null,null,null,null,null,null,7000,null,null,11,7000,null,null,null,null,null,null,null,null,null,null,null,null,null,null,null,null,null,null,null,null,null,null,null,null,null,null,null,null,null,null,null,null,null,null,null,null,null,null,null,null,null,null,null,null,null,null,null,null,72597,null,null,20,null,null,20000,null,null,"児童手当",null,null,null,null,null,null,null,null,null,null,null,null,null,null,null,"夫□□銀行",null,null,null,{"$f":"CQ23+BT24","v":2363000},null,null,null,"こどものお金",null,null,null,null,"1月",null,"自転車",null,null,null,null,null,"夫□□銀行",null,null,null,50000,null,null,null,"①"]
[null,15,null,null,null,null,null,null,null,null,null,null,14000,null,null,11,8000,null,null,null,null,null,null,null,null,22,6000,null,null,"化粧水",null,null,null,null,null,null,null,null,null,null,null,null,null,null,null,null,null,null,null,null,null,null,null,null,null,null,null,null,null,null,null,null,null,null,null,58597,null,null,22,null,null,null,null,null,null,null,null,null,null,null,73,3000,null,null,"ユニクロ　服",null,null,null,null,null,"夫□□銀行",null,null,null,{"$f":"CQ24-CD25","v":2360000},null,null,null,"衣服費（子①）",null,null,null,null,"1月",null,"チャイルドシート",null,null,null,null,null,"夫□□銀行",null,null,null,12000,null,null,null,"｜"]
[null,20,null,null,null,null,null,null,null,null,null,null,10200,null,null,11,9000,null,null,null,null,null,null,null,null,null,null,null,null,null,null,null,null,null,null,null,null,null,null,null,null,null,null,null,null,null,null,null,null,null,null,null,null,null,null,null,1200,null,null,"100均一",null,null,null,null,null,48397,null,null,22,null,null,null,null,null,null,null,null,null,null,null,73,5000,null,null,"ユニクロ　服",null,null,null,null,null,"夫□□銀行",null,null,null,2355000,null,null,null,"衣服費（子②）",null,null,null,null,"1月",null,"ヘルメット",null,null,null,null,null,"夫□□銀行",null,null,null,3000,null,null,null,"①"]
[null,25,null,null,null,null,null,null,null,null,null,null,6000,null,null,11,1000,null,null,null,null,null,null,null,null,null,null,null,null,null,null,null,null,null,null,null,null,null,null,null,null,null,null,null,null,42,5000,null,null,"ガソリン",null,null,null,null,null,null,null,null,null,null,null,null,null,null,null,42397,null,null,25,null,null,null,null,null,null,null,null,null,null,null,72,8000,null,null,"予防接種",null,null,null,null,null,"夫□□銀行",null,null,null,2347000,null,null,null,null,null,null,null,null,"1月",null,null,null,null,null,null,null,"夫□□銀行"]
[null,30,null,null,null,null,null,null,null,null,null,null,2000,null,null,11,2000,null,null,null,null,null,null,null,null,null,null,null,null,null,null,null,null,null,null,null,null,null,null,null,null,null,null,null,null,null,null,null,null,null,null,null,null,null,null,null,null,null,null,null,null,null,null,null,null,40397,null,null,28,null,null,null,null,null,null,null,null,null,null,null,73,50000,null,null,"自転車",null,null,null,null,null,"夫□□銀行",null,null,null,2297000,null,null,null,"自転車用",null,null,null,null,"1月",null,null,null,null,null,null,null,"夫□□銀行"]
[null,13,null,null,null,null,null,null,null,null,null,null,8000,null,null,null,null,null,null,null,null,null,null,null,null,21,8000,null,null,"薬局",null,null,null,null,null,null,null,null,null,null,null,null,null,null,null,null,null,null,null,null,null,null,null,null,null,null,null,null,null,null,null,null,null,null,null,32397,null,null,28,null,null,null,null,null,null,null,null,null,null,null,73,12000,null,null,"チャイルドシート",null,null,null,null,null,"夫□□銀行",null,null,null,2285000,null,null,null,"自転車用"]
[null,15,null,null,null,null,null,null,null,null,null,null,3500,null,null,null,null,null,null,null,null,null,null,null,null,23,3500,null,null,"おむつ",null,null,null,null,null,null,null,null,null,null,null,null,null,null,null,null,null,null,null,null,null,null,null,null,null,null,null,null,null,null,null,null,null,null,null,28897,null,null,28,null,null,null,null,null,null,null,null,null,null,null,73,3000,null,null,"ヘルメット",null,null,null,null,null,"夫□□銀行",null,null,null,2282000,null,null,null,"自転車用"]
[null,12,null,null,null,null,null,null,null,null,null,null,2500,null,null,null,null,null,null,null,null,null,null,null,null,null,null,null,null,null,null,null,null,null,null,null,null,null,null,null,null,null,null,null,null,null,null,null,null,null,null,null,null,null,null,52,2500,null,null,"内科（風邪）",null,null,null,null,null,26397,null,null,28,null,"6M",65000,null,null,"①まとめて",null,null,null,null,null,null,null,null,null,null,null,null,null,null,null,"カード払い予定",null,null,null,{"$f":"CQ22+BT31","v":171000}]
[null,null,null,null,null,null,null,null,null,null,null,null,0,null,null,null,null,null,null,null,null,null,null,null,null,null,null,null,null,null,null,null,null,null,null,null,null,null,null,null,null,null,null,null,null,null,null,null,null,null,null,null,null,null,null,null,null,null,null,null,null,null,null,null,null,0]
[null,null,null,null,null,null,null,null,null,null,null,null,0,null,null,null,null,null,null,null,null,null,null,null,null,null,null,null,null,null,null,null,null,null,null,null,null,null,null,null,null,null,null,null,null,null,null,null,null,null,null,null,null,null,null,null,null,null,null,null,null,null,null,null,null,0]
[null,null,null,null,null,null,null,null,null,null,null,null,0,null,null,null,null,null,null,null,null,null,null,null,null,null,null,null,null,null,null,null,null,null,null,null,null,null,null,null,null,null,null,null,null,null,null,null,null,null,null,null,null,null,null,null,null,null,null,null,null,null,null,null,null,0]
[null,null,null,null,null,null,null,null,null,null,null,null,0,null,null,null,null,null,null,null,null,null,null,null,null,null,null,null,null,null,null,null,null,null,null,null,null,null,null,null,null,null,null,null,null,null,null,null,null,null,null,null,null,null,null,null,null,null,null,null,null,null,null,null,null,0]
[null,null,null,null,null,null,null,null,null,null,null,null,0,null,null,null,null,null,null,null,null,null,null,null,null,null,null,null,null,null,null,null,null,null,null,null,null,null,null,null,null,null,null,null,null,null,null,null,null,null,null,null,null,null,null,null,null,null,null,null,null,null,null,null,null,0]
[null,null,null,null,null,null,null,null,null,null,null,null,0,null,null,null,null,null,null,null,null,null,null,null,null,null,null,null,null,null,null,null,null,null,null,null,null,null,null,null,null,null,null,null,null,null,null,null,null,null,null,null,null,null,null,null,null,null,null,null,null,null,null,null,null,0]
[null,null,null,null,null,null,null,null,null,null,null,null,0,null,null,null,null,null,null,null,null,null,null,null,null,null,null,null,null,null,null,null,null,null,null,null,null,null,null,null,null,null,null,null,null,null,null,null,null,null,null,null,null,null,null,null,null,null,null,null,null,null,null,null,null,0]
[null,null,null,null,null,null,null,null,null,null,null,null,0,null,null,null,null,null,null,null,null,null,null,null,null,null,null,null,null,null,null,null,null,null,null,null,null,null,null,null,null,null,null,null,null,null,null,null,null,null,null,null,null,null,null,null,null,null,null,null,null,null,null,null,null,0]
[null,null,null,null,null,null,null,null,null,null,null,null,0,null,null,null,null,null,null,null,null,null,null,null,null,null,null,null,null,null,null,null,null,null,null,null,null,null,null,null,null,null,null,null,null,null,null,null,null,null,null,null,null,null,null,null,null,null,null,null,null,null,null,null,null,0,null,null,28,null,"6M",null,null,null,"お金の移動",null,null,null,null,null,null,null,null,null,null,null,null,null,null,null,"夫□□銀行",null,null,null,{"$f":"CQ30+BT40","v":2282000}]
[null,null,null,null,null,null,null,null,null,null,null,null,0,null,null,null,null,null,null,null,null,null,null,null,null,null,null,null,null,null,null,null,null,null,null,null,null,null,null,null,null,null,null,null,null,null,null,null,null,null,null,null,null,null,null,null,null,null,null,null,null,null,null,null,null,0,null,null,28,null,null,null,null,null,null,null,null,null,null,null,"7M",null,null,null,"お金の移動",null,null,null,null,null,"妻〇〇銀行",null,null,null,{"$f":"BZ3-CD41","v":1500000}]
[null,null,null,null,null,null,null,null,null,null,null,null,0,null,null,null,null,null,null,null,null,null,null,null,null,null,null,null,null,null,null,null,null,null,null,null,null,null,null,null,null,null,null,null,null,null,null,null,null,null,null,null,null,null,null,null,null,null,null,null,null,null,null,null,null,0,null,null,25,null,null,300000,null,null,"お給料1月分(夫)",null,null,null,null,null,null,null,null,null,null,null,null,null,null,null,"夫□□銀行",null,null,null,{"$f":"CQ40+BT42","v":2582000}]
[null,null,null,null,null,null,null,null,null,null,null,null,0,null,null,null,null,null,null,null,null,null,null,null,null,null,null,null,null,null,null,null,null,null,null,null,null,null,null,null,null,null,null,null,null,null,null,null,null,null,null,null,null,null,null,null,null,null,null,null,null,null,null,null,null,0,null,null,25,null,null,300000,null,null,"お給料1月分（妻）",null,null,null,null,null,null,null,null,null,null,null,null,null,null,null,"妻〇〇銀行",null,null,null,{"$f":"CQ41+BT43","v":1800000}]
[null,null,null,null,null,null,null,null,null,null,null,null,0,null,null,null,null,null,null,null,null,null,null,null,null,null,null,null,null,null,null,null,null,null,null,null,null,null,null,null,null,null,null,null,null,null,null,null,null,null,null,null,null,null,null,null,null,null,null,null,null,null,null,null,null,0,null,null,25,null,null,10000,null,null,"太陽光発電プラス分",null,null,null,null,null,null,null,null,null,null,null,null,null,null,null,"夫□□銀行",null,null,null,{"$f":"CQ42+BT44","v":2592000},null,null,null,"太陽光ﾌﾟﾗｽ分"]
[null,null,null,null,null,null,null,null,null,null,null,null,0,null,null,null,null,null,null,null,null,null,null,null,null,null,null,null,null,null,null,null,null,null,null,null,null,null,null,null,null,null,null,null,null,null,null,null,null,null,null,null,null,null,null,null,null,null,null,null,null,null,null,null,null,0]
[null,null,null,null,null,null,null,null,null,null,null,null,0,null,null,null,null,null,null,null,null,null,null,null,null,null,null,null,null,null,null,null,null,null,null,null,null,null,null,null,null,null,null,null,null,null,null,null,null,null,null,null,null,null,null,null,null,null,null,null,null,null,null,null,null,0]
[null,null,null,null,null,null,null,null,null,null,null,null,0,null,null,null,null,null,null,null,null,null,null,null,null,null,null,null,null,null,null,null,null,null,null,null,null,null,null,null,null,null,null,null,null,null,null,null,null,null,null,null,null,null,null,null,null,null,null,null,null,null,null,null,null,0]
[null,null,null,null,null,null,null,null,null,null,null,null,0,null,null,null,null,null,null,null,null,null,null,null,null,null,null,null,null,null,null,null,null,null,null,null,null,null,null,null,null,null,null,null,null,null,null,null,null,null,null,null,null,null,null,null,null,null,null,null,null,null,null,null,null,0]
[null,null,null,null,null,null,null,null,null,null,null,null,0,null,null,null,null,null,null,null,null,null,null,null,null,null,null,null,null,null,null,null,null,null,null,null,null,null,null,null,null,null,null,null,null,null,null,null,null,null,null,null,null,null,null,null,null,null,null,null,null,null,null,null,null,0]
[null,null,null,null,null,null,null,null,null,null,null,null,0,null,null,null,null,null,null,null,null,null,null,null,null,null,null,null,null,null,null,null,null,null,null,null,null,null,null,null,null,null,null,null,null,null,null,null,null,null,null,null,null,null,null,null,null,null,null,null,null,null,null,null,null,0]
[null,null,null,null,null,null,null,null,null,null,null,null,0,null,null,null,null,null,null,null,null,null,null,null,null,null,null,null,null,null,null,null,null,null,null,null,null,null,null,null,null,null,null,null,null,null,null,null,null,null,null,null,null,null,null,null,null,null,null,null,null,null,null,null,null,0,null,null,null,null,null,null,null,null,null,null,null,null,null,null,"7M",80000,null,null,"カード引き落し",null,null,null,null,null,"カード払い予定",null,null,null,{"$f":"CQ31-CD51","v":91000}]
[null,null,null,null,null,null,null,null,null,null,null,null,0,null,null,null,null,null,null,null,null,null,null,null,null,null,null,null,null,null,null,null,null,null,null,null,null,null,null,null,null,null,null,null,null,null,null,null,null,null,null,null,null,null,null,null,null,null,null,null,null,null,null,null,null,0,null,null,null,null,"6M",{"$f":"SUMIF(CJ60:CJ71,\"カード\",BZ60:BZ71)","v":55000},null,null,"カード払い予定",null,null,null,null,null,null,null,null,null,null,null,null,null,null,null,"カード払い予定",null,null,null,{"$f":"CQ51+BT52","v":146000}]
[null,null,null,null,null,null,null,null,null,null,null,null,0,null,null,null,null,null,null,null,null,null,null,null,null,null,null,null,null,null,null,null,null,null,null,null,null,null,null,null,null,null,null,null,null,null,null,null,null,null,null,null,null,null,null,null,null,null,null,null,null,null,null,null,null,0,null,null,null,null,null,null,null,null,null,null,null,null,null,null,71,{"$f":"SUM(BZ60:CB70)","v":137600},null,null,"固定支出",null,null,null,null,null,"夫□□銀行",null,null,null,{"$f":"CQ44-CD53","v":2454400}]
[null,null,null,null,null,null,null,null,null,null,null,null,0,null,null,null,null,null,null,null,null,null,null,null,null,null,null,null,null,null,null,null,null,null,null,null,null,null,null,null,null,null,null,null,null,null,null,null,null,null,null,null,null,null,null,null,null,null,null,null,null,null,null,null,null,0,null,null,null,null,null,null,null,null,null,null,null,null,null,null,71,2000,null,null,"小学校引落とし",null,null,null,null,null,"ゆうちょ",null,null,null,{"$f":"BZ8-CD54","v":18000}]
[null,null,null,null,null,null,null,null,null,null,null,null,0,null,null,null,null,null,null,null,null,null,null,null,null,null,null,null,null,null,null,null,null,null,null,null,null,null,null,null,null,null,null,null,null,null,null,null,null,null,null,null,null,null,null,null,null,null,null,null,null,null,null,null,null,0]
[null,null,null,null,null,null,null,null,null,null,null,null,0,null,null,null,null,null,null,null,null,null,null,null,null,null,null,null,null,null,null,null,null,null,null,null,null,null,null,null,null,null,null,null,null,null,null,null,null,null,null,null,null,null,null,null,null,null,null,null,null,null,null,null,null,0]
[]
[]
[null,null,null,null,null,null,null,null,null,null,null,null,null,"生活費支出",null,{"$f":"SUM(M20:O56)","v":134700},null,null,null,null,null,null,null,null,null,null,null,null,null,45000,null,null,null,null,null,null,26000,null,null,null,null,null,null,null,null,null,null,null,null,null,8000,null,null,null,null,null,null,15000,null,null,null,null,null,null,null,null,null,null,null,null,null,null,null,null,null,"日付",null,"お金",null,null,"理由",null,null,null,null,null,null,"どこから"]
[null,null,null,null,null,null,"収入",null,{"$f":"SUM(BT42:BV44)","v":610000},null,null,null,null,"支出",null,{"$f":"SUM(M20:O56)+BP60+BQ62+BQ63","v":362300},null,null,null,null,"＋　or －",null,null,{"$f":"I60-P60","v":247700},null,null,null,null,null,"食費",null,null,{"$f":"SUM(Q20:S56)","v":42000},null,null,null,"日雑・化粧",null,null,{"$f":"SUM(AA20:AC56)","v":17500},null,null,null,"娯楽・衣服",null,null,{"$f":"SUM(AK20:AM56)","v":3500},null,null,null,"ｶﾞｿﾘﾝ・車",null,null,{"$f":"SUM(AU20:AW56)","v":8000},null,null,null,"その他",null,null,{"$f":"SUM(BE20:BG56)","v":63700},null,null,null,"固定費",null,null,{"$f":"SUMIF(CC19:CC56,71,CD19:CF56)","v":139600},null,null,null,null,null,null,null,16,null,2000,null,null,"夫携帯",null,null,null,null,null,null,"カード"]
[null,null,null,null,null,null,null,null,null,null,null,null,null,null,null,null,null,null,null,null,null,null,null,null,null,null,null,null,null,null,null,null,null,null,null,null,null,null,null,null,null,null,null,null,null,null,null,null,null,null,null,null,null,null,null,null,null,null,null,null,null,null,null,null,null,null,null,null,null,null,null,null,null,null,null,31,null,2000,null,null,"妻携帯",null,null,null,null,null,null,"カード"]
[null,null,null,null,null,null,null,null,null,null,null,null,null,"(実質)",null,{"$f":"P60-(BQ62+BQ63)","v":274300},null,null,null,null,null,null,null,null,null,null,null,null,null,"(材料)",null,null,{"$f":"SUMIF(P20:P56,11,Q20:S56)","v":38000},null,null,null,"(日用雑貨)",null,null,{"$f":"SUMIF(Z20:Z56,21,AA20:AC56)","v":8000},null,null,null,"(服：夫)",null,null,{"$f":"SUMIF(AJ20:AJ56,31,AK20:AM56)+SUMIF(CU20:CU56,\"衣服費（夫）\",CD20:CF56)","v":0},null,null,null,"(ｶﾞｿﾘﾝ：夫)",null,null,{"$f":"SUMIF(AT20:AT56,41,AU20:AW56)","v":3000},null,null,null,"(医療：夫)",null,null,{"$f":"SUMIF(BD20:BD56,51,BE20:BG56)","v":0},null,null,null,"純貯金から-",null,null,null,{"$f":"SUMIF(CC19:CC56,72,CD19:CF56)","v":8000},null,null,null,null,null,null,31,null,500,null,null,"通話料",null,null,null,null,null,null,"カード"]
[null,null,null,null,null,null,null,null,null,null,null,null,null,null,null,null,null,null,null,null,null,null,null,null,null,null,null,null,null,"(米代)",null,null,{"$f":"SUMIF(P20:P56,12,Q20:S56)","v":4000},null,null,null,"(化粧品)",null,null,{"$f":"SUMIF(Z20:Z56,22,AA20:AC56)","v":6000},null,null,null,"(服：妻)",null,null,{"$f":"SUMIF(AJ20:AJ56,32,AK20:AM56)+SUMIF(CU20:CU56,\"衣服費（妻）\",CD20:CF56)","v":0},null,null,null,"(ｶﾞｿﾘﾝ：妻)",null,null,{"$f":"SUMIF(AT20:AT56,42,AU20:AW56)","v":5000},null,null,null,"(医療：妻)",null,null,{"$f":"SUMIF(BD20:BD56,52,BE20:BG56)","v":2500},null,null,null,"振分貯金から-",null,null,null,{"$f":"SUMIF(CC19:CC56,73,CD19:CF56)","v":80000},null,null,null,null,null,null,11,null,5500,null,null,"ネット",null,null,null,null,null,null,"カード"]
[null,null,null,null,null,null,null,null,null,null,null,null,null,null,null,null,null,null,null,null,null,null,null,null,null,null,null,null,null,"(外食)",null,null,{"$f":"SUMIF(P20:P56,13,Q20:S56)+SUMIF(CU20:CU56,\"外食\",CD20:CF56)","v":0},null,null,null,"(子②用品)",null,null,{"$f":"SUMIF(Z20:Z56,23,AA20:AC56)","v":3500},null,null,null,"(服：子①)",null,null,{"$f":"SUMIF(AJ20:AJ56,33,AK20:AM56)+SUMIF(CU20:CU56,\"衣服費（子①）\",CD20:CF56)","v":6500},null,null,null,"(車メンテ)",null,null,{"$f":"SUMIF(AT20:AT56,43,AU20:AW56)","v":0},null,null,null,"(医療：子①)",null,null,{"$f":"SUMIF(BD20:BD56,53,BE20:BG56)","v":0},null,null,null,null,null,null,null,null,null,null,null,null,null,null,25,null,8000,null,null,"電気1月分(555kwh)",null,null,null,null,null,null,"カード"]
[null,null,null,null,null,null,null,null,null,null,null,null,null,null,null,null,null,null,null,null,null,null,null,null,null,null,null,null,null,null,null,null,null,null,null,null,null,null,null,null,null,null,null,"(服：子②)　",null,null,{"$f":"SUMIF(AJ20:AJ56,33,AK20:AM56)+SUMIF(CU20:CU56,\"衣服費（子②）\",CD20:CF56)","v":8500},null,null,null,null,null,null,null,null,null,null,"(医療：子②)",null,null,{"$f":"SUMIF(BD20:BD56,54,BE20:BG56)","v":0},null,null,null,"家計費ﾏｲﾅｽ",null,null,null,{"$f":"SUMIF(CU20:CU56,\"家計費補充\",CD20:CF56)","v":0},null,null,null,null,null,null,"-",null,"-",null,null,"水道（上下水）(55㎥)",null,null,null,null,null,null,"夫□□銀行"]
[null,null,null,null,null,null,null,null,null,null,null,null,null,null,null,null,null,null,null,null,null,null,null,null,null,null,null,null,null,null,null,null,null,null,null,null,null,null,null,null,null,null,null,"(娯楽)",null,null,{"$f":"SUMIF(AJ20:AJ56,33,AK20:AM56)+SUMIF(CU20:CU56,\"娯楽費\",CD20:CF56)","v":10500},null,null,null,null,null,null,null,null,null,null,"(学校)",null,null,{"$f":"SUMIF(BD20:BD56,61,BE20:BG56)","v":0},null,null,null,null,null,null,null,null,null,null,null,null,null,null,26,null,2600,null,null,"ＮＨＫ1、2月分",null,null,null,null,null,null,"夫□□銀行"]
[null,null,null,null,null,null,null,null,null,null,null,null,null,null,null,null,null,null,null,null,null,null,null,null,null,null,null,null,null,null,null,null,null,null,null,null,null,null,null,null,null,null,null,null,null,null,null,null,null,null,null,null,null,null,null,null,null,null,null,null,null,null,null,null,null,null,null,null,null,null,null,null,null,null,null,5,null,80000,null,null,"住宅ローン",null,null,null,null,null,null,"夫□□銀行"]
[null,null,null,null,null,null,null,null,null,null,null,null,null,null,null,null,null,null,null,null,null,null,null,null,null,null,null,null,null,null,null,null,null,null,null,null,null,null,null,null,null,null,null,null,null,null,null,null,null,null,null,null,null,null,null,null,null,null,null,null,null,null,null,null,null,null,null,null,null,null,null,null,null,null,null,1,null,15000,null,null,"生命・医療保険(夫)",null,null,null,null,null,null,"カード"]
[null,null,null,null,null,null,null,null,null,null,null,null,null,null,null,null,null,null,null,null,null,null,null,null,null,null,null,null,null,null,null,null,null,null,null,null,null,null,null,null,null,null,null,null,null,null,null,null,null,null,null,null,null,null,null,null,null,null,null,null,null,null,null,null,null,null,null,null,null,null,null,null,null,null,null,1,null,7000,null,null,"生命・医療保険(妻)",null,null,null,null,null,null,"カード"]
[null,null,null,null,null,null,null,null,null,null,null,null,null,null,null,null,null,null,null,null,null,null,null,null,null,null,null,null,null,null,null,null,null,null,null,null,null,null,null,null,null,null,null,null,null,null,null,null,null,null,null,null,null,null,null,null,null,null,null,null,null,null,null,null,null,null,null,null,null,null,null,null,null,null,null,1,null,15000,null,null,"学資保険",null,null,null,null,null,null,"カード"]

{"sheet":"2月","index":3,"n_rows":70,"n_cols":142,"rows_kept":70,"cut":false,"hidden":false,"merged":[[2,120,2,126],[2,127,2,129],[2,131,2,140],[2,141,2,143],[2,77,2,80],[2,90,2,97],[2,98,2,101],[2,103,2,105],[2,106,2,108],[2,109,2,112],[4,113,4,115],[4,117,4,119],[4,120,4,126],[4,127,4,129],[4,131,4,140],[4,141,4,143],[4,77,4,80],[4,90,4,97],[4,98,4,101],[4,103,4,105],[4,106,4,108],[4,109,4,112],[1,77,1,80],[1,90,1,97],[1,98,1,101],[1,103,1,115],[1,117,1,129],[1,131,1,143],[3,113,3,115],[3,117,3,119],[3,120,3,126],[3,127,3,129],[3,131,3,140],[3,141,3,143],[3,77,3,80],[3,90,3,97],[3,98,3,101],[3,103,3,105],[3,106,3,108],[3,109,3,112],[2,113,2,115],[2,117,2,119],[6,141,6,143],[7,77,7,80],[7,90,7,97],[7,98,7,101],[7,103,7,105],[7,106,7,108],[6,77,6,80],[6,90,6,97],[6,98,6,101],[6,103,6,105],[6,106,6,108],[6,109,6,112],[5,113,5,115],[5,117,5,119],[5,120,5,126],[5,127,5,129],[5,131,5,140],[5,141,5,143],[5,77,5,80],[5,90,5,97],[5,98,5,101],[5,103,5,105],[5,106,5,108],[5,109,5,112],[8,127,8,129],[9,90,9,97],[9,98,9,101],[9,117,9,119],[9,120,9,126],[9,127,9,129],[7,109,7,112],[7,113,7,115],[7,117,7,119],[7,120,7,126],[7,127,7,129],[8,90,8,97],[8,98,8,101],[8,113,8,115],[8,117,8,119],[8,120,8,126],[6,113,6,115],[6,117,6,119],[6,120,6,126],[6,127,6,129],[12,117,12,119],[12,120,12,126],[12,127,12,129],[13,77,13,80],[13,90,13,97],[13,98,13,101],[13,103,13,105],[13,106,13,112],[13,113,13,115],[13,117,13,119],[12,77,12,80],[12,90,12,97],[12,98,12,101],[12,103,12,105],[12,106,12,112],[12,113,12,115],[10,127,10,129],[11,77,11,80],[11,90,11,97],[11,98,11,101],[11,103,11,105],[11,106,11,112],[11,113,11,115],[11,117,11,119],[11,120,11,126],[11,127,11,129],[10,77,10,80],[10,90,10,97],[10,98,10,101],[10,103,10,115],[10,117,10,119],[10,120,10,126],[16,127,16,129],[14,127,14,129],[15,90,15,97],[15,98,15,101],[15,103,15,105],[15,106,15,112],[15,113,15,115],[15,117,15,119],[15,120,15,126],[15,127,15,129],[13,120,13,126],[13,127,13,129],[14,77,14,80],[14,90,14,97],[14,98,14,101],[14,103,14,105],[14,106,14,112],[14,113,14,115],[14,117,14,119],[14,120,14,126],[17,45,17,54],[17,55,17,64],[17,65,17,67],[17,68,17,69],[17,70,17,79],[17,1,17,2],[17,3,17,5],[17,6,17,11],[17,12,17,14],[17,15,17,24],[17,25,17,34],[18,94,18,97],[16,103,16,105],[16,106,16,112],[16,113,16,115],[16,117,16,119],[16,120,16,126],[19,26,19,28],[19,29,19,34],[19,36,19,38],[18,68,18,69],[18,71,18,73],[18,74,18,79],[18,81,18,83],[18,84,18,89],[18,90,18,93],[18,39,18,44],[18,46,18,48],[18,49,18,54],[18,56,18,58],[18,59,18,64],[18,65,18,67],[17,127,17,129],[18,1,18,2],[18,3,18,5],[18,6,18,11],[18,12,18,14],[18,16,18,18],[18,19,18,24],[18,26,18,28],[18,29,18,34],[18,36,18,38],[17,80,17,89],[17,90,17,97],[17,103,17,105],[17,106,17,108],[17,109,17,112],[17,113,17,115],[17,35,17,44],[19,94,19,97],[19,98,19,101],[19,103,19,110],[19,111,19,114],[19,115,19,118],[20,1,20,2],[20,3,20,5],[20,6,20,11],[20,12,20,14],[20,16,20,18],[19,68,19,69],[19,71,19,73],[19,74,19,79],[19,81,19,83],[19,84,19,89],[19,90,19,93],[19,39,19,44],[19,46,19,48],[19,49,19,54],[19,56,19,58],[19,59,19,64],[19,65,19,67],[20,103,20,104],[20,105,20,110],[20,111,20,114],[20,115,20,118],[19,1,19,2],[19,3,19,5],[19,6,19,11],[19,12,19,14],[19,16,19,18],[19,19,19,24],[21,1,21,2],[21,3,21,5],[21,6,21,11],[21,12,21,14],[21,16,21,18],[21,19,21,24],[20,74,20,79],[20,81,20,83],[20,84,20,89],[20,90,20,93],[20,94,20,97],[20,98,20,101],[20,49,20,54],[20,56,20,58],[20,59,20,64],[20,65,20,67],[20,68,20,69],[20,71,20,73],[20,19,20,24],[20,26,20,28],[20,29,20,34],[20,36,20,38],[20,39,20,44],[20,46,20,48],[21,81,21,83],[21,84,21,89],[21,90,21,93],[21,94,21,97],[21,98,21,101],[21,56,21,58],[21,59,21,64],[21,65,21,67],[21,68,21,69],[21,71,21,73],[21,74,21,79],[21,26,21,28],[21,29,21,34],[21,36,21,38],[21,39,21,44],[21,46,21,48],[21,49,21,54],[22,84,22,89],[22,90,22,93],[22,94,22,97],[22,98,22,101],[23,1,23,2],[23,3,23,5],[23,6,23,11],[23,12,23,14],[23,16,23,18],[23,19,23,24],[22,59,22,64],[22,65,22,67],[22,68,22,69],[22,71,22,73],[22,74,22,79],[22,81,22,83],[22,29,22,34],[22,36,22,38],[22,39,22,44],[22,46,22,48],[22,49,22,54],[22,56,22,58],[22,1,22,2],[22,3,22,5],[22,6,22,11],[22,12,22,14],[22,16,22,18],[22,19,22,24],[22,26,22,28],[23,81,23,83],[23,84,23,89],[23,90,23,93],[23,94,23,97],[23,98,23,101],[24,1,24,2],[24,3,24,5],[24,6,24,11],[24,12,24,14],[24,16,24,18],[23,56,23,58],[23,59,23,64],[23,65,23,67],[23,68,23,69],[23,71,23,73],[23,74,23,79],[23,26,23,28],[23,29,23,34],[23,36,23,38],[23,39,23,44],[23,46,23,48],[23,49,23,54],[24,74,24,79],[24,81,24,83],[24,84,24,89],[24,90,24,93],[24,94,24,97],[24,98,24,101],[24,49,24,54],[24,56,24,58],[24,59,24,64],[24,65,24,67],[24,68,24,69],[24,71,24,73],[24,19,24,24],[24,26,24,28],[24,29,24,34],[24,36,24,38],[24,39,24,44],[24,46,24,48],[25,81,25,83],[25,84,25,89],[25,90,25,93],[25,94,25,97],[25,98,25,101],[26,1,26,2],[26,3,26,5],[26,6,26,11],[26,12,26,14],[26,16,26,18],[25,56,25,58],[25,59,25,64],[25,65,25,67],[25,68,25,69],[25,71,25,73],[25,74,25,79],[25,26,25,28],[25,29,25,34],[25,36,25,38],[25,39,25,44],[25,46,25,48],[25,49,25,54],[25,1,25,2],[25,3,25,5],[25,6,25,11],[25,12,25,14],[25,16,25,18],[25,19,25,24],[26,74,26,79],[26,81,26,83],[26,84,26,89],[26,90,26,93],[26,94,26,97],[26,98,26,101],[26,49,26,54],[26,56,26,58],[26,59,26,64],[26,65,26,67],[26,68,26,69],[26,71,26,73],[26,19,26,24],[26,26,26,28],[26,29,26,34],[26,36,26,38],[26,39,26,44],[26,46,26,48],[27,81,27,83],[27,84,27,89],[27,90,27,93],[27,94,27,97],[27,98,27,101],[28,1,28,2],[28,3,28,5],[28,6,28,11],[28,12,28,14],[28,16,28,18],[27,56,27,58],[27,59,27,64],[27,65,27,67],[27,68,27,69],[27,71,27,73],[27,74,27,79],[27,26,27,28],[27,29,27,34],[27,36,27,38],[27,39,27,44],[27,46,27,48],[27,49,27,54],[27,1,27,2],[27,3,27,5],[27,6,27,11],[27,12,27,14],[27,16,27,18],[27,19,27,24],[28,74,28,79],[28,81,28,83],[28,84,28,89],[28,90,28,93],[28,94,28,97],[28,98,28,101],[28,49,28,54],[28,56,28,58],[28,59,28,64],[28,65,28,67],[28,68,28,69],[28,71,28,73],[28,19,28,24],[28,26,28,28],[28,29,28,34],[28,36,28,38],[28,39,28,44],[28,46,28,48],[29,81,29,83],[29,84,29,89],[29,90,29,93],[29,94,29,97],[29,98,29,101],[30,1,30,2],[30,3,30,5],[30,6,30,11],[30,12,30,14],[30,16,30,18],[29,56,29,58],[29,59,29,64],[29,65,29,67],[29,68,29,69],[29,71,29,73],[29,74,29,79],[29,26,29,28],[29,29,29,34],[29,36,29,38],[29,39,29,44],[29,46,29,48],[29,49,29,54],[29,1,29,2],[29,3,29,5],[29,6,29,11],[29,12,29,14],[29,16,29,18],[29,19,29,24],[30,74,30,79],[30,81,30,83],[30,84,30,89],[30,90,30,93],[30,94,30,97],[30,98,30,101],[30,49,30,54],[30,56,30,58],[30,59,30,64],[30,65,30,67],[30,68,30,69],[30,71,30,73],[30,19,30,24],[30,26,30,28],[30,29,30,34],[30,36,30,38],[30,39,30,44],[30,46,30,48],[31,81,31,83],[31,84,31,89],[31,90,31,93],[31,94,31,97],[31,98,31,101],[32,1,32,2],[32,3,32,5],[32,6,32,11],[32,12,32,14],[32,16,32,18],[31,56,31,58],[31,59,31,64],[31,65,31,67],[31,68,31,69],[31,71,31,73],[31,74,31,79],[31,26,31,28],[31,29,31,34],[31,36,31,38],[31,39,31,44],[31,46,31,48],[31,49,31,54],[31,1,31,2],[31,3,31,5],[31,6,31,11],[31,12,31,14],[31,16,31,18],[31,19,31,24],[32,74,32,79],[32,81,32,83],[32,84,32,89],[32,90,32,93],[32,94,32,97],[32,98,32,101],[32,49,32,54],[32,56,32,58],[32,59,32,64],[32,65,32,67],[32,68,32,69],[32,71,32,73],[32,19,32,24],[32,26,32,28],[32,29,32,34],[32,36,32,38],[32,39,32,44],[32,46,32,48],[33,81,33,83],[33,84,33,89],[33,90,33,93],[33,94,33,97],[33,98,33,101],[34,1,34,2],[34,3,34,5],[34,6,34,11],[34,12,34,14],[34,16,34,18],[33,56,33,58],[33,59,33,64],[33,65,33,67],[33,68,33,69],[33,71,33,73],[33,74,33,79],[33,26,33,28],[33,29,33,34],[33,36,33,38],[33,39,33,44],[33,46,33,48],[33,49,33,54],[33,1,33,2],[33,3,33,5],[33,6,33,11],[33,12,33,14],[33,16,33,18],[33,19,33,24],[34,74,34,79],[34,81,34,83],[34,84,34,89],[34,90,34,93],[34,94,34,97],[34,98,34,101],[34,49,34,54],[34,56,34,58],[34,59,34,64],[34,65,34,67],[34,68,34,69],[34,71,34,73],[34,19,34,24],[34,26,34,28],[34,29,34,34],[34,36,34,38],[34,39,34,44],[34,46,34,48],[35,81,35,83],[35,84,35,89],[35,90,35,93],[35,94,35,97],[35,98,35,101],[36,1,36,2],[36,3,36,5],[36,6,36,11],[36,12,36,14],[36,16,36,18],[35,56,35,58],[35,59,35,64],[35,65,35,67],[35,68,35,69],[35,71,35,73],[35,74,35,79],[35,26,35,28],[35,29,35,34],[35,36,35,38],[35,39,35,44],[35,46,35,48],[35,49,35,54],[35,1,35,2],[35,3,35,5],[35,6,35,11],[35,12,35,14],[35,16,35,18],[35,19,35,24],[36,74,36,79],[36,81,36,83],[36,84,36,89],[36,90,36,93],[36,94,36,97],[36,98,36,101],[36,49,36,54],[36,56,36,58],[36,59,36,64],[36,65,36,67],[36,68,36,69],[36,71,36,73],[36,19,36,24],[36,26,36,28],[36,29,36,34],[36,36,36,38],[36,39,36,44],[36,46,36,48],[37,81,37,83],[37,84,37,89],[37,90,37,93],[37,94,37,97],[37,98,37,101],[38,1,38,2],[38,3,38,5],[38,6,38,11],[38,12,38,14],[38,16,38,18],[37,56,37,58],[37,59,37,64],[37,65,37,67],[37,68,37,69],[37,71,37,73],[37,74,37,79],[37,26,37,28],[37,29,37,34],[37,36,37,38],[37,39,37,44],[37,46,37,48],[37,49,37,54],[37,1,37,2],[37,3,37,5],[37,6,37,11],[37,12,37,14],[37,16,37,18],[37,19,37,24],[38,74,38,79],[38,81,38,83],[38,84,38,89],[38,90,38,93],[38,94,38,97],[38,98,38,101],[38,49,38,54],[38,56,38,58],[38,59,38,64],[38,65,38,67],[38,68,38,69],[38,71,38,73],[38,19,38,24],[38,26,38,28],[38,29,38,34],[38,36,38,38],[38,39,38,44],[38,46,38,48],[39,81,39,83],[39,84,39,89],[39,90,39,93],[39,94,39,97],[39,98,39,101],[40,1,40,2],[40,3,40,5],[40,6,40,11],[40,12,40,14],[40,16,40,18],[39,56,39,58],[39,59,39,64],[39,65,39,67],[39,68,39,69],[39,71,39,73],[39,74,39,79],[39,26,39,28],[39,29,39,34],[39,36,39,38],[39,39,39,44],[39,46,39,48],[39,49,39,54],[39,1,39,2],[39,3,39,5],[39,6,39,11],[39,12,39,14],[39,16,39,18],[39,19,39,24],[40,74,40,79],[40,81,40,83],[40,84,40,89],[40,90,40,93],[40,94,40,97],[40,98,40,101],[40,49,40,54],[40,56,40,58],[40,59,40,64],[40,65,40,67],[40,68,40,69],[40,71,40,73],[40,19,40,24],[40,26,40,28],[40,29,40,34],[40,36,40,38],[40,39,40,44],[40,46,40,48],[41,81,41,83],[41,84,41,89],[41,90,41,93],[41,94,41,97],[41,98,41,101],[42,1,42,2],[42,3,42,5],[42,6,42,11],[42,12,42,14],[42,16,42,18],[41,56,41,58],[41,59,41,64],[41,65,41,67],[41,68,41,69],[41,71,41,73],[41,74,41,79],[41,26,41,28],[41,29,41,34],[41,36,41,38],[41,39,41,44],[41,46,41,48],[41,49,41,54],[41,1,41,2],[41,3,41,5],[41,6,41,11],[41,12,41,14],[41,16,41,18],[41,19,41,24],[42,74,42,79],[42,81,42,83],[42,84,42,89],[42,90,42,93],[42,94,42,97],[42,98,42,101],[42,49,42,54],[42,56,42,58],[42,59,42,64],[42,65,42,67],[42,68,42,69],[42,71,42,73],[42,19,42,24],[42,26,42,28],[42,29,42,34],[42,36,42,38],[42,39,42,44],[42,46,42,48],[43,81,43,83],[43,84,43,89],[43,90,43,93],[43,94,43,97],[43,98,43,101],[44,1,44,2],[44,3,44,5],[44,6,44,11],[44,12,44,14],[44,16,44,18],[43,56,43,58],[43,59,43,64],[43,65,43,67],[43,68,43,69],[43,71,43,73],[43,74,43,79],[43,26,43,28],[43,29,43,34],[43,36,43,38],[43,39,43,44],[43,46,43,48],[43,49,43,54],[43,1,43,2],[43,3,43,5],[43,6,43,11],[43,12,43,14],[43,16,43,18],[43,19,43,24],[44,74,44,79],[44,81,44,83],[44,84,44,89],[44,90,44,93],[44,94,44,97],[44,98,44,101],[44,49,44,54],[44,56,44,58],[44,59,44,64],[44,65,44,67],[44,68,44,69],[44,71,44,73],[44,19,44,24],[44,26,44,28],[44,29,44,34],[44,36,44,38],[44,39,44,44],[44,46,44,48],[45,81,45,83],[45,84,45,89],[45,90,45,93],[45,94,45,97],[45,98,45,101],[46,1,46,2],[46,3,46,5],[46,6,46,11],[46,12,46,14],[46,16,46,18],[45,56,45,58],[45,59,45,64],[45,65,45,67],[45,68,45,69],[45,71,45,73],[45,74,45,79],[45,26,45,28],[45,29,45,34],[45,36,45,38],[45,39,45,44],[45,46,45,48],[45,49,45,54],[45,1,45,2],[45,3,45,5],[45,6,45,11],[45,12,45,14],[45,16,45,18],[45,19,45,24],[46,74,46,79],[46,81,46,83],[46,84,46,89],[46,90,46,93],[46,94,46,97],[46,98,46,101],[46,49,46,54],[46,56,46,58],[46,59,46,64],[46,65,46,67],[46,68,46,69],[46,71,46,73],[46,19,46,24],[46,26,46,28],[46,29,46,34],[46,36,46,38],[46,39,46,44],[46,46,46,48],[47,81,47,83],[47,84,47,89],[47,90,47,93],[47,94,47,97],[47,98,47,101],[48,1,48,2],[48,3,48,5],[48,6,48,11],[48,12,48,14],[48,16,48,18],[47,56,47,58],[47,59,47,64],[47,65,47,67],[47,68,47,69],[47,71,47,73],[47,74,47,79],[47,26,47,28],[47,29,47,34],[47,36,47,38],[47,39,47,44],[47,46,47,48],[47,49,47,54],[47,1,47,2],[47,3,47,5],[47,6,47,11],[47,12,47,14],[47,16,47,18],[47,19,47,24],[48,74,48,79],[48,81,48,83],[48,84,48,89],[48,90,48,93],[48,94,48,97],[48,98,48,101],[48,49,48,54],[48,56,48,58],[48,59,48,64],[48,65,48,67],[48,68,48,69],[48,71,48,73],[48,19,48,24],[48,26,48,28],[48,29,48,34],[48,36,48,38],[48,39,48,44],[48,46,48,48],[49,81,49,83],[49,84,49,89],[49,90,49,93],[49,94,49,97],[49,98,49,101],[49,56,49,58],[49,59,49,64],[49,65,49,67],[49,68,49,69],[49,71,49,73],[49,74,49,79],[49,26,49,28],[49,29,49,34],[49,36,49,38],[49,39,49,44],[49,46,49,48],[49,49,49,54],[49,1,49,2],[49,3,49,5],[49,6,49,11],[49,12,49,14],[49,16,49,18],[49,19,49,24],[50,84,50,89],[50,90,50,93],[50,94,50,97],[50,98,50,101],[50,49,50,54],[50,56,50,58],[50,59,50,64],[50,65,50,67],[50,68,50,69],[50,71,50,73],[50,19,50,24],[50,26,50,28],[50,29,50,34],[50,36,50,38],[50,39,50,44],[50,46,50,48],[50,1,50,2],[50,3,50,5],[50,6,50,11],[50,12,50,14],[50,16,50,18],[50,74,50,79],[52,1,52,2],[52,3,52,5],[52,6,52,11],[52,12,52,14],[52,16,52,18],[51,56,51,58],[51,59,51,64],[51,65,51,67],[51,68,51,69],[51,71,51,73],[51,74,51,79],[51,26,51,28],[51,29,51,34],[51,36,51,38],[51,39,51,44],[51,46,51,48],[51,49,51,54],[51,1,51,2],[51,3,51,5],[51,6,51,11],[51,12,51,14],[51,16,51,18],[51,19,51,24],[52,74,52,79],[52,49,52,54],[52,56,52,58],[52,59,52,64],[52,65,52,67],[52,68,52,69],[52,71,52,73],[52,19,52,24],[52,26,52,28],[52,29,52,34],[52,36,52,38],[52,39,52,44],[52,46,52,48],[53,81,53,83],[53,84,53,89],[53,90,53,93],[53,94,53,97],[53,98,53,101],[52,81,52,83],[52,84,52,89],[52,90,52,93],[53,56,53,58],[53,59,53,64],[53,65,53,67],[53,68,53,69],[53,71,53,73],[53,74,53,79],[53,26,53,28],[53,29,53,34],[53,36,53,38],[53,39,53,44],[53,46,53,48],[53,49,53,54],[53,1,53,2],[53,3,53,5],[53,6,53,11],[53,12,53,14],[53,16,53,18],[53,19,53,24],[55,1,55,2],[55,3,55,5],[55,6,55,11],[55,12,55,14],[55,16,55,18],[55,19,55,24],[54,74,54,79],[54,81,54,83],[54,84,54,89],[54,90,54,93],[54,94,54,97],[54,98,54,101]],"merged_total":1167,"flags":["merged_cut"]}
[null,null,null,null,null,null,null,null,null,null,null,null,null,null,null,null,null,null,null,null,null,null,null,null,null,null,null,null,null,null,null,null,null,null,null,null,null,null,null,null,null,null,null,null,null,null,null,null,null,null,null,null,null,null,null,null,null,null,null,null,null,null,null,null,null,null,null,null,null,"銀行メモ"]
[null,null,null,null,null,null,null,null,null,null,null,null,null,null,null,null,null,null,null,null,null,null,null,null,null,null,null,null,null,null,null,null,null,null,null,null,null,null,null,null,null,null,null,null,null,null,null,null,null,null,null,null,null,null,null,null,null,null,null,null,null,null,null,null,null,null,null,null,null,null,null,"夫□□銀行",null,null,null,null,null,2454400,null,null,null,null,null,"内訳メモからマイナス",null,null,null,null,null,null,"内訳メモ",null,null,null,null,null,null,null,"いくら",null,null,null,null,"車関係（積立の内訳）",null,null,null,null,null,null,null,null,null,null,null,null,null,"その他（積立の内訳）",null,null,null,null,null,null,null,null,null,null,null,null,null,"衣服費（内訳）"]
[null,null,null,null,null,null,null,null,null,null,null,null,null,null,null,null,null,null,null,null,null,null,null,null,null,null,null,null,null,null,null,null,null,null,null,null,null,null,null,null,null,null,null,null,null,null,null,null,null,null,null,null,null,null,null,null,null,null,null,null,null,null,null,null,null,null,null,null,null,null,null,"妻〇〇銀行",null,null,null,null,null,1800000,null,null,null,null,null,"純貯金からマイナス",null,null,null,null,null,null,"自由費",null,null,null,null,null,null,null,100000,null,null,null,null,"2022/01",null,null,"共通",null,null,"車検の積立て",null,null,null,200000,null,null,null,"勉強",null,null,"資格取得、自己啓発費用",null,null,null,null,null,null,200000,null,null,null,"妻",null,null,null,null,null,null,null,null,null,10000]
[null,null,null,null,null,null,null,null,null,null,null,null,null,null,null,null,null,null,null,null,null,null,null,null,null,null,null,null,null,null,null,null,null,null,null,null,null,null,null,null,null,null,null,null,null,null,null,null,null,null,null,null,null,null,null,null,null,null,null,null,null,null,null,null,null,null,null,null,null,null,null,null,null,null,null,null,null,null,null,null,null,null,null,"ボーナスから振分",null,null,null,null,null,null,null,null,null,null,null,null,null,null,null,null,null,null,null,"2021/05",null,null,"共通",null,null,"車税積立て（2人分）",null,null,null,50000,null,null,null,"子ども",null,null,"子①のお金（児童手当）",null,null,null,null,null,null,810000,null,null,null,"夫",null,null,null,null,null,null,null,null,null,10000]
[null,null,null,null,null,null,null,null,null,null,null,null,null,null,null,null,null,null,null,null,null,null,null,null,null,null,null,null,null,null,null,null,null,null,null,null,null,null,null,null,null,null,null,null,null,null,null,null,null,null,null,null,null,null,null,null,null,null,null,null,null,null,null,null,null,null,null,null,null,null,null,"ネット銀行定期",null,null,null,null,null,1000000,null,null,null,null,null,"（マイナスは純貯金からする",null,null,null,null,null,null,null,null,null,null,null,null,null,null,null,null,null,null,null,"2021/09",null,null,"妻",null,null,"車保険",null,null,null,60000,null,null,null,"子ども",null,null,"子①のお金（児童手当以外）",null,null,null,null,null,null,20000,null,null,null,"子①",null,null,null,null,null,null,null,null,null,17000]
[null,null,null,null,null,null,null,null,null,null,null,null,null,null,null,null,null,null,null,null,null,null,null,null,null,null,null,null,null,null,null,null,null,null,null,null,null,null,null,null,null,null,null,null,null,null,null,null,null,null,null,null,null,null,null,null,null,null,null,null,null,null,null,null,null,null,null,null,null,null,null,"ネット銀行運用",null,null,null,null,null,1000000,null,null,null,null,null,"こと！）",null,null,null,null,null,null,null,null,null,null,null,null,null,null,null,null,null,null,null,"2021/01",null,null,"夫",null,null,"車保険",null,null,null,0,null,null,null,"子ども",null,null,"子①のお金（将来の学費貯金）",null,null,null,null,null,null,500000,null,null,null,"子②",null,null,null,null,null,null,null,null,null,15000]
[null,null,null,null,null,null,null,null,null,null,null,null,null,null,null,null,null,null,null,null,null,null,null,null,null,null,null,null,null,null,null,null,null,null,null,null,null,null,null,null,null,null,null,null,null,null,null,null,null,null,null,null,null,null,null,null,null,null,null,null,null,null,null,null,null,null,null,null,null,null,null,"カード払い予定",null,null,null,null,null,146000,null,null,null,null,null,null,null,null,null,null,null,null,"旅行用（日帰り含む）",null,null,null,null,null,null,null,160000,null,null,null,null,2025,null,null,"妻",null,null,"車の買替え用",null,null,null,500000,null,null,null,"子ども",null,null,"子②のお金（児童手当）",null,null,null,null,null,null,110000,null,null,null,null,null,null,null,null,null,null,null,null,null,{"$f":"SUM(EL3:EN6)","v":52000}]
[null,null,null,null,null,null,null,null,null,null,null,null,null,null,null,null,null,null,null,null,null,null,null,null,null,null,null,null,null,null,null,null,null,null,null,null,null,null,null,null,null,null,null,null,null,null,null,null,null,null,null,null,null,null,null,null,null,null,null,null,null,null,null,null,null,null,null,null,null,null,null,"ゆうちょ",null,null,null,null,null,18000,null,null,null,null,null,null,null,null,null,null,null,null,"娯楽費",null,null,null,null,null,null,null,27000,null,null,null,null,null,null,null,null,null,null,null,null,null,null,null,null,null,null,"子ども",null,null,"子②のお金（児童手当以外）",null,null,null,null,null,null,30000]
[null,null,null,null,null,null,null,null,null,null,null,null,null,null,null,null,null,null,null,null,null,null,null,null,null,null,null,null,null,null,null,null,null,null,null,null,null,null,null,null,null,null,null,null,null,null,null,null,null,null,null,null,null,null,null,null,null,null,null,null,null,null,null,null,null,null,null,null,null,null,null,null,null,null,null,null,null,null,null,null,null,null,null,null,null,null,null,null,null,null,"衣服費　※",null,null,null,null,null,null,null,{"$f":"EL7","v":52000},null,null,null,null,null,null,null,null,null,null,null,null,null,null,{"$f":"SUM(DJ3:DL8)","v":810000},null,null,null,"子ども",null,null,"子②のお金（将来の学費貯金）",null,null,null,null,null,null,200000]
[null,null,null,null,null,null,null,null,null,null,null,null,null,null,null,null,null,null,null,null,null,null,null,null,null,null,null,null,null,null,null,null,null,null,null,null,null,null,null,null,null,null,null,null,null,null,null,null,null,null,null,null,null,null,null,null,null,null,null,null,null,null,null,null,null,null,null,null,null,"学資・保険運用",null,null,null,null,null,null,null,null,null,null,null,null,null,null,null,null,null,null,null,null,"住宅関係　※",null,null,null,null,null,null,null,{"$f":"DJ18","v":910000}]
[null,null,null,null,null,null,null,null,null,null,null,null,null,null,null,null,null,null,null,null,null,null,null,null,null,null,null,null,null,null,null,null,null,null,null,null,null,null,null,null,null,null,null,null,null,null,null,null,null,null,null,null,null,null,null,null,null,null,null,null,null,null,null,null,null,null,null,null,null,null,null,"子①学資保険",null,null,null,null,"2035年","200万（予定）",null,null,null,null,null,null,null,null,null,null,null,null,"車関係　※",null,null,null,null,null,null,null,{"$f":"DJ9","v":810000},null,null,null,null,"住宅関係（積立の内訳）"]
[null,null,null,null,null,null,null,null,null,null,null,null,null,null,null,null,null,null,null,null,null,null,null,null,null,null,null,null,null,null,null,null,null,null,null,null,null,null,null,null,null,null,null,null,null,null,null,null,null,null,null,null,null,null,null,null,null,null,null,null,null,null,null,null,null,null,null,null,null,null,null,null,null,null,null,null,null,null,null,null,null,null,null,null,null,null,null,null,null,null,"その他の積立　※",null,null,null,null,null,null,null,{"$f":"DX18","v":3900000},null,null,null,null,"住宅補修用",null,null,"太陽光プラス分",null,null,null,null,null,null,410000,null,null,null,"別管理",null,null,"生活防衛資金",null,null,null,null,null,null,1500000]
[null,null,null,null,null,null,null,null,null,null,null,null,null,null,null,null,null,null,null,null,null,null,null,null,null,null,null,null,null,null,null,null,null,null,null,null,null,null,null,null,null,null,null,null,null,null,null,null,null,null,null,null,null,null,null,null,null,null,null,null,null,null,null,null,null,null,null,null,null,null,null,null,null,null,null,null,null,null,null,null,null,null,null,null,null,null,null,null,null,null,null,null,null,null,null,null,null,null,null,null,null,null,null,"住宅補修用",null,null,"家メンテナンス",null,null,null,null,null,null,0]
[]
[null,null,null,null,null,null,null,null,null,null,null,null,null,null,null,null,null,null,null,null,null,null,null,null,null,null,null,null,null,null,null,null,null,null,null,null,null,null,null,null,null,null,null,null,null,null,null,null,null,null,null,null,null,null,null,null,null,null,null,null,null,null,null,null,null,null,null,null,null,null,null,null,null,null,null,null,null,null,null,null,null,null,null,null,null,null,null,null,null,null,"貯金用",null,null,null,null,null,null,null,{"$f":"(SUM(BZ2:CC6)+BZ8)-SUM(CU3:CX14)","v":313400},null,null,null,null,"税金",null,null,"固定資産税積立て",null,null,null,null,null,null,200000,null,null,null,"別管理",null,null,"家電まとめて",null,null,null,null,null,null,200000]
[null,null,null,null,null,null,null,null,null,null,null,null,null,null,null,null,null,null,null,null,null,null,null,null,null,null,null,null,null,null,null,null,null,null,null,null,null,null,null,null,null,null,null,null,null,null,null,null,null,null,null,null,null,null,null,null,null,null,null,null,null,null,null,null,null,null,null,null,null,null,null,null,null,null,null,null,null,null,null,null,null,null,null,null,null,null,null,null,null,null,"合計",null,null,null,null,null,null,null,{"$f":"SUM(CU3:CX15)","v":6272400},null,null,null,null,null,null,null,null,null,null,null,null,null,null,null,null,null,null,"別管理",null,null,"定額給付金",null,null,null,null,null,null,330000]
[null,null,null,null,null,null,null,null,null,null,null,null,null,null,null,null,null,null,null,null,null,null,null,null,null,null,null,null,null,null,null,null,null,null,null,null,null,null,null,null,null,null,null,null,null,null,null,null,null,null,null,null,null,null,null,null,null,null,null,null,null,null,null,null,null,null,null,null,null,null,null,null,null,null,null,null,null,null,null,null,null,null,null,null,null,null,null,null,null,null,null,null,null,null,null,null,null,null,null,null,null,null,null,"住宅ローン",null,null,"繰上げ返済用",null,null,null,null,null,null,300000]
[null,"日付",null,"入ったお金",null,null,"入った理由",null,null,null,null,null,"使ったお金",null,null,"食費",null,null,null,null,null,null,null,null,null,"日用雑貨・化粧品",null,null,null,null,null,null,null,null,null,"娯楽・衣服",null,null,null,null,null,null,null,null,null,"ガソリン・車関係",null,null,null,null,null,null,null,null,null,"その他（医療費含）",null,null,null,null,null,null,null,null,null,"残金",null,null,"日付",null,"入ったお金・理由",null,null,null,null,null,null,null,null,null,"使ったお金・理由",null,null,null,null,null,null,null,null,null,"残金",null,null,null,null,null,null,null,null,null,null,null,null,null,null,null,null,null,null,null,null,null,null,{"$f":"SUM(DJ12:DL17)","v":910000},null,null,null,null,null,null,null,null,null,null,null,null,null,{"$f":"SUM(DX3:DZ17)","v":3900000}]
[null,null,null,null,null,null,null,null,null,null,null,null,{"$f":"Q19+AA19+AK19+AU19+BE19","v":0},null,null,null,null,null,null,null,null,null,null,null,null,null,null,null,null,"前月からの繰越",null,null,null,null,null,null,null,null,null,null,null,null,null,null,null,null,null,null,null,null,null,null,null,null,null,null,null,null,null,null,null,null,null,null,null,26397]
[null,1,null,150000,null,null,"2月分の生活費",null,null,null,null,null,60000,null,null,null,null,null,null,null,null,null,null,null,null,null,null,null,null,null,null,null,null,null,null,null,null,null,null,null,null,null,null,null,null,null,null,null,null,null,null,null,null,null,null,null,60000,null,null,"２人分おこづかい",null,null,null,null,null,{"$f":"IF(B20=\"\",0,BN19+D20-M20)","v":116397},null,null,null,null,null,null,null,null,null,null,null,null,null,null,"7M",150000,null,null,"2月分生活費",null,null,null,null,null,"夫□□銀行",null,null,null,{"$f":"BZ2-CD20","v":2304400},null,null,null,null,null,null,null,null,"カード払い予定",null,null,null,null,null,null,null,"銀行",null,null,null,"いくら"]
[null,1,null,null,null,null,null,null,null,null,null,null,5000,null,null,11,5000,null,null,"材料",null,null,null,null,null,null,null,null,null,null,null,null,null,null,null,null,null,null,null,null,null,null,null,null,null,null,null,null,null,null,null,null,null,null,null,null,null,null,null,null,null,null,null,null,null,111397,null,null,15,null,"6M",5000,null,null,"化粧下地",null,null,null,null,null,null,null,null,null,null,null,null,null,null,null,"カード払い予定",null,null,null,{"$f":"BZ7+BT21","v":151000},null,null,null,null,null,null,null,null,"1月",null,"化粧水",null,null,null,null,null,"夫□□銀行",null,null,null,6000]
[null,3,null,null,null,null,null,null,null,null,null,null,4000,null,null,12,4000,null,null,"お米",null,null,null,null,null,null,null,null,null,null,null,null,null,null,null,null,null,null,null,null,null,null,null,null,null,null,null,null,null,null,null,null,null,null,null,null,null,null,null,null,null,null,null,null,null,107397,null,null,18,null,null,null,null,null,null,null,null,null,null,null,73,5000,null,null,"外食",null,null,null,null,null,"夫□□銀行",null,null,null,{"$f":"CQ20-CD22","v":2299400},null,null,null,"娯楽費",null,null,null,null,"1月",null,"自転車",null,null,null,null,null,"夫□□銀行",null,null,null,50000]
[null,5,null,null,null,null,null,null,null,null,null,null,12500,null,null,11,6000,null,null,"材料",null,null,null,null,null,null,null,null,null,null,null,null,null,null,null,33,3500,null,null,"くつ、靴下",null,null,null,null,null,41,3000,null,null,"ガソリン",null,null,null,null,null,null,null,null,null,null,null,null,null,null,null,94897,null,null,20,null,null,20000,null,null,"児童手当",null,null,null,null,null,null,null,null,null,null,null,null,null,null,null,"夫□□銀行",null,null,null,{"$f":"CQ22+BT23","v":2319400},null,null,null,"こどものお金",null,null,null,null,"1月",null,"チャイルドシート",null,null,null,null,null,"夫□□銀行",null,null,null,12000]
[null,10,null,null,null,null,null,null,null,null,null,null,7000,null,null,11,7000,null,null,null,null,null,null,null,null,null,null,null,null,null,null,null,null,null,null,null,null,null,null,null,null,null,null,null,null,null,null,null,null,null,null,null,null,null,null,null,null,null,null,null,null,null,null,null,null,87897,null,null,28,null,null,null,null,null,null,null,null,null,null,null,72,8000,null,null,"子①誕生日",null,null,null,null,null,"夫□□銀行",null,null,null,{"$f":"CQ23-CD24","v":2311400},null,null,null,"記念日、年単位出費",null,null,null,null,"1月",null,"ヘルメット",null,null,null,null,null,"夫□□銀行",null,null,null,3000]
[null,15,null,null,null,null,null,null,null,null,null,null,13000,null,null,11,8000,null,null,null,null,null,null,null,null,22,5000,null,null,"化粧下地",null,null,null,null,null,null,null,null,null,null,null,null,null,null,null,null,null,null,null,null,null,null,null,null,null,null,null,null,null,null,null,null,null,null,null,74897,null,null,28,null,null,null,null,null,null,null,null,null,null,null,72,18000,null,null,"子①おでかけ",null,null,null,null,null,"夫□□銀行",null,null,null,{"$f":"CQ24-CD25","v":2293400},null,null,null,"記念日、年単位出費",null,null,null,null,"2月",null,"化粧下地",null,null,null,null,null,"夫□□銀行",null,null,null,5000]
[null,20,null,null,null,null,null,null,null,null,null,null,10200,null,null,11,9000,null,null,null,null,null,null,null,null,null,null,null,null,null,null,null,null,null,null,null,null,null,null,null,null,null,null,null,null,null,null,null,null,null,null,null,null,null,null,null,1200,null,null,"100均一",null,null,null,null,null,64697,null,null,30,null,null,null,null,null,null,null,null,null,null,null,73,5000,null,null,"ＤＶＤ",null,null,null,null,null,"夫□□銀行",null,null,null,{"$f":"CQ25-CD26","v":2288400},null,null,null,"娯楽費",null,null,null,null,"2月",null,"ＤＶＤ",null,null,null,null,null,"夫□□銀行",null,null,null,5000,null,null,null,"①"]
[null,25,null,null,null,null,null,null,null,null,null,null,6000,null,null,11,1000,null,null,null,null,null,null,null,null,null,null,null,null,null,null,null,null,null,null,null,null,null,null,null,null,null,null,null,null,42,5000,null,null,"ガソリン",null,null,null,null,null,null,null,null,null,null,null,null,null,null,null,58697,null,null,30,null,null,null,null,null,null,null,null,null,null,null,73,5000,null,null,"服",null,null,null,null,null,"夫□□銀行",null,null,null,{"$f":"CQ26-CD27","v":2283400},null,null,null,"衣服費（夫）",null,null,null,null,"2月",null,"服（夫）",null,null,null,null,null,"夫□□銀行",null,null,null,5000,null,null,null,"｜"]
[null,30,null,null,null,null,null,null,null,null,null,null,2000,null,null,11,2000,null,null,null,null,null,null,null,null,null,null,null,null,null,null,null,null,null,null,null,null,null,null,null,null,null,null,null,null,null,null,null,null,null,null,null,null,null,null,null,null,null,null,null,null,null,null,null,null,56697,null,null,30,null,null,null,null,null,null,null,null,null,null,null,73,5000,null,null,"服",null,null,null,null,null,"夫□□銀行",null,null,null,{"$f":"CQ27-CD28","v":2278400},null,null,null,"衣服費（妻）",null,null,null,null,"2月",null,"服（妻）",null,null,null,null,null,"夫□□銀行",null,null,null,5000,null,null,null,"①"]
[null,13,null,null,null,null,null,null,null,null,null,null,8000,null,null,null,null,null,null,null,null,null,null,null,null,21,8000,null,null,"薬局",null,null,null,null,null,null,null,null,null,null,null,null,null,null,null,null,null,null,null,null,null,null,null,null,null,null,null,null,null,null,null,null,null,null,null,48697,null,null,30,null,"6M",15000,null,null,"①まとめて",null,null,null,null,null,null,null,null,null,null,null,null,null,null,null,"カード払い予定",null,null,null,{"$f":"CQ21+BT29","v":166000},null,null,null,null,null,null,null,null,"2月",null,null,null,null,null,null,null,"夫□□銀行"]
[null,15,null,null,null,null,null,null,null,null,null,null,3500,null,null,null,null,null,null,null,null,null,null,null,null,23,3500,null,null,"おむつ",null,null,null,null,null,null,null,null,null,null,null,null,null,null,null,null,null,null,null,null,null,null,null,null,null,null,null,null,null,null,null,null,null,null,null,45197,null,null,null,null,null,null,null,null,null,null,null,null,null,null,null,null,null,null,null,null,null,null,null,null,null,null,null,null,null,null,null,null,null,null,null,null,null,"2月",null,null,null,null,null,null,null,"夫□□銀行"]
[null,12,null,null,null,null,null,null,null,null,null,null,2500,null,null,null,null,null,null,null,null,null,null,null,null,null,null,null,null,null,null,null,null,null,null,null,null,null,null,null,null,null,null,null,null,null,null,null,null,null,null,null,null,null,null,52,2500,null,null,"内科（風邪）",null,null,null,null,null,42697]
[null,null,null,null,null,null,null,null,null,null,null,null,0,null,null,null,null,null,null,null,null,null,null,null,null,null,null,null,null,null,null,null,null,null,null,null,null,null,null,null,null,null,null,null,null,null,null,null,null,null,null,null,null,null,null,null,null,null,null,null,null,null,null,null,null,0]
[null,null,null,null,null,null,null,null,null,null,null,null,0,null,null,null,null,null,null,null,null,null,null,null,null,null,null,null,null,null,null,null,null,null,null,null,null,null,null,null,null,null,null,null,null,null,null,null,null,null,null,null,null,null,null,null,null,null,null,null,null,null,null,null,null,0]
[null,null,null,null,null,null,null,null,null,null,null,null,0,null,null,null,null,null,null,null,null,null,null,null,null,null,null,null,null,null,null,null,null,null,null,null,null,null,null,null,null,null,null,null,null,null,null,null,null,null,null,null,null,null,null,null,null,null,null,null,null,null,null,null,null,0]
[null,null,null,null,null,null,null,null,null,null,null,null,0,null,null,null,null,null,null,null,null,null,null,null,null,null,null,null,null,null,null,null,null,null,null,null,null,null,null,null,null,null,null,null,null,null,null,null,null,null,null,null,null,null,null,null,null,null,null,null,null,null,null,null,null,0]
[null,null,null,null,null,null,null,null,null,null,null,null,0,null,null,null,null,null,null,null,null,null,null,null,null,null,null,null,null,null,null,null,null,null,null,null,null,null,null,null,null,null,null,null,null,null,null,null,null,null,null,null,null,null,null,null,null,null,null,null,null,null,null,null,null,0]
[null,null,null,null,null,null,null,null,null,null,null,null,0,null,null,null,null,null,null,null,null,null,null,null,null,null,null,null,null,null,null,null,null,null,null,null,null,null,null,null,null,null,null,null,null,null,null,null,null,null,null,null,null,null,null,null,null,null,null,null,null,null,null,null,null,0]
[null,null,null,null,null,null,null,null,null,null,null,null,0,null,null,null,null,null,null,null,null,null,null,null,null,null,null,null,null,null,null,null,null,null,null,null,null,null,null,null,null,null,null,null,null,null,null,null,null,null,null,null,null,null,null,null,null,null,null,null,null,null,null,null,null,0]
[null,null,null,null,null,null,null,null,null,null,null,null,0,null,null,null,null,null,null,null,null,null,null,null,null,null,null,null,null,null,null,null,null,null,null,null,null,null,null,null,null,null,null,null,null,null,null,null,null,null,null,null,null,null,null,null,null,null,null,null,null,null,null,null,null,0]
[null,null,null,null,null,null,null,null,null,null,null,null,0,null,null,null,null,null,null,null,null,null,null,null,null,null,null,null,null,null,null,null,null,null,null,null,null,null,null,null,null,null,null,null,null,null,null,null,null,null,null,null,null,null,null,null,null,null,null,null,null,null,null,null,null,0,null,null,28,null,"6M",null,null,null,"お金の移動",null,null,null,null,null,null,null,null,null,null,null,null,null,null,null,"夫□□銀行",null,null,null,{"$f":"CQ28+BT40","v":2278400}]
[null,null,null,null,null,null,null,null,null,null,null,null,0,null,null,null,null,null,null,null,null,null,null,null,null,null,null,null,null,null,null,null,null,null,null,null,null,null,null,null,null,null,null,null,null,null,null,null,null,null,null,null,null,null,null,null,null,null,null,null,null,null,null,null,null,0,null,null,28,null,null,null,null,null,null,null,null,null,null,null,"7M",null,null,null,"お金の移動",null,null,null,null,null,"妻〇〇銀行",null,null,null,{"$f":"BZ3-CD41","v":1800000}]
[null,null,null,null,null,null,null,null,null,null,null,null,0,null,null,null,null,null,null,null,null,null,null,null,null,null,null,null,null,null,null,null,null,null,null,null,null,null,null,null,null,null,null,null,null,null,null,null,null,null,null,null,null,null,null,null,null,null,null,null,null,null,null,null,null,0,null,null,28,null,null,300000,null,null,"お給料2月分(夫)",null,null,null,null,null,null,null,null,null,null,null,null,null,null,null,"夫□□銀行",null,null,null,{"$f":"CQ40+BT42","v":2578400}]
[null,null,null,null,null,null,null,null,null,null,null,null,0,null,null,null,null,null,null,null,null,null,null,null,null,null,null,null,null,null,null,null,null,null,null,null,null,null,null,null,null,null,null,null,null,null,null,null,null,null,null,null,null,null,null,null,null,null,null,null,null,null,null,null,null,0,null,null,28,null,null,300000,null,null,"お給料2月分（妻）",null,null,null,null,null,null,null,null,null,null,null,null,null,null,null,"妻〇〇銀行",null,null,null,{"$f":"CQ41+BT43","v":2100000}]
[null,null,null,null,null,null,null,null,null,null,null,null,0,null,null,null,null,null,null,null,null,null,null,null,null,null,null,null,null,null,null,null,null,null,null,null,null,null,null,null,null,null,null,null,null,null,null,null,null,null,null,null,null,null,null,null,null,null,null,null,null,null,null,null,null,0,null,null,28,null,null,10000,null,null,"太陽光発電プラス分",null,null,null,null,null,null,null,null,null,null,null,null,null,null,null,"夫□□銀行",null,null,null,{"$f":"CQ42+BT44","v":2588400},null,null,null,"太陽光ﾌﾟﾗｽ分"]
[null,null,null,null,null,null,null,null,null,null,null,null,0,null,null,null,null,null,null,null,null,null,null,null,null,null,null,null,null,null,null,null,null,null,null,null,null,null,null,null,null,null,null,null,null,null,null,null,null,null,null,null,null,null,null,null,null,null,null,null,null,null,null,null,null,0]
[null,null,null,null,null,null,null,null,null,null,null,null,0,null,null,null,null,null,null,null,null,null,null,null,null,null,null,null,null,null,null,null,null,null,null,null,null,null,null,null,null,null,null,null,null,null,null,null,null,null,null,null,null,null,null,null,null,null,null,null,null,null,null,null,null,0]
[null,null,null,null,null,null,null,null,null,null,null,null,0,null,null,null,null,null,null,null,null,null,null,null,null,null,null,null,null,null,null,null,null,null,null,null,null,null,null,null,null,null,null,null,null,null,null,null,null,null,null,null,null,null,null,null,null,null,null,null,null,null,null,null,null,0]
[null,null,null,null,null,null,null,null,null,null,null,null,0,null,null,null,null,null,null,null,null,null,null,null,null,null,null,null,null,null,null,null,null,null,null,null,null,null,null,null,null,null,null,null,null,null,null,null,null,null,null,null,null,null,null,null,null,null,null,null,null,null,null,null,null,0]
[null,null,null,null,null,null,null,null,null,null,null,null,0,null,null,null,null,null,null,null,null,null,null,null,null,null,null,null,null,null,null,null,null,null,null,null,null,null,null,null,null,null,null,null,null,null,null,null,null,null,null,null,null,null,null,null,null,null,null,null,null,null,null,null,null,0]
[null,null,null,null,null,null,null,null,null,null,null,null,0,null,null,null,null,null,null,null,null,null,null,null,null,null,null,null,null,null,null,null,null,null,null,null,null,null,null,null,null,null,null,null,null,null,null,null,null,null,null,null,null,null,null,null,null,null,null,null,null,null,null,null,null,0]
[null,null,null,null,null,null,null,null,null,null,null,null,0,null,null,null,null,null,null,null,null,null,null,null,null,null,null,null,null,null,null,null,null,null,null,null,null,null,null,null,null,null,null,null,null,null,null,null,null,null,null,null,null,null,null,null,null,null,null,null,null,null,null,null,null,0,null,null,null,null,null,null,null,null,null,null,null,null,null,null,"7M",80000,null,null,"カード引き落し",null,null,null,null,null,"カード払い予定",null,null,null,{"$f":"CQ29-CD51","v":86000}]
[null,null,null,null,null,null,null,null,null,null,null,null,0,null,null,null,null,null,null,null,null,null,null,null,null,null,null,null,null,null,null,null,null,null,null,null,null,null,null,null,null,null,null,null,null,null,null,null,null,null,null,null,null,null,null,null,null,null,null,null,null,null,null,null,null,0,null,null,null,null,"6M",{"$f":"SUMIF(CJ60:CJ71,\"カード\",BZ60:BZ71)","v":55000},null,null,"カード払い予定",null,null,null,null,null,null,null,null,null,null,null,null,null,null,null,"カード払い予定",null,null,null,{"$f":"CQ51+BT52","v":141000}]
[null,null,null,null,null,null,null,null,null,null,null,null,0,null,null,null,null,null,null,null,null,null,null,null,null,null,null,null,null,null,null,null,null,null,null,null,null,null,null,null,null,null,null,null,null,null,null,null,null,null,null,null,null,null,null,null,null,null,null,null,null,null,null,null,null,0,null,null,null,null,null,null,null,null,null,null,null,null,null,null,71,{"$f":"SUM(BZ60:CB70)","v":145000},null,null,"固定支出",null,null,null,null,null,"夫□□銀行",null,null,null,{"$f":"CQ44-CD53","v":2443400}]
[null,null,null,null,null,null,null,null,null,null,null,null,0,null,null,null,null,null,null,null,null,null,null,null,null,null,null,null,null,null,null,null,null,null,null,null,null,null,null,null,null,null,null,null,null,null,null,null,null,null,null,null,null,null,null,null,null,null,null,null,null,null,null,null,null,0,null,null,null,null,null,null,null,null,null,null,null,null,null,null,71,2000,null,null,"小学校引落とし",null,null,null,null,null,"ゆうちょ",null,null,null,{"$f":"BZ8-CD54","v":16000}]
[null,null,null,null,null,null,null,null,null,null,null,null,0,null,null,null,null,null,null,null,null,null,null,null,null,null,null,null,null,null,null,null,null,null,null,null,null,null,null,null,null,null,null,null,null,null,null,null,null,null,null,null,null,null,null,null,null,null,null,null,null,null,null,null,null,0]
[null,null,null,null,null,null,null,null,null,null,null,null,0,null,null,null,null,null,null,null,null,null,null,null,null,null,null,null,null,null,null,null,null,null,null,null,null,null,null,null,null,null,null,null,null,null,null,null,null,null,null,null,null,null,null,null,null,null,null,null,null,null,null,null,null,0]
[]
[]
[null,null,null,null,null,null,null,null,null,null,null,null,null,"生活費支出",null,{"$f":"SUM(M20:O56)","v":133700},null,null,null,null,null,null,null,null,null,null,null,null,null,45000,null,null,null,null,null,null,26000,null,null,null,null,null,null,null,null,null,null,null,null,null,8000,null,null,null,null,null,null,15000,null,null,null,null,null,null,null,null,null,null,null,null,null,null,null,null,null,"日付",null,"お金",null,null,"理由",null,null,null,null,null,null,"どこから"]
[null,null,null,null,null,null,"収入",null,{"$f":"SUM(BT42:BV44)","v":610000},null,null,null,null,"支出",null,{"$f":"SUM(M20:O56)+BP60+BQ62+BQ63","v":326700},null,null,null,null,"＋　or －",null,null,{"$f":"I60-P60","v":283300},null,null,null,null,null,"食費",null,null,{"$f":"SUM(Q20:S56)","v":42000},null,null,null,"日雑・化粧",null,null,{"$f":"SUM(AA20:AC56)","v":16500},null,null,null,"娯楽・衣服",null,null,{"$f":"SUM(AK20:AM56)","v":3500},null,null,null,"ｶﾞｿﾘﾝ・車",null,null,{"$f":"SUM(AU20:AW56)","v":8000},null,null,null,"その他",null,null,{"$f":"SUM(BE20:BG56)","v":63700},null,null,null,"固定費",null,null,{"$f":"SUMIF(CC19:CC56,71,CD19:CF56)","v":147000},null,null,null,null,null,null,null,16,null,2000,null,null,"夫携帯",null,null,null,null,null,null,"カード"]
[null,null,null,null,null,null,null,null,null,null,null,null,null,null,null,null,null,null,null,null,null,null,null,null,null,null,null,null,null,null,null,null,null,null,null,null,null,null,null,null,null,null,null,null,null,null,null,null,null,null,null,null,null,null,null,null,null,null,null,null,null,null,null,null,null,null,null,null,null,null,null,null,null,null,null,31,null,2000,null,null,"妻携帯",null,null,null,null,null,null,"カード"]
[null,null,null,null,null,null,null,null,null,null,null,null,null,"(実質)",null,{"$f":"P60-(BQ62+BQ63)","v":280700},null,null,null,null,null,null,null,null,null,null,null,null,null,"(材料)",null,null,{"$f":"SUMIF(P20:P56,11,Q20:S56)","v":38000},null,null,null,"(日用雑貨)",null,null,{"$f":"SUMIF(Z20:Z56,21,AA20:AC56)","v":8000},null,null,null,"(服：夫)",null,null,{"$f":"SUMIF(AJ20:AJ56,31,AK20:AM56)+SUMIF(CU20:CU56,\"衣服費（夫）\",CD20:CF56)","v":5000},null,null,null,"(ｶﾞｿﾘﾝ：夫)",null,null,{"$f":"SUMIF(AT20:AT56,41,AU20:AW56)","v":3000},null,null,null,"(医療：夫)",null,null,{"$f":"SUMIF(BD20:BD56,51,BE20:BG56)","v":0},null,null,null,"純貯金から-",null,null,null,{"$f":"SUMIF(CC19:CC56,72,CD19:CF56)","v":26000},null,null,null,null,null,null,31,null,500,null,null,"通話料",null,null,null,null,null,null,"カード"]
[null,null,null,null,null,null,null,null,null,null,null,null,null,null,null,null,null,null,null,null,null,null,null,null,null,null,null,null,null,"(米代)",null,null,{"$f":"SUMIF(P20:P56,12,Q20:S56)","v":4000},null,null,null,"(化粧品)",null,null,{"$f":"SUMIF(Z20:Z56,22,AA20:AC56)","v":5000},null,null,null,"(服：妻)",null,null,{"$f":"SUMIF(AJ20:AJ56,32,AK20:AM56)+SUMIF(CU20:CU56,\"衣服費（妻）\",CD20:CF56)","v":5000},null,null,null,"(ｶﾞｿﾘﾝ：妻)",null,null,{"$f":"SUMIF(AT20:AT56,42,AU20:AW56)","v":5000},null,null,null,"(医療：妻)",null,null,{"$f":"SUMIF(BD20:BD56,52,BE20:BG56)","v":2500},null,null,null,"振分貯金から-",null,null,null,{"$f":"SUMIF(CC19:CC56,73,CD19:CF56)","v":20000},null,null,null,null,null,null,11,null,5500,null,null,"ネット",null,null,null,null,null,null,"カード"]
[null,null,null,null,null,null,null,null,null,null,null,null,null,null,null,null,null,null,null,null,null,null,null,null,null,null,null,null,null,"(外食)",null,null,{"$f":"SUMIF(P20:P56,13,Q20:S56)+SUMIF(CU20:CU56,\"外食\",CD20:CF56)","v":0},null,null,null,"(子②用品)",null,null,{"$f":"SUMIF(Z20:Z56,23,AA20:AC56)","v":3500},null,null,null,"(服：子①)",null,null,{"$f":"SUMIF(AJ20:AJ56,33,AK20:AM56)+SUMIF(CU20:CU56,\"衣服費（子①）\",CD20:CF56)","v":3500},null,null,null,"(車メンテ)",null,null,{"$f":"SUMIF(AT20:AT56,43,AU20:AW56)","v":0},null,null,null,"(医療：子①)",null,null,{"$f":"SUMIF(BD20:BD56,53,BE20:BG56)","v":0},null,null,null,null,null,null,null,null,null,null,null,null,null,null,25,null,8000,null,null,"電気1月分(555kwh)",null,null,null,null,null,null,"カード"]
[null,null,null,null,null,null,null,null,null,null,null,null,null,null,null,null,null,null,null,null,null,null,null,null,null,null,null,null,null,null,null,null,null,null,null,null,null,null,null,null,null,null,null,"(服：子②)　",null,null,{"$f":"SUMIF(AJ20:AJ56,33,AK20:AM56)+SUMIF(CU20:CU56,\"衣服費（子②）\",CD20:CF56)","v":3500},null,null,null,null,null,null,null,null,null,null,"(医療：子②)",null,null,{"$f":"SUMIF(BD20:BD56,54,BE20:BG56)","v":0},null,null,null,"家計費ﾏｲﾅｽ",null,null,null,{"$f":"SUMIF(CU20:CU56,\"家計費補充\",CD20:CF56)","v":0},null,null,null,null,null,null,25,null,10000,null,null,"水道（上下水）(55㎥)",null,null,null,null,null,null,"夫□□銀行"]
[null,null,null,null,null,null,null,null,null,null,null,null,null,null,null,null,null,null,null,null,null,null,null,null,null,null,null,null,null,null,null,null,null,null,null,null,null,null,null,null,null,null,null,"(娯楽)",null,null,{"$f":"SUMIF(AJ20:AJ56,33,AK20:AM56)+SUMIF(CU20:CU56,\"娯楽費\",CD20:CF56)","v":13500},null,null,null,null,null,null,null,null,null,null,"(学校)",null,null,{"$f":"SUMIF(BD20:BD56,61,BE20:BG56)","v":0},null,null,null,null,null,null,null,null,null,null,null,null,null,null,"-",null,"-",null,null,"ＮＨＫ1、2月分",null,null,null,null,null,null,"夫□□銀行"]
[null,null,null,null,null,null,null,null,null,null,null,null,null,null,null,null,null,null,null,null,null,null,null,null,null,null,null,null,null,null,null,null,null,null,null,null,null,null,null,null,null,null,null,null,null,null,null,null,null,null,null,null,null,null,null,null,null,null,null,null,null,null,null,null,null,null,null,null,null,null,null,null,null,null,null,5,null,80000,null,null,"住宅ローン",null,null,null,null,null,null,"夫□□銀行"]
[null,null,null,null,null,null,null,null,null,null,null,null,null,null,null,null,null,null,null,null,null,null,null,null,null,null,null,null,null,null,null,null,null,null,null,null,null,null,null,null,null,null,null,null,null,null,null,null,null,null,null,null,null,null,null,null,null,null,null,null,null,null,null,null,null,null,null,null,null,null,null,null,null,null,null,1,null,15000,null,null,"生命・医療保険(夫)",null,null,null,null,null,null,"カード"]
[null,null,null,null,null,null,null,null,null,null,null,null,null,null,null,null,null,null,null,null,null,null,null,null,null,null,null,null,null,null,null,null,null,null,null,null,null,null,null,null,null,null,null,null,null,null,null,null,null,null,null,null,null,null,null,null,null,null,null,null,null,null,null,null,null,null,null,null,null,null,null,null,null,null,null,1,null,7000,null,null,"生命・医療保険(妻)",null,null,null,null,null,null,"カード"]
[null,null,null,null,null,null,null,null,null,null,null,null,null,null,null,null,null,null,null,null,null,null,null,null,null,null,null,null,null,null,null,null,null,null,null,null,null,null,null,null,null,null,null,null,null,null,null,null,null,null,null,null,null,null,null,null,null,null,null,null,null,null,null,null,null,null,null,null,null,null,null,null,null,null,null,1,null,15000,null,null,"学資保険",null,null,null,null,null,null,"カード"]

{"sheet":"3月","index":4,"n_rows":70,"n_cols":142,"rows_kept":70,"cut":false,"hidden":false,"merged":[[1,77,1,80],[1,90,1,97],[1,98,1,101],[1,103,1,115],[1,117,1,129],[1,131,1,143],[3,113,3,115],[3,117,3,119],[3,120,3,126],[3,127,3,129],[3,131,3,140],[3,141,3,143],[3,77,3,80],[3,90,3,97],[3,98,3,101],[3,103,3,105],[3,106,3,108],[3,109,3,112],[2,113,2,115],[2,117,2,119],[2,120,2,126],[2,127,2,129],[2,131,2,140],[2,141,2,143],[2,77,2,80],[2,90,2,97],[2,98,2,101],[2,103,2,105],[2,106,2,108],[2,109,2,112],[5,113,5,115],[5,117,5,119],[5,120,5,126],[5,127,5,129],[5,131,5,140],[5,141,5,143],[5,77,5,80],[5,90,5,97],[5,98,5,101],[5,103,5,105],[5,106,5,108],[5,109,5,112],[4,113,4,115],[4,117,4,119],[4,120,4,126],[4,127,4,129],[4,131,4,140],[4,141,4,143],[4,77,4,80],[4,90,4,97],[4,98,4,101],[4,103,4,105],[4,106,4,108],[4,109,4,112],[7,109,7,112],[7,113,7,115],[7,117,7,119],[7,120,7,126],[7,127,7,129],[8,90,8,97],[8,98,8,101],[8,113,8,115],[8,117,8,119],[8,120,8,126],[6,113,6,115],[6,117,6,119],[6,120,6,126],[6,127,6,129],[6,141,6,143],[7,77,7,80],[7,90,7,97],[7,98,7,101],[7,103,7,105],[7,106,7,108],[6,77,6,80],[6,90,6,97],[6,98,6,101],[6,103,6,105],[6,106,6,108],[6,109,6,112],[10,127,10,129],[11,77,11,80],[11,90,11,97],[11,98,11,101],[11,103,11,105],[11,106,11,112],[11,113,11,115],[11,117,11,119],[11,120,11,126],[11,127,11,129],[10,77,10,80],[10,90,10,97],[10,98,10,101],[10,103,10,115],[10,117,10,119],[10,120,10,126],[8,127,8,129],[9,90,9,97],[9,98,9,101],[9,117,9,119],[9,120,9,126],[9,127,9,129],[14,77,14,80],[14,90,14,97],[14,98,14,101],[14,103,14,105],[14,106,14,112],[14,113,14,115],[14,117,14,119],[14,120,14,126],[12,117,12,119],[12,120,12,126],[12,127,12,129],[13,77,13,80],[13,90,13,97],[13,98,13,101],[13,103,13,105],[13,106,13,112],[13,113,13,115],[13,117,13,119],[12,77,12,80],[12,90,12,97],[12,98,12,101],[12,103,12,105],[12,106,12,112],[12,113,12,115],[16,103,16,105],[16,106,16,112],[16,113,16,115],[16,117,16,119],[16,120,16,126],[16,127,16,129],[14,127,14,129],[15,90,15,97],[15,98,15,101],[15,103,15,105],[15,106,15,112],[15,113,15,115],[15,117,15,119],[15,120,15,126],[15,127,15,129],[13,120,13,126],[13,127,13,129],[17,127,17,129],[18,1,18,2],[18,3,18,5],[18,6,18,11],[18,12,18,14],[18,16,18,18],[18,19,18,24],[18,26,18,28],[18,29,18,34],[18,36,18,38],[17,80,17,89],[17,90,17,97],[17,103,17,105],[17,106,17,108],[17,109,17,112],[17,113,17,115],[17,35,17,44],[17,45,17,54],[17,55,17,64],[17,65,17,67],[17,68,17,69],[17,70,17,79],[17,1,17,2],[17,3,17,5],[17,6,17,11],[17,12,17,14],[17,15,17,24],[17,25,17,34],[18,94,18,97],[19,1,19,2],[19,3,19,5],[19,6,19,11],[19,12,19,14],[19,16,19,18],[19,19,19,24],[19,26,19,28],[19,29,19,34],[19,36,19,38],[18,68,18,69],[18,71,18,73],[18,74,18,79],[18,81,18,83],[18,84,18,89],[18,90,18,93],[18,39,18,44],[18,46,18,48],[18,49,18,54],[18,56,18,58],[18,59,18,64],[18,65,18,67],[19,94,19,97],[19,98,19,101],[20,1,20,2],[20,3,20,5],[20,6,20,11],[20,12,20,14],[20,16,20,18],[20,19,20,24],[20,26,20,28],[20,29,20,34],[19,68,19,69],[19,71,19,73],[19,74,19,79],[19,81,19,83],[19,84,19,89],[19,90,19,93],[19,39,19,44],[19,46,19,48],[19,49,19,54],[19,56,19,58],[19,59,19,64],[19,65,19,67],[20,90,20,93],[20,94,20,97],[20,98,20,101],[21,1,21,2],[21,3,21,5],[21,6,21,11],[21,12,21,14],[21,16,21,18],[21,19,21,24],[21,26,21,28],[20,65,20,67],[20,68,20,69],[20,71,20,73],[20,74,20,79],[20,81,20,83],[20,84,20,89],[20,36,20,38],[20,39,20,44],[20,46,20,48],[20,49,20,54],[20,56,20,58],[20,59,20,64],[21,84,21,89],[21,90,21,93],[21,94,21,97],[21,98,21,101],[22,1,22,2],[22,3,22,5],[22,6,22,11],[22,12,22,14],[22,16,22,18],[22,19,22,24],[21,59,21,64],[21,65,21,67],[21,68,21,69],[21,71,21,73],[21,74,21,79],[21,81,21,83],[21,29,21,34],[21,36,21,38],[21,39,21,44],[21,46,21,48],[21,49,21,54],[21,56,21,58],[22,81,22,83],[22,84,22,89],[22,90,22,93],[22,94,22,97],[22,98,22,101],[23,1,23,2],[23,3,23,5],[23,6,23,11],[23,12,23,14],[23,16,23,18],[22,56,22,58],[22,59,22,64],[22,65,22,67],[22,68,22,69],[22,71,22,73],[22,74,22,79],[22,26,22,28],[22,29,22,34],[22,36,22,38],[22,39,22,44],[22,46,22,48],[22,49,22,54],[23,74,23,79],[23,81,23,83],[23,84,23,89],[23,90,23,93],[23,94,23,97],[23,98,23,101],[23,49,23,54],[23,56,23,58],[23,59,23,64],[23,65,23,67],[23,68,23,69],[23,71,23,73],[23,19,23,24],[23,26,23,28],[23,29,23,34],[23,36,23,38],[23,39,23,44],[23,46,23,48],[24,81,24,83],[24,84,24,89],[24,90,24,93],[24,94,24,97],[24,98,24,101],[25,1,25,2],[25,3,25,5],[25,6,25,11],[25,12,25,14],[25,16,25,18],[24,56,24,58],[24,59,24,64],[24,65,24,67],[24,68,24,69],[24,71,24,73],[24,74,24,79],[24,26,24,28],[24,29,24,34],[24,36,24,38],[24,39,24,44],[24,46,24,48],[24,49,24,54],[24,1,24,2],[24,3,24,5],[24,6,24,11],[24,12,24,14],[24,16,24,18],[24,19,24,24],[25,74,25,79],[25,81,25,83],[25,84,25,89],[25,90,25,93],[25,94,25,97],[25,98,25,101],[25,49,25,54],[25,56,25,58],[25,59,25,64],[25,65,25,67],[25,68,25,69],[25,71,25,73],[25,19,25,24],[25,26,25,28],[25,29,25,34],[25,36,25,38],[25,39,25,44],[25,46,25,48],[26,81,26,83],[26,84,26,89],[26,90,26,93],[26,94,26,97],[26,98,26,101],[27,1,27,2],[27,3,27,5],[27,6,27,11],[27,12,27,14],[27,16,27,18],[26,56,26,58],[26,59,26,64],[26,65,26,67],[26,68,26,69],[26,71,26,73],[26,74,26,79],[26,26,26,28],[26,29,26,34],[26,36,26,38],[26,39,26,44],[26,46,26,48],[26,49,26,54],[26,1,26,2],[26,3,26,5],[26,6,26,11],[26,12,26,14],[26,16,26,18],[26,19,26,24],[27,74,27,79],[27,81,27,83],[27,84,27,89],[27,90,27,93],[27,94,27,97],[27,98,27,101],[27,49,27,54],[27,56,27,58],[27,59,27,64],[27,65,27,67],[27,68,27,69],[27,71,27,73],[27,19,27,24],[27,26,27,28],[27,29,27,34],[27,36,27,38],[27,39,27,44],[27,46,27,48],[28,81,28,83],[28,84,28,89],[28,90,28,93],[28,94,28,97],[28,98,28,101],[29,1,29,2],[29,3,29,5],[29,6,29,11],[29,12,29,14],[29,16,29,18],[28,56,28,58],[28,59,28,64],[28,65,28,67],[28,68,28,69],[28,71,28,73],[28,74,28,79],[28,26,28,28],[28,29,28,34],[28,36,28,38],[28,39,28,44],[28,46,28,48],[28,49,28,54],[28,1,28,2],[28,3,28,5],[28,6,28,11],[28,12,28,14],[28,16,28,18],[28,19,28,24],[29,74,29,79],[29,81,29,83],[29,84,29,89],[29,90,29,93],[29,94,29,97],[29,98,29,101],[29,49,29,54],[29,56,29,58],[29,59,29,64],[29,65,29,67],[29,68,29,69],[29,71,29,73],[29,19,29,24],[29,26,29,28],[29,29,29,34],[29,36,29,38],[29,39,29,44],[29,46,29,48],[30,81,30,83],[30,84,30,89],[30,90,30,93],[30,94,30,97],[30,98,30,101],[31,1,31,2],[31,3,31,5],[31,6,31,11],[31,12,31,14],[31,16,31,18],[30,56,30,58],[30,59,30,64],[30,65,30,67],[30,68,30,69],[30,71,30,73],[30,74,30,79],[30,26,30,28],[30,29,30,34],[30,36,30,38],[30,39,30,44],[30,46,30,48],[30,49,30,54],[30,1,30,2],[30,3,30,5],[30,6,30,11],[30,12,30,14],[30,16,30,18],[30,19,30,24],[31,74,31,79],[31,81,31,83],[31,84,31,89],[31,90,31,93],[31,94,31,97],[31,98,31,101],[31,49,31,54],[31,56,31,58],[31,59,31,64],[31,65,31,67],[31,68,31,69],[31,71,31,73],[31,19,31,24],[31,26,31,28],[31,29,31,34],[31,36,31,38],[31,39,31,44],[31,46,31,48],[32,81,32,83],[32,84,32,89],[32,90,32,93],[32,94,32,97],[32,98,32,101],[33,1,33,2],[33,3,33,5],[33,6,33,11],[33,12,33,14],[33,16,33,18],[32,56,32,58],[32,59,32,64],[32,65,32,67],[32,68,32,69],[32,71,32,73],[32,74,32,79],[32,26,32,28],[32,29,32,34],[32,36,32,38],[32,39,32,44],[32,46,32,48],[32,49,32,54],[32,1,32,2],[32,3,32,5],[32,6,32,11],[32,12,32,14],[32,16,32,18],[32,19,32,24],[33,74,33,79],[33,81,33,83],[33,84,33,89],[33,90,33,93],[33,94,33,97],[33,98,33,101],[33,49,33,54],[33,56,33,58],[33,59,33,64],[33,65,33,67],[33,68,33,69],[33,71,33,73],[33,19,33,24],[33,26,33,28],[33,29,33,34],[33,36,33,38],[33,39,33,44],[33,46,33,48],[34,81,34,83],[34,84,34,89],[34,90,34,93],[34,94,34,97],[34,98,34,101],[35,1,35,2],[35,3,35,5],[35,6,35,11],[35,12,35,14],[35,16,35,18],[34,56,34,58],[34,59,34,64],[34,65,34,67],[34,68,34,69],[34,71,34,73],[34,74,34,79],[34,26,34,28],[34,29,34,34],[34,36,34,38],[34,39,34,44],[34,46,34,48],[34,49,34,54],[34,1,34,2],[34,3,34,5],[34,6,34,11],[34,12,34,14],[34,16,34,18],[34,19,34,24],[35,74,35,79],[35,81,35,83],[35,84,35,89],[35,90,35,93],[35,94,35,97],[35,98,35,101],[35,49,35,54],[35,56,35,58],[35,59,35,64],[35,65,35,67],[35,68,35,69],[35,71,35,73],[35,19,35,24],[35,26,35,28],[35,29,35,34],[35,36,35,38],[35,39,35,44],[35,46,35,48],[36,81,36,83],[36,84,36,89],[36,90,36,93],[36,94,36,97],[36,98,36,101],[37,1,37,2],[37,3,37,5],[37,6,37,11],[37,12,37,14],[37,16,37,18],[36,56,36,58],[36,59,36,64],[36,65,36,67],[36,68,36,69],[36,71,36,73],[36,74,36,79],[36,26,36,28],[36,29,36,34],[36,36,36,38],[36,39,36,44],[36,46,36,48],[36,49,36,54],[36,1,36,2],[36,3,36,5],[36,6,36,11],[36,12,36,14],[36,16,36,18],[36,19,36,24],[37,74,37,79],[37,81,37,83],[37,84,37,89],[37,90,37,93],[37,94,37,97],[37,98,37,101],[37,49,37,54],[37,56,37,58],[37,59,37,64],[37,65,37,67],[37,68,37,69],[37,71,37,73],[37,19,37,24],[37,26,37,28],[37,29,37,34],[37,36,37,38],[37,39,37,44],[37,46,37,48],[38,81,38,83],[38,84,38,89],[38,90,38,93],[38,94,38,97],[38,98,38,101],[39,1,39,2],[39,3,39,5],[39,6,39,11],[39,12,39,14],[39,16,39,18],[38,56,38,58],[38,59,38,64],[38,65,38,67],[38,68,38,69],[38,71,38,73],[38,74,38,79],[38,26,38,28],[38,29,38,34],[38,36,38,38],[38,39,38,44],[38,46,38,48],[38,49,38,54],[38,1,38,2],[38,3,38,5],[38,6,38,11],[38,12,38,14],[38,16,38,18],[38,19,38,24],[39,74,39,79],[39,81,39,83],[39,84,39,89],[39,90,39,93],[39,94,39,97],[39,98,39,101],[39,49,39,54],[39,56,39,58],[39,59,39,64],[39,65,39,67],[39,68,39,69],[39,71,39,73],[39,19,39,24],[39,26,39,28],[39,29,39,34],[39,36,39,38],[39,39,39,44],[39,46,39,48],[40,81,40,83],[40,84,40,89],[40,90,40,93],[40,94,40,97],[40,98,40,101],[41,1,41,2],[41,3,41,5],[41,6,41,11],[41,12,41,14],[41,16,41,18],[40,56,40,58],[40,59,40,64],[40,65,40,67],[40,68,40,69],[40,71,40,73],[40,74,40,79],[40,26,40,28],[40,29,40,34],[40,36,40,38],[40,39,40,44],[40,46,40,48],[40,49,40,54],[40,1,40,2],[40,3,40,5],[40,6,40,11],[40,12,40,14],[40,16,40,18],[40,19,40,24],[41,74,41,79],[41,81,41,83],[41,84,41,89],[41,90,41,93],[41,94,41,97],[41,98,41,101],[41,49,41,54],[41,56,41,58],[41,59,41,64],[41,65,41,67],[41,68,41,69],[41,71,41,73],[41,19,41,24],[41,26,41,28],[41,29,41,34],[41,36,41,38],[41,39,41,44],[41,46,41,48],[42,81,42,83],[42,84,42,89],[42,90,42,93],[42,94,42,97],[42,98,42,101],[43,1,43,2],[43,3,43,5],[43,6,43,11],[43,12,43,14],[43,16,43,18],[42,56,42,58],[42,59,42,64],[42,65,42,67],[42,68,42,69],[42,71,42,73],[42,74,42,79],[42,26,42,28],[42,29,42,34],[42,36,42,38],[42,39,42,44],[42,46,42,48],[42,49,42,54],[42,1,42,2],[42,3,42,5],[42,6,42,11],[42,12,42,14],[42,16,42,18],[42,19,42,24],[43,74,43,79],[43,81,43,83],[43,84,43,89],[43,90,43,93],[43,94,43,97],[43,98,43,101],[43,49,43,54],[43,56,43,58],[43,59,43,64],[43,65,43,67],[43,68,43,69],[43,71,43,73],[43,19,43,24],[43,26,43,28],[43,29,43,34],[43,36,43,38],[43,39,43,44],[43,46,43,48],[44,81,44,83],[44,84,44,89],[44,90,44,93],[44,94,44,97],[44,98,44,101],[45,1,45,2],[45,3,45,5],[45,6,45,11],[45,12,45,14],[45,16,45,18],[44,56,44,58],[44,59,44,64],[44,65,44,67],[44,68,44,69],[44,71,44,73],[44,74,44,79],[44,26,44,28],[44,29,44,34],[44,36,44,38],[44,39,44,44],[44,46,44,48],[44,49,44,54],[44,1,44,2],[44,3,44,5],[44,6,44,11],[44,12,44,14],[44,16,44,18],[44,19,44,24],[45,74,45,79],[45,81,45,83],[45,84,45,89],[45,90,45,93],[45,94,45,97],[45,98,45,101],[45,49,45,54],[45,56,45,58],[45,59,45,64],[45,65,45,67],[45,68,45,69],[45,71,45,73],[45,19,45,24],[45,26,45,28],[45,29,45,34],[45,36,45,38],[45,39,45,44],[45,46,45,48],[46,81,46,83],[46,84,46,89],[46,90,46,93],[46,94,46,97],[46,98,46,101],[47,1,47,2],[47,3,47,5],[47,6,47,11],[47,12,47,14],[47,16,47,18],[46,56,46,58],[46,59,46,64],[46,65,46,67],[46,68,46,69],[46,71,46,73],[46,74,46,79],[46,26,46,28],[46,29,46,34],[46,36,46,38],[46,39,46,44],[46,46,46,48],[46,49,46,54],[46,1,46,2],[46,3,46,5],[46,6,46,11],[46,12,46,14],[46,16,46,18],[46,19,46,24],[47,74,47,79],[47,81,47,83],[47,84,47,89],[47,90,47,93],[47,94,47,97],[47,98,47,101],[47,49,47,54],[47,56,47,58],[47,59,47,64],[47,65,47,67],[47,68,47,69],[47,71,47,73],[47,19,47,24],[47,26,47,28],[47,29,47,34],[47,36,47,38],[47,39,47,44],[47,46,47,48],[48,81,48,83],[48,84,48,89],[48,90,48,93],[48,94,48,97],[48,98,48,101],[49,1,49,2],[49,3,49,5],[49,6,49,11],[49,12,49,14],[49,16,49,18],[48,56,48,58],[48,59,48,64],[48,65,48,67],[48,68,48,69],[48,71,48,73],[48,74,48,79],[48,26,48,28],[48,29,48,34],[48,36,48,38],[48,39,48,44],[48,46,48,48],[48,49,48,54],[48,1,48,2],[48,3,48,5],[48,6,48,11],[48,12,48,14],[48,16,48,18],[48,19,48,24],[49,74,49,79],[49,81,49,83],[49,84,49,89],[49,90,49,93],[49,94,49,97],[49,98,49,101],[49,49,49,54],[49,56,49,58],[49,59,49,64],[49,65,49,67],[49,68,49,69],[49,71,49,73],[49,19,49,24],[49,26,49,28],[49,29,49,34],[49,36,49,38],[49,39,49,44],[49,46,49,48],[50,81,50,83],[50,84,50,89],[50,90,50,93],[50,94,50,97],[50,98,50,101],[51,1,51,2],[51,3,51,5],[51,6,51,11],[51,12,51,14],[51,16,51,18],[50,56,50,58],[50,59,50,64],[50,65,50,67],[50,68,50,69],[50,71,50,73],[50,74,50,79],[50,26,50,28],[50,29,50,34],[50,36,50,38],[50,39,50,44],[50,46,50,48],[50,49,50,54],[50,1,50,2],[50,3,50,5],[50,6,50,11],[50,12,50,14],[50,16,50,18],[50,19,50,24],[51,74,51,79],[51,81,51,83],[51,84,51,89],[51,90,51,93],[51,94,51,97],[51,98,51,101],[51,49,51,54],[51,56,51,58],[51,59,51,64],[51,65,51,67],[51,68,51,69],[51,71,51,73],[51,19,51,24],[51,26,51,28],[51,29,51,34],[51,36,51,38],[51,39,51,44],[51,46,51,48],[52,81,52,83],[52,84,52,89],[52,90,52,93],[52,94,52,97],[52,98,52,101],[53,1,53,2],[53,3,53,5],[53,6,53,11],[53,12,53,14],[53,16,53,18],[52,56,52,58],[52,59,52,64],[52,65,52,67],[52,68,52,69],[52,71,52,73],[52,74,52,79],[52,26,52,28],[52,29,52,34],[52,36,52,38],[52,39,52,44],[52,46,52,48],[52,49,52,54],[52,1,52,2],[52,3,52,5],[52,6,52,11],[52,12,52,14],[52,16,52,18],[52,19,52,24],[53,74,53,79],[53,81,53,83],[53,84,53,89],[53,90,53,93],[53,94,53,97],[53,98,53,101],[53,49,53,54],[53,56,53,58],[53,59,53,64],[53,65,53,67],[53,68,53,69],[53,71,53,73],[53,19,53,24],[53,26,53,28],[53,29,53,34],[53,36,53,38],[53,39,53,44],[53,46,53,48],[55,1,55,2],[55,3,55,5],[55,6,55,11],[55,12,55,14],[55,16,55,18],[54,56,54,58],[54,59,54,64],[54,65,54,67],[54,68,54,69],[54,71,54,73],[54,74,54,79]],"merged_total":1151,"flags":["merged_cut"]}
[null,null,null,null,null,null,null,null,null,null,null,null,null,null,null,null,null,null,null,null,null,null,null,null,null,null,null,null,null,null,null,null,null,null,null,null,null,null,null,null,null,null,null,null,null,null,null,null,null,null,null,null,null,null,null,null,null,null,null,null,null,null,null,null,null,null,null,null,null,"銀行メモ"]
[null,null,null,null,null,null,null,null,null,null,null,null,null,null,null,null,null,null,null,null,null,null,null,null,null,null,null,null,null,null,null,null,null,null,null,null,null,null,null,null,null,null,null,null,null,null,null,null,null,null,null,null,null,null,null,null,null,null,null,null,null,null,null,null,null,null,null,null,null,null,null,"夫□□銀行",null,null,null,null,null,2443400,null,null,null,null,null,"内訳メモからマイナス",null,null,null,null,null,null,"内訳メモ",null,null,null,null,null,null,null,"いくら",null,null,null,null,"車関係（積立の内訳）",null,null,null,null,null,null,null,null,null,null,null,null,null,"その他（積立の内訳）",null,null,null,null,null,null,null,null,null,null,null,null,null,"衣服費（内訳）"]
[null,null,null,null,null,null,null,null,null,null,null,null,null,null,null,null,null,null,null,null,null,null,null,null,null,null,null,null,null,null,null,null,null,null,null,null,null,null,null,null,null,null,null,null,null,null,null,null,null,null,null,null,null,null,null,null,null,null,null,null,null,null,null,null,null,null,null,null,null,null,null,"妻〇〇銀行",null,null,null,null,null,2100000,null,null,null,null,null,"純貯金からマイナス",null,null,null,null,null,null,"自由費",null,null,null,null,null,null,null,100000,null,null,null,null,"2022/01",null,null,"共通",null,null,"車検の積立て",null,null,null,200000,null,null,null,"勉強",null,null,"資格取得、自己啓発費用",null,null,null,null,null,null,200000,null,null,null,"妻",null,null,null,null,null,null,null,null,null,10000]
[null,null,null,null,null,null,null,null,null,null,null,null,null,null,null,null,null,null,null,null,null,null,null,null,null,null,null,null,null,null,null,null,null,null,null,null,null,null,null,null,null,null,null,null,null,null,null,null,null,null,null,null,null,null,null,null,null,null,null,null,null,null,null,null,null,null,null,null,null,null,null,null,null,null,null,null,null,null,null,null,null,null,null,"ボーナスから振分",null,null,null,null,null,null,null,null,null,null,null,null,null,null,null,null,null,null,null,"2021/05",null,null,"共通",null,null,"車税積立て（2人分）",null,null,null,50000,null,null,null,"子ども",null,null,"子①のお金（児童手当）",null,null,null,null,null,null,810000,null,null,null,"夫",null,null,null,null,null,null,null,null,null,10000]
[null,null,null,null,null,null,null,null,null,null,null,null,null,null,null,null,null,null,null,null,null,null,null,null,null,null,null,null,null,null,null,null,null,null,null,null,null,null,null,null,null,null,null,null,null,null,null,null,null,null,null,null,null,null,null,null,null,null,null,null,null,null,null,null,null,null,null,null,null,null,null,"ネット銀行定期",null,null,null,null,null,1000000,null,null,null,null,null,"（マイナスは純貯金からする",null,null,null,null,null,null,null,null,null,null,null,null,null,null,null,null,null,null,null,"2021/09",null,null,"妻",null,null,"車保険",null,null,null,60000,null,null,null,"子ども",null,null,"子①のお金（児童手当以外）",null,null,null,null,null,null,20000,null,null,null,"子①",null,null,null,null,null,null,null,null,null,17000]
[null,null,null,null,null,null,null,null,null,null,null,null,null,null,null,null,null,null,null,null,null,null,null,null,null,null,null,null,null,null,null,null,null,null,null,null,null,null,null,null,null,null,null,null,null,null,null,null,null,null,null,null,null,null,null,null,null,null,null,null,null,null,null,null,null,null,null,null,null,null,null,"ネット銀行運用",null,null,null,null,null,1000000,null,null,null,null,null,"こと！）",null,null,null,null,null,null,null,null,null,null,null,null,null,null,null,null,null,null,null,"2021/01",null,null,"夫",null,null,"車保険",null,null,null,0,null,null,null,"子ども",null,null,"子①のお金（将来の学費貯金）",null,null,null,null,null,null,500000,null,null,null,"子②",null,null,null,null,null,null,null,null,null,15000]
[null,null,null,null,null,null,null,null,null,null,null,null,null,null,null,null,null,null,null,null,null,null,null,null,null,null,null,null,null,null,null,null,null,null,null,null,null,null,null,null,null,null,null,null,null,null,null,null,null,null,null,null,null,null,null,null,null,null,null,null,null,null,null,null,null,null,null,null,null,null,null,"カード払い予定",null,null,null,null,null,141000,null,null,null,null,null,null,null,null,null,null,null,null,"旅行用（日帰り含む）",null,null,null,null,null,null,null,160000,null,null,null,null,2025,null,null,"妻",null,null,"車の買替え用",null,null,null,500000,null,null,null,"子ども",null,null,"子②のお金（児童手当）",null,null,null,null,null,null,110000,null,null,null,null,null,null,null,null,null,null,null,null,null,{"$f":"SUM(EL3:EN6)","v":52000}]
[null,null,null,null,null,null,null,null,null,null,null,null,null,null,null,null,null,null,null,null,null,null,null,null,null,null,null,null,null,null,null,null,null,null,null,null,null,null,null,null,null,null,null,null,null,null,null,null,null,null,null,null,null,null,null,null,null,null,null,null,null,null,null,null,null,null,null,null,null,null,null,"ゆうちょ",null,null,null,null,null,16000,null,null,null,null,null,null,null,null,null,null,null,null,"娯楽費",null,null,null,null,null,null,null,27000,null,null,null,null,null,null,null,null,null,null,null,null,null,null,null,null,null,null,"子ども",null,null,"子②のお金（児童手当以外）",null,null,null,null,null,null,30000]
[null,null,null,null,null,null,null,null,null,null,null,null,null,null,null,null,null,null,null,null,null,null,null,null,null,null,null,null,null,null,null,null,null,null,null,null,null,null,null,null,null,null,null,null,null,null,null,null,null,null,null,null,null,null,null,null,null,null,null,null,null,null,null,null,null,null,null,null,null,null,null,null,null,null,null,null,null,null,null,null,null,null,null,null,null,null,null,null,null,null,"衣服費　※",null,null,null,null,null,null,null,{"$f":"EL7","v":52000},null,null,null,null,null,null,null,null,null,null,null,null,null,null,{"$f":"SUM(DJ3:DL8)","v":810000},null,null,null,"子ども",null,null,"子②のお金（将来の学費貯金）",null,null,null,null,null,null,200000]
[null,null,null,null,null,null,null,null,null,null,null,null,null,null,null,null,null,null,null,null,null,null,null,null,null,null,null,null,null,null,null,null,null,null,null,null,null,null,null,null,null,null,null,null,null,null,null,null,null,null,null,null,null,null,null,null,null,null,null,null,null,null,null,null,null,null,null,null,null,"学資・保険運用",null,null,null,null,null,null,null,null,null,null,null,null,null,null,null,null,null,null,null,null,"住宅関係　※",null,null,null,null,null,null,null,{"$f":"DJ18","v":920000}]
[null,null,null,null,null,null,null,null,null,null,null,null,null,null,null,null,null,null,null,null,null,null,null,null,null,null,null,null,null,null,null,null,null,null,null,null,null,null,null,null,null,null,null,null,null,null,null,null,null,null,null,null,null,null,null,null,null,null,null,null,null,null,null,null,null,null,null,null,null,null,null,"子①学資保険",null,null,null,null,"2035年","200万（予定）",null,null,null,null,null,null,null,null,null,null,null,null,"車関係　※",null,null,null,null,null,null,null,{"$f":"DJ9","v":810000},null,null,null,null,"住宅関係（積立の内訳）"]
[null,null,null,null,null,null,null,null,null,null,null,null,null,null,null,null,null,null,null,null,null,null,null,null,null,null,null,null,null,null,null,null,null,null,null,null,null,null,null,null,null,null,null,null,null,null,null,null,null,null,null,null,null,null,null,null,null,null,null,null,null,null,null,null,null,null,null,null,null,null,null,null,null,null,null,null,null,null,null,null,null,null,null,null,null,null,null,null,null,null,"その他の積立　※",null,null,null,null,null,null,null,{"$f":"DX18","v":3900000},null,null,null,null,"住宅補修用",null,null,"太陽光プラス分",null,null,null,null,null,null,420000,null,null,null,"別管理",null,null,"生活防衛資金",null,null,null,null,null,null,1500000]
[null,null,null,null,null,null,null,null,null,null,null,null,null,null,null,null,null,null,null,null,null,null,null,null,null,null,null,null,null,null,null,null,null,null,null,null,null,null,null,null,null,null,null,null,null,null,null,null,null,null,null,null,null,null,null,null,null,null,null,null,null,null,null,null,null,null,null,null,null,null,null,null,null,null,null,null,null,null,null,null,null,null,null,null,null,null,null,null,null,null,null,null,null,null,null,null,null,null,null,null,null,null,null,"住宅補修用",null,null,"家メンテナンス",null,null,null,null,null,null,0]
[]
[null,null,null,null,null,null,null,null,null,null,null,null,null,null,null,null,null,null,null,null,null,null,null,null,null,null,null,null,null,null,null,null,null,null,null,null,null,null,null,null,null,null,null,null,null,null,null,null,null,null,null,null,null,null,null,null,null,null,null,null,null,null,null,null,null,null,null,null,null,null,null,null,null,null,null,null,null,null,null,null,null,null,null,null,null,null,null,null,null,null,"貯金用",null,null,null,null,null,null,null,{"$f":"(SUM(BZ2:CC6)+BZ8)-SUM(CU3:CX14)","v":590400},null,null,null,null,"税金",null,null,"固定資産税積立て",null,null,null,null,null,null,200000,null,null,null,"別管理",null,null,"家電まとめて",null,null,null,null,null,null,200000]
[null,null,null,null,null,null,null,null,null,null,null,null,null,null,null,null,null,null,null,null,null,null,null,null,null,null,null,null,null,null,null,null,null,null,null,null,null,null,null,null,null,null,null,null,null,null,null,null,null,null,null,null,null,null,null,null,null,null,null,null,null,null,null,null,null,null,null,null,null,null,null,null,null,null,null,null,null,null,null,null,null,null,null,null,null,null,null,null,null,null,"合計",null,null,null,null,null,null,null,{"$f":"SUM(CU3:CX15)","v":6559400},null,null,null,null,null,null,null,null,null,null,null,null,null,null,null,null,null,null,"別管理",null,null,"定額給付金",null,null,null,null,null,null,330000]
[null,null,null,null,null,null,null,null,null,null,null,null,null,null,null,null,null,null,null,null,null,null,null,null,null,null,null,null,null,null,null,null,null,null,null,null,null,null,null,null,null,null,null,null,null,null,null,null,null,null,null,null,null,null,null,null,null,null,null,null,null,null,null,null,null,null,null,null,null,null,null,null,null,null,null,null,null,null,null,null,null,null,null,null,null,null,null,null,null,null,null,null,null,null,null,null,null,null,null,null,null,null,null,"住宅ローン",null,null,"繰上げ返済用",null,null,null,null,null,null,300000]
[null,"日付",null,"入ったお金",null,null,"入った理由",null,null,null,null,null,"使ったお金",null,null,"食費",null,null,null,null,null,null,null,null,null,"日用雑貨・化粧品",null,null,null,null,null,null,null,null,null,"娯楽・衣服",null,null,null,null,null,null,null,null,null,"ガソリン・車関係",null,null,null,null,null,null,null,null,null,"その他（医療費含）",null,null,null,null,null,null,null,null,null,"残金",null,null,"日付",null,"入ったお金・理由",null,null,null,null,null,null,null,null,null,"使ったお金・理由",null,null,null,null,null,null,null,null,null,"残金",null,null,null,null,null,null,null,null,null,null,null,null,null,null,null,null,null,null,null,null,null,null,{"$f":"SUM(DJ12:DL17)","v":920000},null,null,null,null,null,null,null,null,null,null,null,null,null,{"$f":"SUM(DX3:DZ17)","v":3900000}]
[null,null,null,null,null,null,null,null,null,null,null,null,{"$f":"Q19+AA19+AK19+AU19+BE19","v":0},null,null,null,null,null,null,null,null,null,null,null,null,null,null,null,null,"前月からの繰越",null,null,null,null,null,null,null,null,null,null,null,null,null,null,null,null,null,null,null,null,null,null,null,null,null,null,null,null,null,null,null,null,null,null,null,11097]
[null,1,null,150000,null,null,"3月分の生活費",null,null,null,null,null,60000,null,null,null,null,null,null,null,null,null,null,null,null,null,null,null,null,null,null,null,null,null,null,null,null,null,null,null,null,null,null,null,null,null,null,null,null,null,null,null,null,null,null,null,60000,null,null,"２人分おこづかい",null,null,null,null,null,{"$f":"IF(B20=\"\",0,BN19+D20-M20)","v":101097},null,null,null,null,null,null,null,null,null,null,null,null,null,null,"7M",150000,null,null,"3月分生活費",null,null,null,null,null,"夫□□銀行",null,null,null,{"$f":"BZ2-CD20","v":2293400},null,null,null,null,null,null,null,null,"カード払い予定",null,null,null,null,null,null,null,"銀行",null,null,null,"いくら"]
[null,1,null,null,null,null,null,null,null,null,null,null,0,null,null,null,null,null,null,null,null,null,null,null,null,null,null,null,null,null,null,null,null,null,null,null,null,null,null,null,null,null,null,null,null,null,null,null,null,null,null,null,null,null,null,null,null,null,null,null,null,null,null,null,null,101097,null,null,null,null,null,null,null,null,null,null,null,null,null,null,null,null,null,null,null,null,null,null,null,null,null,null,null,null,null,null,null,null,null,null,null,null,null,"2月",null,"化粧下地",null,null,null,null,null,"夫□□銀行",null,null,null,5000]
[null,null,null,null,null,null,null,null,null,null,null,null,0,null,null,null,null,null,null,null,null,null,null,null,null,null,null,null,null,null,null,null,null,null,null,null,null,null,null,null,null,null,null,null,null,null,null,null,null,null,null,null,null,null,null,null,null,null,null,null,null,null,null,null,null,0,null,null,null,null,null,null,null,null,null,null,null,null,null,null,null,null,null,null,null,null,null,null,null,null,null,null,null,null,null,null,null,null,null,null,null,null,null,"2月",null,"ＤＶＤ",null,null,null,null,null,"夫□□銀行",null,null,null,5000]
[null,null,null,null,null,null,null,null,null,null,null,null,0,null,null,null,null,null,null,null,null,null,null,null,null,null,null,null,null,null,null,null,null,null,null,null,null,null,null,null,null,null,null,null,null,null,null,null,null,null,null,null,null,null,null,null,null,null,null,null,null,null,null,null,null,0,null,null,null,null,null,null,null,null,null,null,null,null,null,null,null,null,null,null,null,null,null,null,null,null,null,null,null,null,null,null,null,null,null,null,null,null,null,"2月",null,"服（夫）",null,null,null,null,null,"夫□□銀行",null,null,null,5000]
[null,null,null,null,null,null,null,null,null,null,null,null,0,null,null,null,null,null,null,null,null,null,null,null,null,null,null,null,null,null,null,null,null,null,null,null,null,null,null,null,null,null,null,null,null,null,null,null,null,null,null,null,null,null,null,null,null,null,null,null,null,null,null,null,null,0,null,null,null,null,null,null,null,null,null,null,null,null,null,null,null,null,null,null,null,null,null,null,null,null,null,null,null,null,null,null,null,null,null,null,null,null,null,"2月",null,"服（妻）",null,null,null,null,null,"夫□□銀行",null,null,null,5000]
[null,null,null,null,null,null,null,null,null,null,null,null,0,null,null,null,null,null,null,null,null,null,null,null,null,null,null,null,null,null,null,null,null,null,null,null,null,null,null,null,null,null,null,null,null,null,null,null,null,null,null,null,null,null,null,null,null,null,null,null,null,null,null,null,null,0,null,null,null,null,null,null,null,null,null,null,null,null,null,null,null,null,null,null,null,null,null,null,null,null,null,null,null,null,null,null,null,null,null,null,null,null,null,"3月",null,null,null,null,null,null,null,"夫□□銀行"]
[null,null,null,null,null,null,null,null,null,null,null,null,0,null,null,null,null,null,null,null,null,null,null,null,null,null,null,null,null,null,null,null,null,null,null,null,null,null,null,null,null,null,null,null,null,null,null,null,null,null,null,null,null,null,null,null,null,null,null,null,null,null,null,null,null,0,null,null,null,null,null,null,null,null,null,null,null,null,null,null,null,null,null,null,null,null,null,null,null,null,null,null,null,null,null,null,null,null,null,null,null,null,null,"3月",null,null,null,null,null,null,null,"夫□□銀行"]
[null,null,null,null,null,null,null,null,null,null,null,null,0,null,null,null,null,null,null,null,null,null,null,null,null,null,null,null,null,null,null,null,null,null,null,null,null,null,null,null,null,null,null,null,null,null,null,null,null,null,null,null,null,null,null,null,null,null,null,null,null,null,null,null,null,0]
[null,null,null,null,null,null,null,null,null,null,null,null,0,null,null,null,null,null,null,null,null,null,null,null,null,null,null,null,null,null,null,null,null,null,null,null,null,null,null,null,null,null,null,null,null,null,null,null,null,null,null,null,null,null,null,null,null,null,null,null,null,null,null,null,null,0]
[null,null,null,null,null,null,null,null,null,null,null,null,0,null,null,null,null,null,null,null,null,null,null,null,null,null,null,null,null,null,null,null,null,null,null,null,null,null,null,null,null,null,null,null,null,null,null,null,null,null,null,null,null,null,null,null,null,null,null,null,null,null,null,null,null,0]
[null,null,null,null,null,null,null,null,null,null,null,null,0,null,null,null,null,null,null,null,null,null,null,null,null,null,null,null,null,null,null,null,null,null,null,null,null,null,null,null,null,null,null,null,null,null,null,null,null,null,null,null,null,null,null,null,null,null,null,null,null,null,null,null,null,0]
[null,null,null,null,null,null,null,null,null,null,null,null,0,null,null,null,null,null,null,null,null,null,null,null,null,null,null,null,null,null,null,null,null,null,null,null,null,null,null,null,null,null,null,null,null,null,null,null,null,null,null,null,null,null,null,null,null,null,null,null,null,null,null,null,null,0]
[null,null,null,null,null,null,null,null,null,null,null,null,0,null,null,null,null,null,null,null,null,null,null,null,null,null,null,null,null,null,null,null,null,null,null,null,null,null,null,null,null,null,null,null,null,null,null,null,null,null,null,null,null,null,null,null,null,null,null,null,null,null,null,null,null,0]
[null,null,null,null,null,null,null,null,null,null,null,null,0,null,null,null,null,null,null,null,null,null,null,null,null,null,null,null,null,null,null,null,null,null,null,null,null,null,null,null,null,null,null,null,null,null,null,null,null,null,null,null,null,null,null,null,null,null,null,null,null,null,null,null,null,0]
[null,null,null,null,null,null,null,null,null,null,null,null,0,null,null,null,null,null,null,null,null,null,null,null,null,null,null,null,null,null,null,null,null,null,null,null,null,null,null,null,null,null,null,null,null,null,null,null,null,null,null,null,null,null,null,null,null,null,null,null,null,null,null,null,null,0]
[null,null,null,null,null,null,null,null,null,null,null,null,0,null,null,null,null,null,null,null,null,null,null,null,null,null,null,null,null,null,null,null,null,null,null,null,null,null,null,null,null,null,null,null,null,null,null,null,null,null,null,null,null,null,null,null,null,null,null,null,null,null,null,null,null,0]
[null,null,null,null,null,null,null,null,null,null,null,null,0,null,null,null,null,null,null,null,null,null,null,null,null,null,null,null,null,null,null,null,null,null,null,null,null,null,null,null,null,null,null,null,null,null,null,null,null,null,null,null,null,null,null,null,null,null,null,null,null,null,null,null,null,0]
[null,null,null,null,null,null,null,null,null,null,null,null,0,null,null,null,null,null,null,null,null,null,null,null,null,null,null,null,null,null,null,null,null,null,null,null,null,null,null,null,null,null,null,null,null,null,null,null,null,null,null,null,null,null,null,null,null,null,null,null,null,null,null,null,null,0]
[null,null,null,null,null,null,null,null,null,null,null,null,0,null,null,null,null,null,null,null,null,null,null,null,null,null,null,null,null,null,null,null,null,null,null,null,null,null,null,null,null,null,null,null,null,null,null,null,null,null,null,null,null,null,null,null,null,null,null,null,null,null,null,null,null,0]
[null,null,null,null,null,null,null,null,null,null,null,null,0,null,null,null,null,null,null,null,null,null,null,null,null,null,null,null,null,null,null,null,null,null,null,null,null,null,null,null,null,null,null,null,null,null,null,null,null,null,null,null,null,null,null,null,null,null,null,null,null,null,null,null,null,0]
[null,null,null,null,null,null,null,null,null,null,null,null,0,null,null,null,null,null,null,null,null,null,null,null,null,null,null,null,null,null,null,null,null,null,null,null,null,null,null,null,null,null,null,null,null,null,null,null,null,null,null,null,null,null,null,null,null,null,null,null,null,null,null,null,null,0,null,null,28,null,"6M",null,null,null,"お金の移動",null,null,null,null,null,null,null,null,null,null,null,null,null,null,null,"夫□□銀行"]
[null,null,null,null,null,null,null,null,null,null,null,null,0,null,null,null,null,null,null,null,null,null,null,null,null,null,null,null,null,null,null,null,null,null,null,null,null,null,null,null,null,null,null,null,null,null,null,null,null,null,null,null,null,null,null,null,null,null,null,null,null,null,null,null,null,0,null,null,28,null,null,null,null,null,null,null,null,null,null,null,"7M",null,null,null,"お金の移動",null,null,null,null,null,"妻〇〇銀行"]
[null,null,null,null,null,null,null,null,null,null,null,null,0,null,null,null,null,null,null,null,null,null,null,null,null,null,null,null,null,null,null,null,null,null,null,null,null,null,null,null,null,null,null,null,null,null,null,null,null,null,null,null,null,null,null,null,null,null,null,null,null,null,null,null,null,0,null,null,null,null,null,null,null,null,"お給料3月分(夫)",null,null,null,null,null,null,null,null,null,null,null,null,null,null,null,"夫□□銀行"]
[null,null,null,null,null,null,null,null,null,null,null,null,0,null,null,null,null,null,null,null,null,null,null,null,null,null,null,null,null,null,null,null,null,null,null,null,null,null,null,null,null,null,null,null,null,null,null,null,null,null,null,null,null,null,null,null,null,null,null,null,null,null,null,null,null,0,null,null,null,null,null,null,null,null,"お給料3月分（妻）",null,null,null,null,null,null,null,null,null,null,null,null,null,null,null,"妻〇〇銀行"]
[null,null,null,null,null,null,null,null,null,null,null,null,0,null,null,null,null,null,null,null,null,null,null,null,null,null,null,null,null,null,null,null,null,null,null,null,null,null,null,null,null,null,null,null,null,null,null,null,null,null,null,null,null,null,null,null,null,null,null,null,null,null,null,null,null,0,null,null,null,null,null,null,null,null,"太陽光発電プラス分",null,null,null,null,null,null,null,null,null,null,null,null,null,null,null,"夫□□銀行",null,null,null,null,null,null,null,"太陽光ﾌﾟﾗｽ分"]
[null,null,null,null,null,null,null,null,null,null,null,null,0,null,null,null,null,null,null,null,null,null,null,null,null,null,null,null,null,null,null,null,null,null,null,null,null,null,null,null,null,null,null,null,null,null,null,null,null,null,null,null,null,null,null,null,null,null,null,null,null,null,null,null,null,0]
[null,null,null,null,null,null,null,null,null,null,null,null,0,null,null,null,null,null,null,null,null,null,null,null,null,null,null,null,null,null,null,null,null,null,null,null,null,null,null,null,null,null,null,null,null,null,null,null,null,null,null,null,null,null,null,null,null,null,null,null,null,null,null,null,null,0]
[null,null,null,null,null,null,null,null,null,null,null,null,0,null,null,null,null,null,null,null,null,null,null,null,null,null,null,null,null,null,null,null,null,null,null,null,null,null,null,null,null,null,null,null,null,null,null,null,null,null,null,null,null,null,null,null,null,null,null,null,null,null,null,null,null,0]
[null,null,null,null,null,null,null,null,null,null,null,null,0,null,null,null,null,null,null,null,null,null,null,null,null,null,null,null,null,null,null,null,null,null,null,null,null,null,null,null,null,null,null,null,null,null,null,null,null,null,null,null,null,null,null,null,null,null,null,null,null,null,null,null,null,0]
[null,null,null,null,null,null,null,null,null,null,null,null,0,null,null,null,null,null,null,null,null,null,null,null,null,null,null,null,null,null,null,null,null,null,null,null,null,null,null,null,null,null,null,null,null,null,null,null,null,null,null,null,null,null,null,null,null,null,null,null,null,null,null,null,null,0]
[null,null,null,null,null,null,null,null,null,null,null,null,0,null,null,null,null,null,null,null,null,null,null,null,null,null,null,null,null,null,null,null,null,null,null,null,null,null,null,null,null,null,null,null,null,null,null,null,null,null,null,null,null,null,null,null,null,null,null,null,null,null,null,null,null,0]
[null,null,null,null,null,null,null,null,null,null,null,null,0,null,null,null,null,null,null,null,null,null,null,null,null,null,null,null,null,null,null,null,null,null,null,null,null,null,null,null,null,null,null,null,null,null,null,null,null,null,null,null,null,null,null,null,null,null,null,null,null,null,null,null,null,0,null,null,null,null,null,null,null,null,null,null,null,null,null,null,"7M",null,null,null,"カード引き落し",null,null,null,null,null,"カード払い予定"]
[null,null,null,null,null,null,null,null,null,null,null,null,0,null,null,null,null,null,null,null,null,null,null,null,null,null,null,null,null,null,null,null,null,null,null,null,null,null,null,null,null,null,null,null,null,null,null,null,null,null,null,null,null,null,null,null,null,null,null,null,null,null,null,null,null,0,null,null,null,null,"6M",{"$f":"SUMIF(CJ60:CJ71,\"カード\",BZ60:BZ71)","v":0},null,null,"カード払い予定",null,null,null,null,null,null,null,null,null,null,null,null,null,null,null,"カード払い予定"]
[null,null,null,null,null,null,null,null,null,null,null,null,0,null,null,null,null,null,null,null,null,null,null,null,null,null,null,null,null,null,null,null,null,null,null,null,null,null,null,null,null,null,null,null,null,null,null,null,null,null,null,null,null,null,null,null,null,null,null,null,null,null,null,null,null,0,null,null,null,null,null,null,null,null,null,null,null,null,null,null,71,{"$f":"SUM(BZ60:CB70)","v":0},null,null,"固定支出",null,null,null,null,null,"夫□□銀行"]
[null,null,null,null,null,null,null,null,null,null,null,null,0,null,null,null,null,null,null,null,null,null,null,null,null,null,null,null,null,null,null,null,null,null,null,null,null,null,null,null,null,null,null,null,null,null,null,null,null,null,null,null,null,null,null,null,null,null,null,null,null,null,null,null,null,0,null,null,null,null,null,null,null,null,null,null,null,null,null,null,71,null,null,null,"小学校引落とし",null,null,null,null,null,"ゆうちょ"]
[null,null,null,null,null,null,null,null,null,null,null,null,0,null,null,null,null,null,null,null,null,null,null,null,null,null,null,null,null,null,null,null,null,null,null,null,null,null,null,null,null,null,null,null,null,null,null,null,null,null,null,null,null,null,null,null,null,null,null,null,null,null,null,null,null,0]
[null,null,null,null,null,null,null,null,null,null,null,null,0,null,null,null,null,null,null,null,null,null,null,null,null,null,null,null,null,null,null,null,null,null,null,null,null,null,null,null,null,null,null,null,null,null,null,null,null,null,null,null,null,null,null,null,null,null,null,null,null,null,null,null,null,0]
[]
[]
[null,null,null,null,null,null,null,null,null,null,null,null,null,"生活費支出",null,{"$f":"SUM(M20:O56)","v":60000},null,null,null,null,null,null,null,null,null,null,null,null,null,45000,null,null,null,null,null,null,26000,null,null,null,null,null,null,null,null,null,null,null,null,null,8000,null,null,null,null,null,null,15000,null,null,null,null,null,null,null,null,null,null,null,null,null,null,null,null,null,"日付",null,"お金",null,null,"理由",null,null,null,null,null,null,"どこから"]
[null,null,null,null,null,null,"収入",null,{"$f":"SUM(BT42:BV44)","v":0},null,null,null,null,"支出",null,{"$f":"SUM(M20:O56)+BP60+BQ62+BQ63","v":60000},null,null,null,null,"＋　or －",null,null,{"$f":"I60-P60","v":-60000},null,null,null,null,null,"食費",null,null,{"$f":"SUM(Q20:S56)","v":0},null,null,null,"日雑・化粧",null,null,{"$f":"SUM(AA20:AC56)","v":0},null,null,null,"娯楽・衣服",null,null,{"$f":"SUM(AK20:AM56)","v":0},null,null,null,"ｶﾞｿﾘﾝ・車",null,null,{"$f":"SUM(AU20:AW56)","v":0},null,null,null,"その他",null,null,{"$f":"SUM(BE20:BG56)","v":60000},null,null,null,"固定費",null,null,{"$f":"SUMIF(CC19:CC56,71,CD19:CF56)","v":0},null,null,null,null,null,null,null,null,null,null,null,null,"夫携帯",null,null,null,null,null,null,"カード"]
[null,null,null,null,null,null,null,null,null,null,null,null,null,null,null,null,null,null,null,null,null,null,null,null,null,null,null,null,null,null,null,null,null,null,null,null,null,null,null,null,null,null,null,null,null,null,null,null,null,null,null,null,null,null,null,null,null,null,null,null,null,null,null,null,null,null,null,null,null,null,null,null,null,null,null,null,null,null,null,null,"妻携帯",null,null,null,null,null,null,"カード"]
[null,null,null,null,null,null,null,null,null,null,null,null,null,"(実質)",null,{"$f":"P60-(BQ62+BQ63)","v":60000},null,null,null,null,null,null,null,null,null,null,null,null,null,"(材料)",null,null,{"$f":"SUMIF(P20:P56,11,Q20:S56)","v":0},null,null,null,"(日用雑貨)",null,null,{"$f":"SUMIF(Z20:Z56,21,AA20:AC56)","v":0},null,null,null,"(服：夫)",null,null,{"$f":"SUMIF(AJ20:AJ56,31,AK20:AM56)+SUMIF(CU20:CU56,\"衣服費（夫）\",CD20:CF56)","v":0},null,null,null,"(ｶﾞｿﾘﾝ：夫)",null,null,{"$f":"SUMIF(AT20:AT56,41,AU20:AW56)","v":0},null,null,null,"(医療：夫)",null,null,{"$f":"SUMIF(BD20:BD56,51,BE20:BG56)","v":0},null,null,null,"純貯金から-",null,null,null,{"$f":"SUMIF(CC19:CC56,72,CD19:CF56)","v":0},null,null,null,null,null,null,null,null,null,null,null,"通話料",null,null,null,null,null,null,"カード"]
[null,null,null,null,null,null,null,null,null,null,null,null,null,null,null,null,null,null,null,null,null,null,null,null,null,null,null,null,null,"(米代)",null,null,{"$f":"SUMIF(P20:P56,12,Q20:S56)","v":0},null,null,null,"(化粧品)",null,null,{"$f":"SUMIF(Z20:Z56,22,AA20:AC56)","v":0},null,null,null,"(服：妻)",null,null,{"$f":"SUMIF(AJ20:AJ56,32,AK20:AM56)+SUMIF(CU20:CU56,\"衣服費（妻）\",CD20:CF56)","v":0},null,null,null,"(ｶﾞｿﾘﾝ：妻)",null,null,{"$f":"SUMIF(AT20:AT56,42,AU20:AW56)","v":0},null,null,null,"(医療：妻)",null,null,{"$f":"SUMIF(BD20:BD56,52,BE20:BG56)","v":0},null,null,null,"振分貯金から-",null,null,null,{"$f":"SUMIF(CC19:CC56,73,CD19:CF56)","v":0},null,null,null,null,null,null,null,null,null,null,null,"ネット",null,null,null,null,null,null,"カード"]
[null,null,null,null,null,null,null,null,null,null,null,null,null,null,null,null,null,null,null,null,null,null,null,null,null,null,null,null,null,"(外食)",null,null,{"$f":"SUMIF(P20:P56,13,Q20:S56)+SUMIF(CU20:CU56,\"外食\",CD20:CF56)","v":0},null,null,null,"(子②用品)",null,null,{"$f":"SUMIF(Z20:Z56,23,AA20:AC56)","v":0},null,null,null,"(服：子①)",null,null,{"$f":"SUMIF(AJ20:AJ56,33,AK20:AM56)+SUMIF(CU20:CU56,\"衣服費（子①）\",CD20:CF56)","v":0},null,null,null,"(車メンテ)",null,null,{"$f":"SUMIF(AT20:AT56,43,AU20:AW56)","v":0},null,null,null,"(医療：子①)",null,null,{"$f":"SUMIF(BD20:BD56,53,BE20:BG56)","v":0},null,null,null,null,null,null,null,null,null,null,null,null,null,null,null,null,null,null,null,"電気3月分(999kwh)",null,null,null,null,null,null,"カード"]
[null,null,null,null,null,null,null,null,null,null,null,null,null,null,null,null,null,null,null,null,null,null,null,null,null,null,null,null,null,null,null,null,null,null,null,null,null,null,null,null,null,null,null,"(服：子②)　",null,null,{"$f":"SUMIF(AJ20:AJ56,33,AK20:AM56)+SUMIF(CU20:CU56,\"衣服費（子②）\",CD20:CF56)","v":0},null,null,null,null,null,null,null,null,null,null,"(医療：子②)",null,null,{"$f":"SUMIF(BD20:BD56,54,BE20:BG56)","v":0},null,null,null,"家計費ﾏｲﾅｽ",null,null,null,{"$f":"SUMIF(CU20:CU56,\"家計費補充\",CD20:CF56)","v":0},null,null,null,null,null,null,null,null,null,null,null,"水道（上下水）(99㎥)",null,null,null,null,null,null,"夫□□銀行"]
[null,null,null,null,null,null,null,null,null,null,null,null,null,null,null,null,null,null,null,null,null,null,null,null,null,null,null,null,null,null,null,null,null,null,null,null,null,null,null,null,null,null,null,"(娯楽)",null,null,{"$f":"SUMIF(AJ20:AJ56,33,AK20:AM56)+SUMIF(CU20:CU56,\"娯楽費\",CD20:CF56)","v":0},null,null,null,null,null,null,null,null,null,null,"(学校)",null,null,{"$f":"SUMIF(BD20:BD56,61,BE20:BG56)","v":0},null,null,null,null,null,null,null,null,null,null,null,null,null,null,null,null,null,null,null,"ＮＨＫ3、4月分",null,null,null,null,null,null,"夫□□銀行"]
[null,null,null,null,null,null,null,null,null,null,null,null,null,null,null,null,null,null,null,null,null,null,null,null,null,null,null,null,null,null,null,null,null,null,null,null,null,null,null,null,null,null,null,null,null,null,null,null,null,null,null,null,null,null,null,null,null,null,null,null,null,null,null,null,null,null,null,null,null,null,null,null,null,null,null,null,null,null,null,null,"住宅ローン",null,null,null,null,null,null,"夫□□銀行"]
[null,null,null,null,null,null,null,null,null,null,null,null,null,null,null,null,null,null,null,null,null,null,null,null,null,null,null,null,null,null,null,null,null,null,null,null,null,null,null,null,null,null,null,null,null,null,null,null,null,null,null,null,null,null,null,null,null,null,null,null,null,null,null,null,null,null,null,null,null,null,null,null,null,null,null,null,null,null,null,null,"生命・医療保険(夫)",null,null,null,null,null,null,"カード"]
[null,null,null,null,null,null,null,null,null,null,null,null,null,null,null,null,null,null,null,null,null,null,null,null,null,null,null,null,null,null,null,null,null,null,null,null,null,null,null,null,null,null,null,null,null,null,null,null,null,null,null,null,null,null,null,null,null,null,null,null,null,null,null,null,null,null,null,null,null,null,null,null,null,null,null,null,null,null,null,null,"生命・医療保険(妻)",null,null,null,null,null,null,"カード"]
[null,null,null,null,null,null,null,null,null,null,null,null,null,null,null,null,null,null,null,null,null,null,null,null,null,null,null,null,null,null,null,null,null,null,null,null,null,null,null,null,null,null,null,null,null,null,null,null,null,null,null,null,null,null,null,null,null,null,null,null,null,null,null,null,null,null,null,null,null,null,null,null,null,null,null,null,null,null,null,null,"学資保険",null,null,null,null,null,null,"カード"]